{"text_format":"1","workbook":"xlsx","n_sheets":20,"sheets":["Indledning og vejledning","CELOG - model","Menu - hovedaktiviteter","Proces - Oversigt","Proces - Belastning","Proces - Kompetencer","Organisation","Proces - Vurderinger","Kompetence Vurderinger","Rutine-oversigt","Rutiner - Ledelse","Rutiner - Salg","Rutiner - Produktion","Rutiner - PTF","Rutiner - Lager og logistik","Rutiner - Indkøb","Rutiner - Økonomi","Rutine - oversigt","Rutine - overblik","Problem - Årsagssammenhænge"],"not_rendered":{"charts":8,"images":2,"macros":1,"external_links":1,"defined_names":55,"comments":7,"pivot_tables":0},"unopened":[],"bounds":{"document_bytes":16777216,"sheet_cells":100000,"rows_first":2000,"rows_last":500,"rows_between":2000,"halvings":0,"cell_chars":16384,"cell_head_chars":4096},"cells_cut":0,"cells_raw":0,"read":"whole","date_system":"1900"}

{"sheet":"Indledning og vejledning","index":0,"n_rows":59,"n_cols":4,"rows_kept":59,"cut":false,"hidden":false,"merged":[[18,0,18,9]]}
[]
[]
[]
[]
[]
[]
[]
[]
[]
[]
[]
["Baggrund"]
[]
[null," "]
[]
[]
[]
[]
[" Vejledning - indsamling af data."]
[]
["Menu",null,"Oversigt, som viser de områder der vælges via Procesoversigt"]
[null,null,"I det omfang der er områder som ikke medtages - gemmes de enkelte linier. "]
[null,null,"Husk at inden liniernes lukkes er feltet sat til 0 %"]
[null,null,"Indtast de faktuelle oplysninger: Virksomhed, produkter, antal ansatte."]
[]
["Procesoversigt",null,"Aktivitetsoversigten er opdelt i nogle funktionsområder, som falder indenfor nogle "]
[null,null,"afdelingers arbejdsområde. "]
[null,null,"Hvert funktionsområde kan opdeles i 8 processer, hvor 2 er fælles for alle. Default er"]
[null,null,"der valgt : kvalitet og rapportering. Der kan tilføjes yderlig 2 områder. Ligeledes kan "]
[null,null,"teksten på de enkelte procesopgaver ændres."]
[null,null,"Nederst skal afdelingerne/personer placeres. "]
[]
["Proces - belast.",null,"Felter med disse farver kan bruges til indtastning: "]
[null,null,"Generelt bruges der værdier for en uge: "]
[null,null,"-","timebelastning pr. aktivitet"]
[null,null,"-","antal transaktioner f.eks. Antal salgsordre"]
[null,null,"Øverst indtastes antal medarbejder for hver afdeling - eller blot en enkel person."]
[null,null,"Antal personer indtastes øverst."]
[null,null,"Afdelingens belastning - antal timer pr. uge , indtastes i de enkelte felter."]
[null,null,"Nederst kan man følge den samlede belastning i afdelingen."]
[]
["Proces-kompt.",null,"Til dette ark overføres antal transaktioner + dokumentationer fra Proces - belastningsarket."]
[null,null,"For hver af de 3 kompetencer indtastes en værdi mellem 0-5, i det omfang det ikke "]
[null,null,"vurderes som relevant - springer man blot over uden at indtaste en værdi."]
[]
["Kompetence vurdering",null,"Her opsamles data fra de øvrige ark - og præcenteres i nogle kurver."]
[null,null,"Typisk vil en kategoriværdi over 3,3 være OK , hvorimod en vægtet værdi skal "]
[null,null,"være under 32."]
[]
["Proces omkostninger",null,"I dette ark overføres forbrugte timer fra de enkelte processer, opsamlet i Proces-Belastning."]
[null,null,"Her kan de aktuelle årsindkomster justeres."]
[null,null,"Løbende vil der blive udviklet nye kurver m.v."]
[]
["Rutiner ",null,"For hvert procesområde placeres det udførende og orienterende ansvar."]
[null,null,"Max  11  personer kan behandles - f.eks. en ledergruppe."]
[null,null,"Personerne indtastes i felterne."]
[]
["Problem - Årsagssammenhænge"]
[null,null,"Faktuelle problemer overføres fra rutine-arket , og evalueres."]

{"sheet":"CELOG - model","index":1,"n_rows":29,"n_cols":13,"rows_kept":29,"cut":false,"hidden":true,"merged":[[9,12,12,12],[13,12,32,12]]}
[]
[]
[]
[]
[]
[]
[]
[]
[]
[null,null,null,null,null,null,null,null,null,null,null,null,"Dupont model Produktivitets modeller"]
[null,"Finansielle niveau"]
[]
[]
[null,null,null,null,null,null,null,null,null,null,null,null,"Proces model    Proces økonomi"]
[]
[null,"Kunde Niveau"]
[]
[]
[]
[]
[]
[]
[null,"Proces niveau"]
[]
[]
[]
[]
[]
[null,"Kompetence niveau"]

{"sheet":"Menu - hovedaktiviteter","index":2,"n_rows":26,"n_cols":4,"rows_kept":26,"cut":false,"hidden":false,"merged":[[23,3,23,4],[4,1,4,6],[19,3,19,4],[20,3,20,4]]}
[]
[]
[]
[]
[null,"Indsæt den vægtede værdi  - summen skal give 100 "]
[]
[null,null,{"$f":"'Proces - Oversigt'!B10","v":"L - Ledelsesopgaver"},0.15]
[null,null,{"$f":"'Proces - Oversigt'!B17","v":"S - Salgsopgaver"},0.15]
[null,null,{"$f":"'Proces - Oversigt'!B29","v":"T - Opgaver vedr. Produktionsteknik - PTF"},0.15]
[null,null,{"$f":"'Proces - Oversigt'!B43","v":"P - Produktionsopgaver"},0.15]
[null,null,{"$f":"'Proces - Oversigt'!B56","v":"L - Lager- og logistikopgaver"},0.15]
[null,null,{"$f":"'Proces - Oversigt'!B71","v":"I - Indkøbsopgaver"},0.15]
[null,null,{"$f":"'Proces - Oversigt'!B84","v":"B - Økonomiopgaver"},0.1]
[null,null,{"$f":"'Proces - Oversigt'!B95","v":"Hovedaktivtet 8 - opgaver"},0]
[null,null,{"$f":"'Proces - Oversigt'!B105","v":"Hovedaktivtet 9 - opgaver"},0]
[null,null,{"$f":"'Proces - Oversigt'!B115","v":"Hovedaktivtet 10 - opgaver"},0]
[null,null,null,{"$f":"SUM(D7:D16)","v":1}]
[]
[]
[null,"Virksomhed:"]
[null,"Branche :"]
[null,"Funktionær :"]
[null,"Operatør:"]
[null,"Produkter:"]
[]
[null,"Interview person(er)"]

{"sheet":"Proces - Oversigt","index":3,"n_rows":136,"n_cols":2,"rows_kept":136,"cut":false,"hidden":false,"merged":[[7,1,8,1]]}
[]
[]
[]
[]
[]
[]
[]
[null,"Procesoversigt"]
[]
[null,"L - Ledelsesopgaver"]
[null,"L01 - Koordinering af ledergruppe"]
[null,"L02 - Kvalitetsstyring - reklamationer"]
[null,"L03 - Projektstyring"]
[null,"L04 - Kontraktforhandlinger"]
[null,"L05 - Økonomi, rapportering, planlægning"]
[]
[null,"S - Salgsopgaver"]
[null,"S01 - Salgsordre - almindelige ordre"]
[null,"S02 - Salgsordre - projekter, 1. gangsleverancer/prototyper"]
[null,"S03 - Tilbud , forespørgelser"]
[null,"S04 - Ændrings- og hasteordre"]
[null,"S05 - Kundebesøg, messer"]
[null,"S06"]
[null,"S07"]
[null,"S11 - Kvalitetsstyring"]
[null,"S12 - Økonomi, rapportering, planlægning"]
[null,"S13 - HR opgaver"]
[]
[null,"T - Opgaver vedr. Produktionsteknik - PTF"]
[null,"T01 - Produktionsgrundlag"]
[null,"T02 - Hjælpeværktøjer"]
[null,"T03 - Prototyper, nulserier og vareprøver"]
[null,"T04 - Produktkalkulation"]
[null,"T05 - Procesoptimering"]
[null,"T06 - Produktudvikling"]
[null,"T07 - Teknisk salgssupport"]
[null,"T08"]
[null,"T09"]
[null,"T11 - Kvalitetsstyring"]
[null,"T12 - Økonomi, rapportering, planlægning"]
[null,"T13 - HR opgaver"]
[]
[null,"P - Produktionsopgaver"]
[null,"P01 - Planlægning, hoved-finplan., "]
[null,"P02 - Klargøring og opstart af produktion"]
[null,"P03 - Værkstedsstyring og overvågning af leveringsterm."]
[null,"P04 - Optimering af processer"]
[null,"P05 - Instruktion og kompetenceudvikling af medarb."]
[null,"P06 - Håndtering af ændrings- og hasteordre."]
[null,"P07"]
[null,"P08"]
[null,"P11 - Kvalitetsstyring"]
[null,"P12 - Økonomi, rapportering, planlægning"]
[null,"P13 - HR opgaver"]
[]
[null,"L - Lager- og logistikopgaver"]
[null,"L01 - Varemodtagelse, kontrol, registrering"]
[null,"L02 - Lagerregnskab - Fysisk optælling af lagerbeholdning"]
[null,"L03 - Udlevering af varer til produktion"]
[null,"L04 - Klargøring af varer til forsendelse"]
[null,"L05 - Forsendelsespapirer - bookning af transportør"]
[null,"L06 - Pålæsning af varer - udgangskontrol"]
[null,"L07 - Logistikaftaler - transport, lagerhotel, etc."]
[null,"L08 - Håndtering af ændrings- og hasteordrer"]
[null,"L09"]
[null,"L10"]
[null,"L11 - Kvalitetsstyring"]
[null,"L12 - Økonomi, rapportering, planlægning"]
[null,"L13 - HR opgaver"]
[]
[null,"I - Indkøbsopgaver"]
[null,"I01 - Leverandørevaluering"]
[null,"I02 - Leverandøraftaler"]
[null,"I03 - Behovsberegning og disponering"]
[null,"I04 - Indkøbsordrer"]
[null,"I05 - Reklamationsbehandling"]
[null,"I06 - Vedligehold af indkøbte varers kostpriser - kostprisafv."]
[null,"I07"]
[null,"I08"]
[null,"I11 - Kvalitetsstyring"]
[null,"I12 - Økonomi, rapportering, planlægning"]
[null,"I13 - HR opgaver"]
[]
[null,"B - Økonomiopgaver"]
[null,"B01 - Finans, debitor og kreditor"]
[null,"B02 - Gage og lønninger"]
[null,"B03 - Budgetlægning"]
[null,"B04 - Likviditetsstyring"]
[null,"B05"]
[null,"B06"]
[null,"B11 - Reklamationsbehandling"]
[null,"B12 - Økonomi, rapportering, planlægning"]
[null,"B13 - HR opgaver"]
[]
[null,"Hovedaktivtet 8 - opgaver"]
[null,"aktivitet 1"]
[null,"aktivitet 2"]
[null,"aktivitet 3"]
[null,"aktivitet 4"]
[null,"aktivitet 5"]
[null,"aktivitet 6"]
[null,"aktivitet 7"]
[null,"aktivitet 8"]
[]
[null,"Hovedaktivtet 9 - opgaver"]
[null,"aktivitet 1"]
[null,"aktivitet 2"]
[null,"aktivitet 3"]
[null,"aktivitet 4"]
[null,"aktivitet 5"]
[null,"aktivitet 6"]
[null,"aktivitet 7"]
[null,"aktivitet 8"]
[]
[null,"Hovedaktivtet 10 - opgaver"]
[null,"aktivitet 1"]
[null,"aktivitet 2"]
[null,"aktivitet 3"]
[null,"aktivitet 4"]
[null,"aktivitet 5"]
[null,"aktivitet 6"]
[null,"aktivitet 7"]
[null,"aktivitet 8"]
[]
[]
[null,"Afdelinger/Funktioner"]
[null,"Ledelse"]
[null,"Salg"]
[null,"Produktion"]
[null,"PTF"]
[null,"Lager"]
[null,"Indkøb"]
[null,"Bogholderi"]
[null,"A1"]
[null,"A2"]
[null,"A3"]

{"sheet":"Proces - Belastning","index":4,"n_rows":127,"n_cols":13,"rows_kept":127,"cut":false,"hidden":false,"merged":[[1,2,3,2],[1,3,1,12],[122,2,123,2]]}
[]
[null,null,"Antal transaktioner pr. uge","Afdelinger - med antal personer"]
[null,null,null,1,1,1,1,1,1,1,1,1,1]
[null,null,null,{"$f":"IF(ISBLANK('Proces - Oversigt'!$B$127),\"\", 'Proces - Oversigt'!$B$127)","v":"Ledelse"},{"$f":"IF(ISBLANK('Proces - Oversigt'!$B$128),\"\", 'Proces - Oversigt'!$B$128)","v":"Salg"},{"$f":"IF(ISBLANK('Proces - Oversigt'!$B$129),\"\", 'Proces - Oversigt'!$B$129)","v":"Produktion"},{"$f":"IF(ISBLANK('Proces - Oversigt'!$B$130),\"\", 'Proces - Oversigt'!$B$130)","v":"PTF"},{"$f":"IF(ISBLANK('Proces - Oversigt'!$B$131),\"\", 'Proces - Oversigt'!$B$131)","v":"Lager"},{"$f":"IF(ISBLANK('Proces - Oversigt'!$B$132),\"\", 'Proces - Oversigt'!$B$132)","v":"Indkøb"},{"$f":"IF(ISBLANK('Proces - Oversigt'!$B$133),\"\", 'Proces - Oversigt'!$B$133)","v":"Bogholderi"},{"$f":"IF(ISBLANK('Proces - Oversigt'!$B$133),\"\", 'Proces - Oversigt'!$B$134)","v":"A1"},{"$f":"IF(ISBLANK('Proces - Oversigt'!$B$133),\"\", 'Proces - Oversigt'!$B$135)","v":"A2"},{"$f":"IF(ISBLANK('Proces - Oversigt'!$B$133),\"\", 'Proces - Oversigt'!$B$136)","v":"A3"}]
[null,{"$f":"IF(ISBLANK('Proces - Oversigt'!B10),\"\", 'Proces - Oversigt'!B10)","v":"L - Ledelsesopgaver"},{"$f":"SUM(C6:C8)","v":0},0,0,0,0,0,0,0,0,0,0]
[null,{"$f":"IF(ISBLANK('Proces - Oversigt'!B11),\"\", 'Proces - Oversigt'!B11)","v":"L01 - Koordinering af ledergruppe"}]
[null,{"$f":"IF(ISBLANK('Proces - Oversigt'!B12),\"\", 'Proces - Oversigt'!B12)","v":"L02 - Kvalitetsstyring - reklamationer"}]
[null,{"$f":"IF(ISBLANK('Proces - Oversigt'!B13),\"\", 'Proces - Oversigt'!B13)","v":"L03 - Projektstyring"}]
[null,{"$f":"IF(ISBLANK('Proces - Oversigt'!B14),\"\", 'Proces - Oversigt'!B14)","v":"L04 - Kontraktforhandlinger"}]
[null,{"$f":"IF(ISBLANK('Proces - Oversigt'!B15),\"\", 'Proces - Oversigt'!B15)","v":"L05 - Økonomi, rapportering, planlægning"}]
[null,{"$f":"IF(ISBLANK('Proces - Oversigt'!B16),\"\", 'Proces - Oversigt'!B16)","v":""}]
[null,{"$f":"IF(ISBLANK('Proces - Oversigt'!B17),\"\", 'Proces - Oversigt'!B17)","v":"S - Salgsopgaver"},{"$f":"SUM(C13:C20)","v":0},{"$f":"SUM(D13:D20)","v":0},0,0,0,0,0,0,0,0,0]
[null,{"$f":"IF(ISBLANK('Proces - Oversigt'!B18),\"\", 'Proces - Oversigt'!B18)","v":"S01 - Salgsordre - almindelige ordre"}]
[null,{"$f":"IF(ISBLANK('Proces - Oversigt'!B19),\"\", 'Proces - Oversigt'!B19)","v":"S02 - Salgsordre - projekter, 1. gangsleverancer/prototyper"}]
[null,{"$f":"IF(ISBLANK('Proces - Oversigt'!B20),\"\", 'Proces - Oversigt'!B20)","v":"S03 - Tilbud , forespørgelser"}]
[null,{"$f":"IF(ISBLANK('Proces - Oversigt'!B21),\"\", 'Proces - Oversigt'!B21)","v":"S04 - Ændrings- og hasteordre"}]
[null,{"$f":"IF(ISBLANK('Proces - Oversigt'!B22),\"\", 'Proces - Oversigt'!B22)","v":"S05 - Kundebesøg, messer"}]
[null,{"$f":"IF(ISBLANK('Proces - Oversigt'!B23),\"\", 'Proces - Oversigt'!B23)","v":"S06"}]
[null,{"$f":"IF(ISBLANK('Proces - Oversigt'!B24),\"\", 'Proces - Oversigt'!B24)","v":"S07"}]
[null,{"$f":"IF(ISBLANK('Proces - Oversigt'!B25),\"\", 'Proces - Oversigt'!B25)","v":"S11 - Kvalitetsstyring"}]
[null,{"$f":"IF(ISBLANK('Proces - Oversigt'!B26),\"\", 'Proces - Oversigt'!B26)","v":"S12 - Økonomi, rapportering, planlægning"}]
[null,{"$f":"IF(ISBLANK('Proces - Oversigt'!B27),\"\", 'Proces - Oversigt'!B27)","v":"S13 - HR opgaver"}]
[null,{"$f":"IF(ISBLANK('Proces - Oversigt'!B28),\"\", 'Proces - Oversigt'!B28)","v":""}]
[null,{"$f":"IF(ISBLANK('Proces - Oversigt'!B29),\"\", 'Proces - Oversigt'!B29)","v":"T - Opgaver vedr. Produktionsteknik - PTF"},{"$f":"SUM(C25:C33)","v":0},{"$f":"SUM(D25:D33)","v":0},0,0,0,0,0,0,0,{"$f":"SUM(L25:L33)","v":0},{"$f":"SUM(M25:M33)","v":0}]
[null,{"$f":"IF(ISBLANK('Proces - Oversigt'!B30),\"\", 'Proces - Oversigt'!B30)","v":"T01 - Produktionsgrundlag"}]
[null,{"$f":"IF(ISBLANK('Proces - Oversigt'!B31),\"\", 'Proces - Oversigt'!B31)","v":"T02 - Hjælpeværktøjer"}]
[null,{"$f":"IF(ISBLANK('Proces - Oversigt'!B32),\"\", 'Proces - Oversigt'!B32)","v":"T03 - Prototyper, nulserier og vareprøver"}]
[null,{"$f":"IF(ISBLANK('Proces - Oversigt'!B33),\"\", 'Proces - Oversigt'!B33)","v":"T04 - Produktkalkulation"}]
[null,{"$f":"IF(ISBLANK('Proces - Oversigt'!B34),\"\", 'Proces - Oversigt'!B34)","v":"T05 - Procesoptimering"}]
[null,{"$f":"IF(ISBLANK('Proces - Oversigt'!B35),\"\", 'Proces - Oversigt'!B35)","v":"T06 - Produktudvikling"}]
[null,{"$f":"IF(ISBLANK('Proces - Oversigt'!B36),\"\", 'Proces - Oversigt'!B36)","v":"T07 - Teknisk salgssupport"}]
[null,{"$f":"IF(ISBLANK('Proces - Oversigt'!B37),\"\", 'Proces - Oversigt'!B37)","v":"T08"}]
[null,{"$f":"IF(ISBLANK('Proces - Oversigt'!B38),\"\", 'Proces - Oversigt'!B38)","v":"T09"}]
[null,{"$f":"IF(ISBLANK('Proces - Oversigt'!B39),\"\", 'Proces - Oversigt'!B39)","v":"T11 - Kvalitetsstyring"}]
[null,{"$f":"IF(ISBLANK('Proces - Oversigt'!B40),\"\", 'Proces - Oversigt'!B40)","v":"T12 - Økonomi, rapportering, planlægning"}]
[null,{"$f":"IF(ISBLANK('Proces - Oversigt'!B41),\"\", 'Proces - Oversigt'!B41)","v":"T13 - HR opgaver"}]
[null,{"$f":"IF(ISBLANK('Proces - Oversigt'!B42),\"\", 'Proces - Oversigt'!B42)","v":""}]
[null,{"$f":"IF(ISBLANK('Proces - Oversigt'!B43),\"\", 'Proces - Oversigt'!B43)","v":"P - Produktionsopgaver"},{"$f":"SUM(C39:C47)","v":0},{"$f":"SUM(D39:D47)","v":0},0,0,0,0,0,0,0,{"$f":"SUM(L39:L47)","v":0},{"$f":"SUM(M39:M47)","v":0}]
[null,{"$f":"IF(ISBLANK('Proces - Oversigt'!B44),\"\", 'Proces - Oversigt'!B44)","v":"P01 - Planlægning, hoved-finplan., "}]
[null,{"$f":"IF(ISBLANK('Proces - Oversigt'!B45),\"\", 'Proces - Oversigt'!B45)","v":"P02 - Klargøring og opstart af produktion"}]
[null,{"$f":"IF(ISBLANK('Proces - Oversigt'!B46),\"\", 'Proces - Oversigt'!B46)","v":"P03 - Værkstedsstyring og overvågning af leveringsterm."}]
[null,{"$f":"IF(ISBLANK('Proces - Oversigt'!B47),\"\", 'Proces - Oversigt'!B47)","v":"P04 - Optimering af processer"}]
[null,{"$f":"IF(ISBLANK('Proces - Oversigt'!B48),\"\", 'Proces - Oversigt'!B48)","v":"P05 - Instruktion og kompetenceudvikling af medarb."}]
[null,{"$f":"IF(ISBLANK('Proces - Oversigt'!B49),\"\", 'Proces - Oversigt'!B49)","v":"P06 - Håndtering af ændrings- og hasteordre."}]
[null,{"$f":"IF(ISBLANK('Proces - Oversigt'!B50),\"\", 'Proces - Oversigt'!B50)","v":"P07"}]
[null,{"$f":"IF(ISBLANK('Proces - Oversigt'!B51),\"\", 'Proces - Oversigt'!B51)","v":"P08"}]
[null,{"$f":"IF(ISBLANK('Proces - Oversigt'!B52),\"\", 'Proces - Oversigt'!B52)","v":"P11 - Kvalitetsstyring"}]
[null,{"$f":"IF(ISBLANK('Proces - Oversigt'!B53),\"\", 'Proces - Oversigt'!B53)","v":"P12 - Økonomi, rapportering, planlægning"}]
[null,{"$f":"IF(ISBLANK('Proces - Oversigt'!B54),\"\", 'Proces - Oversigt'!B54)","v":"P13 - HR opgaver"}]
[null,{"$f":"IF(ISBLANK('Proces - Oversigt'!B55),\"\", 'Proces - Oversigt'!B55)","v":""}]
[null,{"$f":"IF(ISBLANK('Proces - Oversigt'!B56),\"\", 'Proces - Oversigt'!B56)","v":"L - Lager- og logistikopgaver"},{"$f":"SUM(C52:C61)","v":0},{"$f":"SUM(D52:D61)","v":0},0,0,0,0,0,{"$f":"SUM(J52:J59)","v":0},0,{"$f":"SUM(L52:L59)","v":0},0]
[null,{"$f":"IF(ISBLANK('Proces - Oversigt'!B57),\"\", 'Proces - Oversigt'!B57)","v":"L01 - Varemodtagelse, kontrol, registrering"}]
[null,{"$f":"IF(ISBLANK('Proces - Oversigt'!B58),\"\", 'Proces - Oversigt'!B58)","v":"L02 - Lagerregnskab - Fysisk optælling af lagerbeholdning"}]
[null,{"$f":"IF(ISBLANK('Proces - Oversigt'!B59),\"\", 'Proces - Oversigt'!B59)","v":"L03 - Udlevering af varer til produktion"}]
[null,{"$f":"IF(ISBLANK('Proces - Oversigt'!B60),\"\", 'Proces - Oversigt'!B60)","v":"L04 - Klargøring af varer til forsendelse"}]
[null,{"$f":"IF(ISBLANK('Proces - Oversigt'!B61),\"\", 'Proces - Oversigt'!B61)","v":"L05 - Forsendelsespapirer - bookning af transportør"}]
[null,{"$f":"IF(ISBLANK('Proces - Oversigt'!B62),\"\", 'Proces - Oversigt'!B62)","v":"L06 - Pålæsning af varer - udgangskontrol"}]
[null,{"$f":"IF(ISBLANK('Proces - Oversigt'!B63),\"\", 'Proces - Oversigt'!B63)","v":"L07 - Logistikaftaler - transport, lagerhotel, etc."}]
[null,{"$f":"IF(ISBLANK('Proces - Oversigt'!B64),\"\", 'Proces - Oversigt'!B64)","v":"L08 - Håndtering af ændrings- og hasteordrer"}]
[null,{"$f":"IF(ISBLANK('Proces - Oversigt'!B65),\"\", 'Proces - Oversigt'!B65)","v":"L09"}]
[null,{"$f":"IF(ISBLANK('Proces - Oversigt'!B66),\"\", 'Proces - Oversigt'!B66)","v":"L10"}]
[null,{"$f":"IF(ISBLANK('Proces - Oversigt'!B67),\"\", 'Proces - Oversigt'!B67)","v":"L11 - Kvalitetsstyring"}]
[null,{"$f":"IF(ISBLANK('Proces - Oversigt'!B68),\"\", 'Proces - Oversigt'!B68)","v":"L12 - Økonomi, rapportering, planlægning"}]
[null,{"$f":"IF(ISBLANK('Proces - Oversigt'!B69),\"\", 'Proces - Oversigt'!B69)","v":"L13 - HR opgaver"}]
[null,{"$f":"IF(ISBLANK('Proces - Oversigt'!B70),\"\", 'Proces - Oversigt'!B70)","v":""}]
[null,{"$f":"IF(ISBLANK('Proces - Oversigt'!B71),\"\", 'Proces - Oversigt'!B71)","v":"I - Indkøbsopgaver"},{"$f":"SUM(C67:C75)","v":0},{"$f":"SUM(D67:D75)","v":0},0,0,0,0,0,0,0,{"$f":"SUM(L67:L75)","v":0},{"$f":"SUM(M67:M75)","v":0}]
[null,{"$f":"IF(ISBLANK('Proces - Oversigt'!B72),\"\", 'Proces - Oversigt'!B72)","v":"I01 - Leverandørevaluering"}]
[null,{"$f":"IF(ISBLANK('Proces - Oversigt'!B73),\"\", 'Proces - Oversigt'!B73)","v":"I02 - Leverandøraftaler"}]
[null,{"$f":"IF(ISBLANK('Proces - Oversigt'!B74),\"\", 'Proces - Oversigt'!B74)","v":"I03 - Behovsberegning og disponering"}]
[null,{"$f":"IF(ISBLANK('Proces - Oversigt'!B75),\"\", 'Proces - Oversigt'!B75)","v":"I04 - Indkøbsordrer"}]
[null,{"$f":"IF(ISBLANK('Proces - Oversigt'!B76),\"\", 'Proces - Oversigt'!B76)","v":"I05 - Reklamationsbehandling"}]
[null,{"$f":"IF(ISBLANK('Proces - Oversigt'!B77),\"\", 'Proces - Oversigt'!B77)","v":"I06 - Vedligehold af indkøbte varers kostpriser - kostprisafv."}]
[null,{"$f":"IF(ISBLANK('Proces - Oversigt'!B78),\"\", 'Proces - Oversigt'!B78)","v":"I07"}]
[null,{"$f":"IF(ISBLANK('Proces - Oversigt'!B79),\"\", 'Proces - Oversigt'!B79)","v":"I08"}]
[null,{"$f":"IF(ISBLANK('Proces - Oversigt'!B80),\"\", 'Proces - Oversigt'!B80)","v":"I11 - Kvalitetsstyring"}]
[null,{"$f":"IF(ISBLANK('Proces - Oversigt'!B81),\"\", 'Proces - Oversigt'!B81)","v":"I12 - Økonomi, rapportering, planlægning"}]
[null,{"$f":"IF(ISBLANK('Proces - Oversigt'!B82),\"\", 'Proces - Oversigt'!B82)","v":"I13 - HR opgaver"}]
[null,{"$f":"IF(ISBLANK('Proces - Oversigt'!B83),\"\", 'Proces - Oversigt'!B83)","v":""}]
[null,{"$f":"IF(ISBLANK('Proces - Oversigt'!B84),\"\", 'Proces - Oversigt'!B84)","v":"B - Økonomiopgaver"},{"$f":"SUM(C80:C89)","v":0},{"$f":"SUM(D80:D89)","v":0},0,0,0,0,0,0,0,{"$f":"SUM(L80:L89)","v":0},{"$f":"SUM(M80:M89)","v":0}]
[null,{"$f":"IF(ISBLANK('Proces - Oversigt'!B85),\"\", 'Proces - Oversigt'!B85)","v":"B01 - Finans, debitor og kreditor"}]
[null,{"$f":"IF(ISBLANK('Proces - Oversigt'!B86),\"\", 'Proces - Oversigt'!B86)","v":"B02 - Gage og lønninger"}]
[null,{"$f":"IF(ISBLANK('Proces - Oversigt'!B87),\"\", 'Proces - Oversigt'!B87)","v":"B03 - Budgetlægning"}]
[null,{"$f":"IF(ISBLANK('Proces - Oversigt'!B88),\"\", 'Proces - Oversigt'!B88)","v":"B04 - Likviditetsstyring"}]
[null,{"$f":"IF(ISBLANK('Proces - Oversigt'!B89),\"\", 'Proces - Oversigt'!B89)","v":"B05"}]
[null,{"$f":"IF(ISBLANK('Proces - Oversigt'!B90),\"\", 'Proces - Oversigt'!B90)","v":"B06"}]
[null,{"$f":"IF(ISBLANK('Proces - Oversigt'!B91),\"\", 'Proces - Oversigt'!B91)","v":"B11 - Reklamationsbehandling"}]
[null,{"$f":"IF(ISBLANK('Proces - Oversigt'!B92),\"\", 'Proces - Oversigt'!B92)","v":"B12 - Økonomi, rapportering, planlægning"}]
[null,{"$f":"IF(ISBLANK('Proces - Oversigt'!B93),\"\", 'Proces - Oversigt'!B93)","v":"B13 - HR opgaver"}]
[null,{"$f":"IF(ISBLANK('Proces - Oversigt'!B94),\"\", 'Proces - Oversigt'!B94)","v":""}]
[null,{"$f":"'Proces - Oversigt'!B95","v":"Hovedaktivtet 8 - opgaver"},{"$f":"SUM(C91:C98)","v":0},{"$f":"SUM(D91:D98)","v":0},0,0,0,0,0,0,0,{"$f":"SUM(L91:L98)","v":0},0]
[null,{"$f":"'Proces - Oversigt'!B96","v":"aktivitet 1"}]
[null,{"$f":"'Proces - Oversigt'!B97","v":"aktivitet 2"}]
[null,{"$f":"'Proces - Oversigt'!B98","v":"aktivitet 3"}]
[null,{"$f":"'Proces - Oversigt'!B99","v":"aktivitet 4"}]
[null,{"$f":"'Proces - Oversigt'!B100","v":"aktivitet 5"}]
[null,{"$f":"'Proces - Oversigt'!B101","v":"aktivitet 6"}]
[null,{"$f":"'Proces - Oversigt'!B102","v":"aktivitet 7"}]
[null,{"$f":"'Proces - Oversigt'!B103","v":"aktivitet 8"}]
[null,{"$f":"'Proces - Oversigt'!B104","v":0}]
[null,{"$f":"'Proces - Oversigt'!B105","v":"Hovedaktivtet 9 - opgaver"},{"$f":"SUM(C101:C108)","v":0},{"$f":"SUM(D101:D108)","v":0},0,0,0,0,0,0,0,{"$f":"SUM(L101:L108)","v":0},0]
[null,{"$f":"'Proces - Oversigt'!B106","v":"aktivitet 1"}]
[null,{"$f":"'Proces - Oversigt'!B107","v":"aktivitet 2"}]
[null,{"$f":"'Proces - Oversigt'!B108","v":"aktivitet 3"}]
[null,{"$f":"'Proces - Oversigt'!B109","v":"aktivitet 4"}]
[null,{"$f":"'Proces - Oversigt'!B110","v":"aktivitet 5"}]
[null,{"$f":"'Proces - Oversigt'!B111","v":"aktivitet 6"}]
[null,{"$f":"'Proces - Oversigt'!B112","v":"aktivitet 7"}]
[null,{"$f":"'Proces - Oversigt'!B113","v":"aktivitet 8"}]
[null,{"$f":"'Proces - Oversigt'!B114","v":0}]
[null,{"$f":"'Proces - Oversigt'!B115","v":"Hovedaktivtet 10 - opgaver"},{"$f":"SUM(C111:C118)","v":0},{"$f":"SUM(D111:D118)","v":0},0,0,0,0,0,0,0,{"$f":"SUM(L111:L118)","v":0},0]
[null,{"$f":"'Proces - Oversigt'!B116","v":"aktivitet 1"}]
[null,{"$f":"'Proces - Oversigt'!B117","v":"aktivitet 2"}]
[null,{"$f":"'Proces - Oversigt'!B118","v":"aktivitet 3"}]
[null,{"$f":"'Proces - Oversigt'!B119","v":"aktivitet 4"}]
[null,{"$f":"'Proces - Oversigt'!B120","v":"aktivitet 5"}]
[null,{"$f":"'Proces - Oversigt'!B121","v":"aktivitet 6"}]
[null,{"$f":"'Proces - Oversigt'!B122","v":"aktivitet 7"}]
[null,{"$f":"'Proces - Oversigt'!B123","v":"aktivitet 8"}]
[null,{"$f":"'Proces - Oversigt'!B124","v":0}]
[]
[]
[null,null,null,{"$f":"D4","v":"Ledelse"},{"$f":"E4","v":"Salg"},"Produktion","PTF","Lager","Indkøb","Bogholderi","A1",{"$f":"L4","v":"A2"},{"$f":"M4","v":"A3"}]
[null,"Timer pr. afdeling - forbrugt",null,{"$f":"D90+D79+D66+D51+D38+D24+D12+D5","v":0},0,0,0,0,0,0,0,0,0]
[null,"Timer pr. afdeling max",null,{"$f":"D3*$C$127","v":37},{"$f":"E3*$C$127","v":37},37,37,37,37,37,37,37,37]
[]
[null,"Beregningsfelter"]
[null,"Antal timer pr. uge",37]

{"sheet":"Proces - Kompetencer","index":5,"n_rows":138,"n_cols":38,"rows_kept":138,"cut":false,"hidden":false,"merged":[[8,29,10,29],[8,30,10,30],[8,31,10,31],[8,32,10,32],[2,2,10,2],[2,9,7,11],[2,12,7,14],[2,3,7,5],[2,6,7,8],[8,3,10,3],[8,4,10,4],[8,5,10,5],[8,6,10,6],[8,7,10,7],[8,8,10,8],[8,13,10,13],[2,36,10,36],[2,37,10,37],[8,16,10,16],[8,17,10,17],[8,18,10,18],[8,23,10,23],[8,19,10,19],[8,20,10,20],[2,33,7,35],[8,33,10,33],[8,34,10,34],[8,35,10,35],[2,27,7,29],[2,30,7,32],[8,27,10,27],[8,28,10,28],[2,1,10,1],[2,24,7,26],[2,21,7,23],[8,21,10,21],[8,22,10,22],[8,24,10,24],[8,25,10,25],[8,26,10,26],[8,9,10,9],[8,10,10,10],[8,11,10,11],[8,12,10,12],[8,14,10,14],[8,15,10,15],[2,15,7,17],[2,18,7,20]]}
[]
[]
[null,null,"Transaktioner og dokumentation",{"$f":"'Proces - Oversigt'!B127","v":"Ledelse"},null,null,{"$f":"'Proces - Oversigt'!B128","v":"Salg"},null,null,{"$f":"'Proces - Oversigt'!B129","v":"Produktion"},null,null,{"$f":"'Proces - Oversigt'!B130","v":"PTF"},null,null,{"$f":"'Proces - Oversigt'!B131","v":"Lager"},null,null,{"$f":"'Proces - Oversigt'!B132","v":"Indkøb"},null,null,{"$f":"'Proces - Oversigt'!$B133","v":"Bogholderi"},null,null,{"$f":"'Proces - Oversigt'!$B134","v":"A1"},null,null,{"$f":"'Proces - Oversigt'!$B135","v":"A2"},null,null,{"$f":"'Proces - Oversigt'!$B136","v":"A3"},null,null,{"$f":"'Proces - Oversigt'!$B137","v":0},null,null,"Samlet vurdering pr. aktivitet"]
[]
[]
[]
[]
[]
[null,null,null,"Organisatorisk","Teknologisk","Medarb. Komp.","Organisatorisk","Teknologisk","Medarb. Komp.","Organisatorisk","Teknologisk","Medarb. Komp.","Organisatorisk","Teknologisk","Medarb. Komp.","Organisatorisk","Teknologisk","Medarb. Komp.","Organisatorisk","Teknologisk","Medarb. Komp.","Organisatorisk","Teknologisk","Medarb. Komp.","Organisatorisk","Teknologisk","Medarb. Komp.","Organisatorisk","Teknologisk","Medarb. Komp.","Organisatorisk","Teknologisk","Medarb. Komp.","Organisatorisk","Teknologisk","Medarb. Komp."]
[]
[]
[null,{"$f":"IF(ISBLANK('Proces - Belastning'!B5),\"\", 'Proces - Belastning'!B5)","v":"L - Ledelsesopgaver"},null,{"$f":"IF(COUNT(D13:D18)=0,0,AVERAGE(D13:D18))","v":0},{"$f":"IF(COUNT(E13:E18)=0,0,AVERAGE(E13:E18))","v":0},0,0,0,0,0,0,0,0,0,0,0,0,0,0,0,0,0,0,0,0,0,0,0,0,0,0,0,0,0,0,0,{"$f":"AVERAGEIF(AK13:AK15,\">0\",AK13:AK14)","v":{"$error":"#DIV/0!"}},"Kommentarer"]
[null,{"$f":"IF(ISBLANK('Proces - Belastning'!B6),\"\", 'Proces - Belastning'!B6)","v":"L01 - Koordinering af ledergruppe"},{"$f":"'Proces - Belastning'!C5","v":0},null,null,null,null,null,null,null,null,null,null,null,null,null,null,null,null,null,null,null,null,null,null,null,null,null,null,null,null,null,null,null,null,null,{"$f":"IF(COUNT(D13:AJ13)=0,0,AVERAGE(D13:AA13))","v":0}]
[null,{"$f":"IF(ISBLANK('Proces - Belastning'!B7),\"\", 'Proces - Belastning'!B7)","v":"L02 - Kvalitetsstyring - reklamationer"},{"$f":"'Proces - Belastning'!C6","v":0},null,null,null,null,null,null,null,null,null,null,null,null,null,null,null,null,null,null,null,null,null,null,null,null,null,null,null,null,null,null,null,null,null,{"$f":"IF(COUNT(D14:AJ14)=0,0,AVERAGE(D14:AA14))","v":0}]
[null,{"$f":"IF(ISBLANK('Proces - Belastning'!B8),\"\", 'Proces - Belastning'!B8)","v":"L03 - Projektstyring"},{"$f":"'Proces - Belastning'!C7","v":0},null,null,null,null,null,null,null,null,null,null,null,null,null,null,null,null,null,null,null,null,null,null,null,null,null,null,null,null,null,null,null,null,null,0]
[null,{"$f":"IF(ISBLANK('Proces - Belastning'!B9),\"\", 'Proces - Belastning'!B9)","v":"L04 - Kontraktforhandlinger"},{"$f":"'Proces - Belastning'!C8","v":0},null,null,null,null,null,null,null,null,null,null,null,null,null,null,null,null,null,null,null,null,null,null,null,null,null,null,null,null,null,null,null,null,null,{"$f":"IF(COUNT(D16:AJ16)=0,0,AVERAGE(D16:AA16))","v":0}]
[null,{"$f":"IF(ISBLANK('Proces - Belastning'!B10),\"\", 'Proces - Belastning'!B10)","v":"L05 - Økonomi, rapportering, planlægning"},{"$f":"'Proces - Belastning'!C9","v":0},null,null,null,null,null,null,null,null,null,null,null,null,null,null,null,null,null,null,null,null,null,null,null,null,null,null,null,null,null,null,null,null,null,0]
[null,{"$f":"IF(ISBLANK('Proces - Belastning'!B11),\"\", 'Proces - Belastning'!B11)","v":""}]
[null,{"$f":"IF(ISBLANK('Proces - Belastning'!B12),\"\", 'Proces - Belastning'!B12)","v":"S - Salgsopgaver"},{"$f":"'Proces - Belastning'!C11","v":0},{"$f":"IF(COUNT(D20:D28)=0,0,AVERAGE(D20:D28))","v":0},{"$f":"IF(COUNT(E20:E28)=0,0,AVERAGE(E20:E28))","v":0},0,0,0,0,0,0,0,0,0,0,0,0,0,0,0,0,0,0,0,0,0,0,0,0,0,0,0,0,0,0,0,{"$f":"AVERAGEIF(AK20:AK28,\">0\",AK20:AK28)","v":{"$error":"#DIV/0!"}}]
[null,{"$f":"IF(ISBLANK('Proces - Belastning'!B13),\"\", 'Proces - Belastning'!B13)","v":"S01 - Salgsordre - almindelige ordre"},{"$f":"'Proces - Belastning'!C12","v":0},null,null,null,null,null,null,null,null,null,null,null,null,null,null,null,null,null,null,null,null,null,null,null,null,null,null,null,null,null,null,null,null,null,0]
[null,{"$f":"IF(ISBLANK('Proces - Belastning'!B14),\"\", 'Proces - Belastning'!B14)","v":"S02 - Salgsordre - projekter, 1. gangsleverancer/prototyper"},{"$f":"'Proces - Belastning'!C13","v":0},null,null,null,null,null,null,null,null,null,null,null,null,null,null,null,null,null,null,null,null,null,null,null,null,null,null,null,null,null,null,null,null,null,0]
[null,{"$f":"IF(ISBLANK('Proces - Belastning'!B15),\"\", 'Proces - Belastning'!B15)","v":"S03 - Tilbud , forespørgelser"},{"$f":"'Proces - Belastning'!C14","v":0},null,null,null,null,null,null,null,null,null,null,null,null,null,null,null,null,null,null,null,null,null,null,null,null,null,null,null,null,null,null,null,null,null,0]
[null,{"$f":"IF(ISBLANK('Proces - Belastning'!B16),\"\", 'Proces - Belastning'!B16)","v":"S04 - Ændrings- og hasteordre"},{"$f":"'Proces - Belastning'!C15","v":0},null,null,null,null,null,null,null,null,null,null,null,null,null,null,null,null,null,null,null,null,null,null,null,null,null,null,null,null,null,null,null,null,null,0]
[null,{"$f":"IF(ISBLANK('Proces - Belastning'!B17),\"\", 'Proces - Belastning'!B17)","v":"S05 - Kundebesøg, messer"},{"$f":"'Proces - Belastning'!C16","v":0},null,null,null,null,null,null,null,null,null,null,null,null,null,null,null,null,null,null,null,null,null,null,null,null,null,null,null,null,null,null,null,null,null,0]
[null,{"$f":"IF(ISBLANK('Proces - Belastning'!B18),\"\", 'Proces - Belastning'!B18)","v":"S06"},{"$f":"'Proces - Belastning'!C17","v":0},null,null,null,null,null,null,null,null,null,null,null,null,null,null,null,null,null,null,null,null,null,null,null,null,null,null,null,null,null,null,null,null,null,{"$f":"IF(COUNT(D25:AJ25)=0,0,AVERAGE(D25:AA25))","v":0}]
[null,{"$f":"IF(ISBLANK('Proces - Belastning'!B19),\"\", 'Proces - Belastning'!B19)","v":"S07"},{"$f":"'Proces - Belastning'!C17","v":0},null,null,null,null,null,null,null,null,null,null,null,null,null,null,null,null,null,null,null,null,null,null,null,null,null,null,null,null,null,null,null,null,null,0]
[null,{"$f":"IF(ISBLANK('Proces - Belastning'!B20),\"\", 'Proces - Belastning'!B20)","v":"S11 - Kvalitetsstyring"},{"$f":"'Proces - Belastning'!C19","v":0},null,null,null,null,null,null,null,null,null,null,null,null,null,null,null,null,null,null,null,null,null,null,null,null,null,null,null,null,null,null,null,null,null,0]
[null,{"$f":"IF(ISBLANK('Proces - Belastning'!B21),\"\", 'Proces - Belastning'!B21)","v":"S12 - Økonomi, rapportering, planlægning"},{"$f":"'Proces - Belastning'!C20","v":0},null,null,null,null,null,null,null,null,null,null,null,null,null,null,null,null,null,null,null,null,null,null,null,null,null,null,null,null,null,null,null,null,null,0]
[null,{"$f":"IF(ISBLANK('Proces - Belastning'!B22),\"\", 'Proces - Belastning'!B22)","v":"S13 - HR opgaver"},{"$f":"'Proces - Belastning'!C21","v":0},null,null,null,null,null,null,null,null,null,null,null,null,null,null,null,null,null,null,null,null,null,null,null,null,null,null,null,null,null,null,null,null,null,{"$f":"IF(COUNT(D29:AJ29)=0,0,AVERAGE(D29:AA29))","v":0}]
[null,{"$f":"IF(ISBLANK('Proces - Belastning'!B23),\"\", 'Proces - Belastning'!B23)","v":""},{"$f":"'Proces - Belastning'!C21","v":0}]
[null,{"$f":"IF(ISBLANK('Proces - Belastning'!B24),\"\", 'Proces - Belastning'!B24)","v":"T - Opgaver vedr. Produktionsteknik - PTF"},{"$f":"'Proces - Belastning'!C22","v":0},{"$f":"IF(COUNT(D32:D40)=0,0,AVERAGE(D32:D40))","v":0},{"$f":"IF(COUNT(E32:E40)=0,0,AVERAGE(E32:E40))","v":0},0,0,0,0,0,0,0,0,0,0,0,0,0,0,0,0,{"$f":"IF(COUNT(V32:V38)=0,0,AVERAGE(V32:V40))","v":0},0,0,0,0,0,{"$f":"IF(COUNT(AB32:AB38)=0,0,AVERAGE(AB32:AB40))","v":0},0,0,0,0,0,{"$f":"IF(COUNT(AH32:AH38)=0,0,AVERAGE(AH32:AH40))","v":0},0,0,{"$f":"AVERAGEIF(AK32:AK40,\">0\",AK32:AK40)","v":{"$error":"#DIV/0!"}}]
[null,{"$f":"IF(ISBLANK('Proces - Belastning'!B25),\"\", 'Proces - Belastning'!B25)","v":"T01 - Produktionsgrundlag"},{"$f":"'Proces - Belastning'!C24","v":0},null,null,null,null,null,null,null,null,null,null,null,null,null,null,null,null,null,null,null,null,null,null,null,null,null,null,null,null,null,null,null,null,null,{"$f":"IF(COUNT(D32:AJ32)=0,0,AVERAGE(D32:AA32))","v":0}]
[null,{"$f":"IF(ISBLANK('Proces - Belastning'!B26),\"\", 'Proces - Belastning'!B26)","v":"T02 - Hjælpeværktøjer"},{"$f":"'Proces - Belastning'!C25","v":0},null,null,null,null,null,null,null,null,null,null,null,null,null,null,null,null,null,null,null,null,null,null,null,null,null,null,null,null,null,null,null,null,null,{"$f":"IF(COUNT(D33:AJ33)=0,0,AVERAGE(D33:AA33))","v":0}]
[null,{"$f":"IF(ISBLANK('Proces - Belastning'!B27),\"\", 'Proces - Belastning'!B27)","v":"T03 - Prototyper, nulserier og vareprøver"},{"$f":"'Proces - Belastning'!C26","v":0},null,null,null,null,null,null,null,null,null,null,null,null,null,null,null,null,null,null,null,null,null,null,null,null,null,null,null,null,null,null,null,null,null,0]
[null,{"$f":"IF(ISBLANK('Proces - Belastning'!B28),\"\", 'Proces - Belastning'!B28)","v":"T04 - Produktkalkulation"},{"$f":"'Proces - Belastning'!C27","v":0},null,null,null,null,null,null,null,null,null,null,null,null,null,null,null,null,null,null,null,null,null,null,null,null,null,null,null,null,null,null,null,null,null,0]
[null,{"$f":"IF(ISBLANK('Proces - Belastning'!B29),\"\", 'Proces - Belastning'!B29)","v":"T05 - Procesoptimering"},{"$f":"'Proces - Belastning'!C28","v":0},null,null,null,null,null,null,null,null,null,null,null,null,null,null,null,null,null,null,null,null,null,null,null,null,null,null,null,null,null,null,null,null,null,0]
[null,{"$f":"IF(ISBLANK('Proces - Belastning'!B30),\"\", 'Proces - Belastning'!B30)","v":"T06 - Produktudvikling"},{"$f":"'Proces - Belastning'!C29","v":0},null,null,null,null,null,null,null,null,null,null,null,null,null,null,null,null,null,null,null,null,null,null,null,null,null,null,null,null,null,null,null,null,null,0]
[null,{"$f":"IF(ISBLANK('Proces - Belastning'!B31),\"\", 'Proces - Belastning'!B31)","v":"T07 - Teknisk salgssupport"},{"$f":"'Proces - Belastning'!C30","v":0},null,null,null,null,null,null,null,null,null,null,null,null,null,null,null,null,null,null,null,null,null,null,null,null,null,null,null,null,null,null,null,null,null,0]
[null,{"$f":"IF(ISBLANK('Proces - Belastning'!B32),\"\", 'Proces - Belastning'!B32)","v":"T08"},{"$f":"'Proces - Belastning'!C31","v":0},null,null,null,null,null,null,null,null,null,null,null,null,null,null,null,null,null,null,null,null,null,null,null,null,null,null,null,null,null,null,null,null,null,{"$f":"IF(COUNT(D39:AJ39)=0,0,AVERAGE(D39:AA39))","v":0}]
[null,{"$f":"IF(ISBLANK('Proces - Belastning'!B33),\"\", 'Proces - Belastning'!B33)","v":"T09"},{"$f":"'Proces - Belastning'!C31","v":0},null,null,null,null,null,null,null,null,null,null,null,null,null,null,null,null,null,null,null,null,null,null,null,null,null,null,null,null,null,null,null,null,null,0]
[null,{"$f":"IF(ISBLANK('Proces - Belastning'!B34),\"\", 'Proces - Belastning'!B34)","v":"T11 - Kvalitetsstyring"},{"$f":"'Proces - Belastning'!C33","v":0},null,null,null,null,null,null,null,null,null,null,null,null,null,null,null,null,null,null,null,null,null,null,null,null,null,null,null,null,null,null,null,null,null,0]
[null,{"$f":"IF(ISBLANK('Proces - Belastning'!B35),\"\", 'Proces - Belastning'!B35)","v":"T12 - Økonomi, rapportering, planlægning"},{"$f":"'Proces - Belastning'!C34","v":0},null,null,null,null,null,null,null,null,null,null,null,null,null,null,null,null,null,null,null,null,null,null,null,null,null,null,null,null,null,null,null,null,null,{"$f":"IF(COUNT(D42:AJ42)=0,0,AVERAGE(D42:AA42))","v":0}]
[null,{"$f":"IF(ISBLANK('Proces - Belastning'!B36),\"\", 'Proces - Belastning'!B36)","v":"T13 - HR opgaver"},{"$f":"'Proces - Belastning'!C35","v":0},null,null,null,null,null,null,null,null,null,null,null,null,null,null,null,null,null,null,null,null,null,null,null,null,null,null,null,null,null,null,null,null,null,{"$f":"IF(COUNT(D43:AJ43)=0,0,AVERAGE(D43:AA43))","v":0}]
[null,{"$f":"IF(ISBLANK('Proces - Belastning'!B37),\"\", 'Proces - Belastning'!B37)","v":""}]
[null,{"$f":"IF(ISBLANK('Proces - Belastning'!B38),\"\", 'Proces - Belastning'!B38)","v":"P - Produktionsopgaver"},{"$f":"'Proces - Belastning'!C37","v":0},{"$f":"IF(COUNT(D46:D53)=0,0,AVERAGE(D46:D54))","v":0},{"$f":"IF(COUNT(E46:E53)=0,0,AVERAGE(E46:E54))","v":0},0,0,0,0,0,0,0,0,0,0,0,0,0,0,0,0,0,0,0,0,0,0,{"$f":"IF(COUNT(AB46:AB53)=0,0,AVERAGE(AB46:AB54))","v":0},0,0,0,0,0,{"$f":"IF(COUNT(AH46:AH53)=0,0,AVERAGE(AH46:AH54))","v":0},0,0,{"$f":"AVERAGEIF(AK46:AK54,\">0\",AK46:AK54)","v":{"$error":"#DIV/0!"}}]
[null,{"$f":"IF(ISBLANK('Proces - Belastning'!B39),\"\", 'Proces - Belastning'!B39)","v":"P01 - Planlægning, hoved-finplan., "},{"$f":"'Proces - Belastning'!C38","v":0},null,null,null,null,null,null,null,null,null,null,null,null,null,null,null,null,null,null,null,null,null,null,null,null,null,null,null,null,null,null,null,null,null,{"$f":"IF(COUNT(D46:AJ46)=0,0,AVERAGE(D46:AA46))","v":0}]
[null,{"$f":"IF(ISBLANK('Proces - Belastning'!B40),\"\", 'Proces - Belastning'!B40)","v":"P02 - Klargøring og opstart af produktion"},{"$f":"'Proces - Belastning'!C39","v":0},null,null,null,null,null,null,null,null,null,null,null,null,null,null,null,null,null,null,null,null,null,null,null,null,null,null,null,null,null,null,null,null,null,{"$f":"IF(COUNT(D47:AJ47)=0,0,AVERAGE(D47:AA47))","v":0}]
[null,{"$f":"IF(ISBLANK('Proces - Belastning'!B41),\"\", 'Proces - Belastning'!B41)","v":"P03 - Værkstedsstyring og overvågning af leveringsterm."},{"$f":"'Proces - Belastning'!C40","v":0},null,null,null,null,null,null,null,null,null,null,null,null,null,null,null,null,null,null,null,null,null,null,null,null,null,null,null,null,null,null,null,null,null,0]
[null,{"$f":"IF(ISBLANK('Proces - Belastning'!B42),\"\", 'Proces - Belastning'!B42)","v":"P04 - Optimering af processer"},{"$f":"'Proces - Belastning'!C41","v":0},null,null,null,null,null,null,null,null,null,null,null,null,null,null,null,null,null,null,null,null,null,null,null,null,null,null,null,null,null,null,null,null,null,0]
[null,{"$f":"IF(ISBLANK('Proces - Belastning'!B43),\"\", 'Proces - Belastning'!B43)","v":"P05 - Instruktion og kompetenceudvikling af medarb."},{"$f":"'Proces - Belastning'!C42","v":0},null,null,null,null,null,null,null,null,null,null,null,null,null,null,null,null,null,null,null,null,null,null,null,null,null,null,null,null,null,null,null,null,null,0]
[null,{"$f":"IF(ISBLANK('Proces - Belastning'!B44),\"\", 'Proces - Belastning'!B44)","v":"P06 - Håndtering af ændrings- og hasteordre."},{"$f":"'Proces - Belastning'!C43","v":0},null,null,null,null,null,null,null,null,null,null,null,null,null,null,null,null,null,null,null,null,null,null,null,null,null,null,null,null,null,null,null,null,null,0]
[null,{"$f":"IF(ISBLANK('Proces - Belastning'!B45),\"\", 'Proces - Belastning'!B45)","v":"P07"},{"$f":"'Proces - Belastning'!C44","v":0},null,null,null,null,null,null,null,null,null,null,null,null,null,null,null,null,null,null,null,null,null,null,null,null,null,null,null,null,null,null,null,null,null,{"$f":"IF(COUNT(D52:AJ52)=0,0,AVERAGE(D52:AA52))","v":0}]
[null,{"$f":"IF(ISBLANK('Proces - Belastning'!B46),\"\", 'Proces - Belastning'!B46)","v":"P08"},{"$f":"'Proces - Belastning'!C44","v":0},null,null,null,null,null,null,null,null,null,null,null,null,null,null,null,null,null,null,null,null,null,null,null,null,null,null,null,null,null,null,null,null,null,0]
[null,{"$f":"IF(ISBLANK('Proces - Belastning'!B47),\"\", 'Proces - Belastning'!B47)","v":"P11 - Kvalitetsstyring"},{"$f":"'Proces - Belastning'!C46","v":0},null,null,null,null,null,null,null,null,null,null,null,null,null,null,null,null,null,null,null,null,null,null,null,null,null,null,null,null,null,null,null,null,null,0]
[null,{"$f":"IF(ISBLANK('Proces - Belastning'!B48),\"\", 'Proces - Belastning'!B48)","v":"P12 - Økonomi, rapportering, planlægning"},{"$f":"'Proces - Belastning'!C47","v":0},null,null,null,null,null,null,null,null,null,null,null,null,null,null,null,null,null,null,null,null,null,null,null,null,null,null,null,null,null,null,null,null,null,{"$f":"IF(COUNT(D55:AJ55)=0,0,AVERAGE(D55:AA55))","v":0}]
[null,{"$f":"IF(ISBLANK('Proces - Belastning'!B49),\"\", 'Proces - Belastning'!B49)","v":"P13 - HR opgaver"},{"$f":"'Proces - Belastning'!C48","v":0},null,null,null,null,null,null,null,null,null,null,null,null,null,null,null,null,null,null,null,null,null,null,null,null,null,null,null,null,null,null,null,null,null,0]
[null,{"$f":"IF(ISBLANK('Proces - Belastning'!B50),\"\", 'Proces - Belastning'!B50)","v":""}]
[null,{"$f":"IF(ISBLANK('Proces - Belastning'!B51),\"\", 'Proces - Belastning'!B51)","v":"L - Lager- og logistikopgaver"},{"$f":"'Proces - Belastning'!C50","v":0},{"$f":"IF(COUNT(D59:D65)=0,0,AVERAGE(D59:D66))","v":0},{"$f":"IF(COUNT(E59:E65)=0,0,AVERAGE(E59:E66))","v":0},0,0,0,0,0,0,0,0,0,0,0,0,0,0,0,0,0,0,0,0,0,0,{"$f":"IF(COUNT(AB59:AB65)=0,0,AVERAGE(AB59:AB66))","v":0},0,0,0,0,0,{"$f":"IF(COUNT(AH59:AH65)=0,0,AVERAGE(AH59:AH66))","v":0},0,0,{"$f":"AVERAGEIF(AK59:AK66,\">0\",AK59:AK66)","v":{"$error":"#DIV/0!"}}]
[null,{"$f":"IF(ISBLANK('Proces - Belastning'!B52),\"\", 'Proces - Belastning'!B52)","v":"L01 - Varemodtagelse, kontrol, registrering"},{"$f":"'Proces - Belastning'!C51","v":0},null,null,null,null,null,null,null,null,null,null,null,null,null,null,null,null,null,null,null,null,null,null,null,null,null,null,null,null,null,null,null,null,null,{"$f":"IF(COUNT(D59:AA59)=0,0,AVERAGE(D59:AA59))","v":0}]
[null,{"$f":"IF(ISBLANK('Proces - Belastning'!B53),\"\", 'Proces - Belastning'!B53)","v":"L02 - Lagerregnskab - Fysisk optælling af lagerbeholdning"},{"$f":"'Proces - Belastning'!C52","v":0},null,null,null,null,null,null,null,null,null,null,null,null,null,null,null,null,null,null,null,null,null,null,null,null,null,null,null,null,null,null,null,null,null,0]
[null,{"$f":"IF(ISBLANK('Proces - Belastning'!B54),\"\", 'Proces - Belastning'!B54)","v":"L03 - Udlevering af varer til produktion"},{"$f":"'Proces - Belastning'!C53","v":0},null,null,null,null,null,null,null,null,null,null,null,null,null,null,null,null,null,null,null,null,null,null,null,null,null,null,null,null,null,null,null,null,null,0]
[null,{"$f":"IF(ISBLANK('Proces - Belastning'!B55),\"\", 'Proces - Belastning'!B55)","v":"L04 - Klargøring af varer til forsendelse"},{"$f":"'Proces - Belastning'!C54","v":0},null,null,null,null,null,null,null,null,null,null,null,null,null,null,null,null,null,null,null,null,null,null,null,null,null,null,null,null,null,null,null,null,null,0]
[null,{"$f":"IF(ISBLANK('Proces - Belastning'!B56),\"\", 'Proces - Belastning'!B56)","v":"L05 - Forsendelsespapirer - bookning af transportør"},{"$f":"'Proces - Belastning'!C55","v":0},null,null,null,null,null,null,null,null,null,null,null,null,null,null,null,null,null,null,null,null,null,null,null,null,null,null,null,null,null,null,null,null,null,0]
[null,{"$f":"IF(ISBLANK('Proces - Belastning'!B57),\"\", 'Proces - Belastning'!B57)","v":"L06 - Pålæsning af varer - udgangskontrol"},{"$f":"'Proces - Belastning'!C56","v":0},null,null,null,null,null,null,null,null,null,null,null,null,null,null,null,null,null,null,null,null,null,null,null,null,null,null,null,null,null,null,null,null,null,0]
[null,{"$f":"IF(ISBLANK('Proces - Belastning'!B58),\"\", 'Proces - Belastning'!B58)","v":"L07 - Logistikaftaler - transport, lagerhotel, etc."},{"$f":"'Proces - Belastning'!C57","v":0},null,null,null,null,null,null,null,null,null,null,null,null,null,null,null,null,null,null,null,null,null,null,null,null,null,null,null,null,null,null,null,null,null,0]
[null,{"$f":"IF(ISBLANK('Proces - Belastning'!B59),\"\", 'Proces - Belastning'!B59)","v":"L08 - Håndtering af ændrings- og hasteordrer"},{"$f":"'Proces - Belastning'!C58","v":0},null,null,null,null,null,null,null,null,null,null,null,null,null,null,null,null,null,null,null,null,null,null,null,null,null,null,null,null,null,null,null,null,null,0]
[null,{"$f":"IF(ISBLANK('Proces - Belastning'!B60),\"\", 'Proces - Belastning'!B60)","v":"L09"},{"$f":"'Proces - Belastning'!C59","v":0},null,null,null,null,null,null,null,null,null,null,null,null,null,null,null,null,null,null,null,null,null,null,null,null,null,null,null,null,null,null,null,null,null,{"$f":"IF(COUNT(D67:AA67)=0,0,AVERAGE(D67:AA67))","v":0}]
[null,{"$f":"IF(ISBLANK('Proces - Belastning'!B61),\"\", 'Proces - Belastning'!B61)","v":"L10"},{"$f":"'Proces - Belastning'!C59","v":0},null,null,null,null,null,null,null,null,null,null,null,null,null,null,null,null,null,null,null,null,null,null,null,null,null,null,null,null,null,null,null,null,null,0]
[null,{"$f":"IF(ISBLANK('Proces - Belastning'!B62),\"\", 'Proces - Belastning'!B62)","v":"L11 - Kvalitetsstyring"},{"$f":"'Proces - Belastning'!C61","v":0},null,null,null,null,null,null,null,null,null,null,null,null,null,null,null,null,null,null,null,null,null,null,null,null,null,null,null,null,null,null,null,null,null,0]
[null,{"$f":"IF(ISBLANK('Proces - Belastning'!B63),\"\", 'Proces - Belastning'!B63)","v":"L12 - Økonomi, rapportering, planlægning"},{"$f":"'Proces - Belastning'!C62","v":0},null,null,null,null,null,null,null,null,null,null,null,null,null,null,null,null,null,null,null,null,null,null,null,null,null,null,null,null,null,null,null,null,null,{"$f":"IF(COUNT(D70:AA70)=0,0,AVERAGE(D70:AA70))","v":0}]
[null,{"$f":"IF(ISBLANK('Proces - Belastning'!B64),\"\", 'Proces - Belastning'!B64)","v":"L13 - HR opgaver"},{"$f":"'Proces - Belastning'!C63","v":0},null,null,null,null,null,null,null,null,null,null,null,null,null,null,null,null,null,null,null,null,null,null,null,null,null,null,null,null,null,null,null,null,null,0]
[null,{"$f":"IF(ISBLANK('Proces - Belastning'!B65),\"\", 'Proces - Belastning'!B65)","v":""}]
[null,{"$f":"IF(ISBLANK('Proces - Belastning'!B66),\"\", 'Proces - Belastning'!B66)","v":"I - Indkøbsopgaver"},{"$f":"'Proces - Belastning'!C65","v":0},{"$f":"IF(COUNT(D74:D81)=0,0,AVERAGE(D74:D82))","v":0},{"$f":"IF(COUNT(E74:E81)=0,0,AVERAGE(E74:E82))","v":0},0,0,0,0,0,0,0,0,0,0,0,0,0,0,0,0,0,0,0,0,0,0,{"$f":"IF(COUNT(AB74:AB81)=0,0,AVERAGE(AB74:AB82))","v":0},0,0,0,0,0,{"$f":"IF(COUNT(AH74:AH81)=0,0,AVERAGE(AH74:AH82))","v":0},0,0,{"$f":"AVERAGEIF(AK74:AK82,\">0\",AK74:AK82)","v":{"$error":"#DIV/0!"}}]
[null,{"$f":"IF(ISBLANK('Proces - Belastning'!B67),\"\", 'Proces - Belastning'!B67)","v":"I01 - Leverandørevaluering"},{"$f":"'Proces - Belastning'!C66","v":0},null,null,null,null,null,null,null,null,null,null,null,null,null,null,null,null,null,null,null,null,null,null,null,null,null,null,null,null,null,null,null,null,null,0]
[null,{"$f":"IF(ISBLANK('Proces - Belastning'!B68),\"\", 'Proces - Belastning'!B68)","v":"I02 - Leverandøraftaler"},{"$f":"'Proces - Belastning'!C67","v":0},null,null,null,null,null,null,null,null,null,null,null,null,null,null,null,null,null,null,null,null,null,null,null,null,null,null,null,null,null,null,null,null,null,0]
[null,{"$f":"IF(ISBLANK('Proces - Belastning'!B69),\"\", 'Proces - Belastning'!B69)","v":"I03 - Behovsberegning og disponering"},{"$f":"'Proces - Belastning'!C68","v":0},null,null,null,null,null,null,null,null,null,null,null,null,null,null,null,null,null,null,null,null,null,null,null,null,null,null,null,null,null,null,null,null,null,0]
[null,{"$f":"IF(ISBLANK('Proces - Belastning'!B70),\"\", 'Proces - Belastning'!B70)","v":"I04 - Indkøbsordrer"},{"$f":"'Proces - Belastning'!C69","v":0},null,null,null,null,null,null,null,null,null,null,null,null,null,null,null,null,null,null,null,null,null,null,null,null,null,null,null,null,null,null,null,null,null,0]
[null,{"$f":"IF(ISBLANK('Proces - Belastning'!B71),\"\", 'Proces - Belastning'!B71)","v":"I05 - Reklamationsbehandling"},{"$f":"'Proces - Belastning'!C70","v":0},null,null,null,null,null,null,null,null,null,null,null,null,null,null,null,null,null,null,null,null,null,null,null,null,null,null,null,null,null,null,null,null,null,0]
[null,{"$f":"IF(ISBLANK('Proces - Belastning'!B72),\"\", 'Proces - Belastning'!B72)","v":"I06 - Vedligehold af indkøbte varers kostpriser - kostprisafv."},{"$f":"'Proces - Belastning'!C71","v":0},null,null,null,null,null,null,null,null,null,null,null,null,null,null,null,null,null,null,null,null,null,null,null,null,null,null,null,null,null,null,null,null,null,0]
[null,{"$f":"IF(ISBLANK('Proces - Belastning'!B73),\"\", 'Proces - Belastning'!B73)","v":"I07"},{"$f":"'Proces - Belastning'!C72","v":0},null,null,null,null,null,null,null,null,null,null,null,null,null,null,null,null,null,null,null,null,null,null,null,null,null,null,null,null,null,null,null,null,null,0]
[null,{"$f":"IF(ISBLANK('Proces - Belastning'!B74),\"\", 'Proces - Belastning'!B74)","v":"I08"},{"$f":"'Proces - Belastning'!C72","v":0},null,null,null,null,null,null,null,null,null,null,null,null,null,null,null,null,null,null,null,null,null,null,null,null,null,null,null,null,null,null,null,null,null,0]
[null,{"$f":"IF(ISBLANK('Proces - Belastning'!B75),\"\", 'Proces - Belastning'!B75)","v":"I11 - Kvalitetsstyring"},{"$f":"'Proces - Belastning'!C74","v":0},null,null,null,null,null,null,null,null,null,null,null,null,null,null,null,null,null,null,null,null,null,null,null,null,null,null,null,null,null,null,null,null,null,0]
[null,{"$f":"IF(ISBLANK('Proces - Belastning'!B76),\"\", 'Proces - Belastning'!B76)","v":"I12 - Økonomi, rapportering, planlægning"},{"$f":"'Proces - Belastning'!C75","v":0},null,null,null,null,null,null,null,null,null,null,null,null,null,null,null,null,null,null,null,null,null,null,null,null,null,null,null,null,null,null,null,null,null,0]
[null,{"$f":"IF(ISBLANK('Proces - Belastning'!B77),\"\", 'Proces - Belastning'!B77)","v":"I13 - HR opgaver"},{"$f":"'Proces - Belastning'!C76","v":0},null,null,null,null,null,null,null,null,null,null,null,null,null,null,null,null,null,null,null,null,null,null,null,null,null,null,null,null,null,null,null,null,null,{"$f":"IF(COUNT(D84:AA84)=0,0,AVERAGE(D84:AA84))","v":0}]
[null,{"$f":"IF(ISBLANK('Proces - Belastning'!B78),\"\", 'Proces - Belastning'!B78)","v":""}]
[null,{"$f":"IF(ISBLANK('Proces - Belastning'!B79),\"\", 'Proces - Belastning'!B79)","v":"B - Økonomiopgaver"},{"$f":"'Proces - Belastning'!C77","v":0},{"$f":"IF(COUNT(D87:D94)=0,0,AVERAGE(D87:D95))","v":0},{"$f":"IF(COUNT(E87:E94)=0,0,AVERAGE(E87:E95))","v":0},0,0,0,0,0,0,0,0,0,0,0,0,0,0,0,0,0,0,0,0,0,0,{"$f":"IF(COUNT(AB87:AB94)=0,0,AVERAGE(AB87:AB95))","v":0},0,0,0,0,0,{"$f":"IF(COUNT(AH87:AH94)=0,0,AVERAGE(AH87:AH95))","v":0},0,0,{"$f":"AVERAGEIF(AK87:AK95,\">0\",AK87:AK95)","v":{"$error":"#DIV/0!"}}]
[null,{"$f":"IF(ISBLANK('Proces - Belastning'!B80),\"\", 'Proces - Belastning'!B80)","v":"B01 - Finans, debitor og kreditor"},{"$f":"'Proces - Belastning'!C78","v":0},null,null,null,null,null,null,null,null,null,null,null,null,null,null,null,null,null,null,null,null,null,null,null,null,null,null,null,null,null,null,null,null,null,0]
[null,{"$f":"IF(ISBLANK('Proces - Belastning'!B81),\"\", 'Proces - Belastning'!B81)","v":"B02 - Gage og lønninger"},{"$f":"'Proces - Belastning'!C79","v":0},null,null,null,null,null,null,null,null,null,null,null,null,null,null,null,null,null,null,null,null,null,null,null,null,null,null,null,null,null,null,null,null,null,0]
[null,{"$f":"IF(ISBLANK('Proces - Belastning'!B82),\"\", 'Proces - Belastning'!B82)","v":"B03 - Budgetlægning"},{"$f":"'Proces - Belastning'!C80","v":0},null,null,null,null,null,null,null,null,null,null,null,null,null,null,null,null,null,null,null,null,null,null,null,null,null,null,null,null,null,null,null,null,null,0]
[null,{"$f":"IF(ISBLANK('Proces - Belastning'!B83),\"\", 'Proces - Belastning'!B83)","v":"B04 - Likviditetsstyring"},{"$f":"'Proces - Belastning'!C81","v":0},null,null,null,null,null,null,null,null,null,null,null,null,null,null,null,null,null,null,null,null,null,null,null,null,null,null,null,null,null,null,null,null,null,0]
[null,{"$f":"IF(ISBLANK('Proces - Belastning'!B84),\"\", 'Proces - Belastning'!B84)","v":"B05"},{"$f":"'Proces - Belastning'!C82","v":0},null,null,null,null,null,null,null,null,null,null,null,null,null,null,null,null,null,null,null,null,null,null,null,null,null,null,null,null,null,null,null,null,null,0]
[null,{"$f":"IF(ISBLANK('Proces - Belastning'!B85),\"\", 'Proces - Belastning'!B85)","v":"B06"},{"$f":"'Proces - Belastning'!C82","v":0},null,null,null,null,null,null,null,null,null,null,null,null,null,null,null,null,null,null,null,null,null,null,null,null,null,null,null,null,null,null,null,null,null,0]
[null,{"$f":"IF(ISBLANK('Proces - Belastning'!B86),\"\", 'Proces - Belastning'!B86)","v":"B11 - Reklamationsbehandling"},{"$f":"'Proces - Belastning'!C83","v":0},null,null,null,null,null,null,null,null,null,null,null,null,null,null,null,null,null,null,null,null,null,null,null,null,null,null,null,null,null,null,null,null,null,0]
[null,{"$f":"IF(ISBLANK('Proces - Belastning'!B87),\"\", 'Proces - Belastning'!B87)","v":"B12 - Økonomi, rapportering, planlægning"},{"$f":"'Proces - Belastning'!C85","v":0},null,null,null,null,null,null,null,null,null,null,null,null,null,null,null,null,null,null,null,null,null,null,null,null,null,null,null,null,null,null,null,null,null,0]
[null,{"$f":"IF(ISBLANK('Proces - Belastning'!B88),\"\", 'Proces - Belastning'!B88)","v":"B13 - HR opgaver"},{"$f":"'Proces - Belastning'!C86","v":0},null,null,null,null,null,null,null,null,null,null,null,null,null,null,null,null,null,null,null,null,null,null,null,null,null,null,null,null,null,null,null,null,null,0]
[null,{"$f":"IF(ISBLANK('Proces - Belastning'!B89),\"\", 'Proces - Belastning'!B89)","v":""}]
[null,{"$f":"'Proces - Oversigt'!B95","v":"Hovedaktivtet 8 - opgaver"},{"$f":"'Proces - Belastning'!C88","v":0},{"$f":"IF(COUNT(D98:D104)=0,0,AVERAGE(D98:D105))","v":0},{"$f":"IF(COUNT(E98:E104)=0,0,AVERAGE(E98:E105))","v":0},0,0,0,0,0,0,0,0,0,0,0,0,0,0,0,0,0,0,0,0,0,0,{"$f":"IF(COUNT(AB98:AB104)=0,0,AVERAGE(AB98:AB105))","v":0},0,0,0,0,0,{"$f":"IF(COUNT(AH98:AH104)=0,0,AVERAGE(AH98:AH105))","v":0},0,0,{"$f":"IF(COUNT(AK98:AK106)=0,0,AVERAGE(AK98:AK105))","v":0}]
[null,{"$f":"'Proces - Oversigt'!B96","v":"aktivitet 1"},{"$f":"'Proces - Belastning'!C89","v":0},null,null,null,null,null,null,null,null,null,null,null,null,null,null,null,null,null,null,null,null,null,null,null,null,null,null,null,null,null,null,null,null,null,0]
[null,{"$f":"'Proces - Oversigt'!B97","v":"aktivitet 2"},{"$f":"'Proces - Belastning'!C90","v":0},null,null,null,null,null,null,null,null,null,null,null,null,null,null,null,null,null,null,null,null,null,null,null,null,null,null,null,null,null,null,null,null,null,0]
[null,{"$f":"'Proces - Oversigt'!B98","v":"aktivitet 3"},{"$f":"'Proces - Belastning'!C91","v":0},null,null,null,null,null,null,null,null,null,null,null,null,null,null,null,null,null,null,null,null,null,null,null,null,null,null,null,null,null,null,null,null,null,0]
[null,{"$f":"'Proces - Oversigt'!B99","v":"aktivitet 4"},{"$f":"'Proces - Belastning'!C92","v":0},null,null,null,null,null,null,null,null,null,null,null,null,null,null,null,null,null,null,null,null,null,null,null,null,null,null,null,null,null,null,null,null,null,0]
[null,{"$f":"'Proces - Oversigt'!B100","v":"aktivitet 5"},{"$f":"'Proces - Belastning'!C93","v":0},null,null,null,null,null,null,null,null,null,null,null,null,null,null,null,null,null,null,null,null,null,null,null,null,null,null,null,null,null,null,null,null,null,0]
[null,{"$f":"'Proces - Oversigt'!B101","v":"aktivitet 6"},{"$f":"'Proces - Belastning'!C94","v":0},null,null,null,null,null,null,null,null,null,null,null,null,null,null,null,null,null,null,null,null,null,null,null,null,null,null,null,null,null,null,null,null,null,0]
[null,{"$f":"'Proces - Oversigt'!B102","v":"aktivitet 7"},{"$f":"'Proces - Belastning'!C95","v":0},null,null,null,null,null,null,null,null,null,null,null,null,null,null,null,null,null,null,null,null,null,null,null,null,null,null,null,null,null,null,null,null,null,0]
[null,{"$f":"'Proces - Oversigt'!B103","v":"aktivitet 8"},{"$f":"'Proces - Belastning'!C96","v":0},null,null,null,null,null,null,null,null,null,null,null,null,null,null,null,null,null,null,null,null,null,null,null,null,null,null,null,null,null,null,null,null,null,0]
[null,{"$f":"'Proces - Oversigt'!B104","v":0},{"$f":"'Proces - Belastning'!C97","v":0}]
[null,{"$f":"'Proces - Oversigt'!B105","v":"Hovedaktivtet 9 - opgaver"},{"$f":"'Proces - Belastning'!C98","v":0},{"$f":"IF(COUNT(D108:D114)=0,0,AVERAGE(D108:D115))","v":0},{"$f":"IF(COUNT(E108:E114)=0,0,AVERAGE(E108:E115))","v":0},0,0,0,0,0,0,0,0,0,0,0,0,0,0,0,0,0,0,0,0,0,0,0,0,0,0,0,0,0,0,0,{"$f":"IF(COUNT(AK108:AK116)=0,0,AVERAGE(AK108:AK115))","v":0}]
[null,{"$f":"'Proces - Oversigt'!B106","v":"aktivitet 1"},{"$f":"'Proces - Belastning'!C99","v":0},null,null,null,null,null,null,null,null,null,null,null,null,null,null,null,null,null,null,null,null,null,null,null,null,null,null,null,null,null,null,null,null,null,0]
[null,{"$f":"'Proces - Oversigt'!B107","v":"aktivitet 2"},{"$f":"'Proces - Belastning'!C100","v":0},null,null,null,null,null,null,null,null,null,null,null,null,null,null,null,null,null,null,null,null,null,null,null,null,null,null,null,null,null,null,null,null,null,{"$f":"IF(COUNT(D109:AA109)=0,0,AVERAGE(D109:AA109))","v":0}]
[null,{"$f":"'Proces - Oversigt'!B108","v":"aktivitet 3"},{"$f":"'Proces - Belastning'!C101","v":0},null,null,null,null,null,null,null,null,null,null,null,null,null,null,null,null,null,null,null,null,null,null,null,null,null,null,null,null,null,null,null,null,null,0]
[null,{"$f":"'Proces - Oversigt'!B109","v":"aktivitet 4"},{"$f":"'Proces - Belastning'!C102","v":0},null,null,null,null,null,null,null,null,null,null,null,null,null,null,null,null,null,null,null,null,null,null,null,null,null,null,null,null,null,null,null,null,null,0]
[null,{"$f":"'Proces - Oversigt'!B110","v":"aktivitet 5"},{"$f":"'Proces - Belastning'!C103","v":0},null,null,null,null,null,null,null,null,null,null,null,null,null,null,null,null,null,null,null,null,null,null,null,null,null,null,null,null,null,null,null,null,null,0]
[null,{"$f":"'Proces - Oversigt'!B111","v":"aktivitet 6"},{"$f":"'Proces - Belastning'!C104","v":0},null,null,null,null,null,null,null,null,null,null,null,null,null,null,null,null,null,null,null,null,null,null,null,null,null,null,null,null,null,null,null,null,null,0]
[null,{"$f":"'Proces - Oversigt'!B112","v":"aktivitet 7"},{"$f":"'Proces - Belastning'!C105","v":0},null,null,null,null,null,null,null,null,null,null,null,null,null,null,null,null,null,null,null,null,null,null,null,null,null,null,null,null,null,null,null,null,null,0]
[null,{"$f":"'Proces - Oversigt'!B113","v":"aktivitet 8"},{"$f":"'Proces - Belastning'!C106","v":0},null,null,null,null,null,null,null,null,null,null,null,null,null,null,null,null,null,null,null,null,null,null,null,null,null,null,null,null,null,null,null,null,null,0]
[null,{"$f":"'Proces - Oversigt'!B114","v":0},{"$f":"'Proces - Belastning'!C107","v":0}]
[null,{"$f":"'Proces - Oversigt'!B115","v":"Hovedaktivtet 10 - opgaver"},{"$f":"'Proces - Belastning'!C108","v":0},{"$f":"IF(COUNT(D118:D124)=0,0,AVERAGE(D118:D125))","v":0},{"$f":"IF(COUNT(E118:E124)=0,0,AVERAGE(E118:E125))","v":0},{"$f":"IF(COUNT(F118:F124)=0,0,AVERAGE(F118:F125))","v":0},{"$f":"IF(COUNT(G118:G124)=0,0,AVERAGE(G118:G125))","v":0},{"$f":"IF(COUNT(H118:H124)=0,0,AVERAGE(H118:H125))","v":0},{"$f":"IF(COUNT(I118:I124)=0,0,AVERAGE(I118:I125))","v":0},{"$f":"IF(COUNT(J118:J124)=0,0,AVERAGE(J118:J125))","v":0},{"$f":"IF(COUNT(K118:K124)=0,0,AVERAGE(K118:K125))","v":0},{"$f":"IF(COUNT(L118:L124)=0,0,AVERAGE(L118:L125))","v":0},{"$f":"IF(COUNT(M118:M124)=0,0,AVERAGE(M118:M125))","v":0},{"$f":"IF(COUNT(N118:N124)=0,0,AVERAGE(N118:N125))","v":0},{"$f":"IF(COUNT(O118:O124)=0,0,AVERAGE(O118:O125))","v":0},{"$f":"IF(COUNT(P118:P124)=0,0,AVERAGE(P118:P125))","v":0},{"$f":"IF(COUNT(Q118:Q124)=0,0,AVERAGE(Q118:Q125))","v":0},{"$f":"IF(COUNT(R118:R124)=0,0,AVERAGE(R118:R125))","v":0},{"$f":"IF(COUNT(S118:S124)=0,0,AVERAGE(S118:S125))","v":0},{"$f":"IF(COUNT(T118:T124)=0,0,AVERAGE(T118:T125))","v":0},{"$f":"IF(COUNT(U118:U124)=0,0,AVERAGE(U118:U125))","v":0},{"$f":"IF(COUNT(V118:V124)=0,0,AVERAGE(V118:V125))","v":0},{"$f":"IF(COUNT(W118:W124)=0,0,AVERAGE(W118:W125))","v":0},{"$f":"IF(COUNT(X118:X124)=0,0,AVERAGE(X118:X125))","v":0},{"$f":"IF(COUNT(Y118:Y124)=0,0,AVERAGE(Y118:Y125))","v":0},{"$f":"IF(COUNT(Z118:Z124)=0,0,AVERAGE(Z118:Z125))","v":0},{"$f":"IF(COUNT(AA118:AA124)=0,0,AVERAGE(AA118:AA125))","v":0},{"$f":"IF(COUNT(AB118:AB124)=0,0,AVERAGE(AB118:AB125))","v":0},{"$f":"IF(COUNT(AC118:AC124)=0,0,AVERAGE(AC118:AC125))","v":0},{"$f":"IF(COUNT(AD118:AD124)=0,0,AVERAGE(AD118:AD125))","v":0},{"$f":"IF(COUNT(AE118:AE124)=0,0,AVERAGE(AE118:AE125))","v":0},{"$f":"IF(COUNT(AF118:AF124)=0,0,AVERAGE(AF118:AF125))","v":0},{"$f":"IF(COUNT(AG118:AG124)=0,0,AVERAGE(AG118:AG125))","v":0},{"$f":"IF(COUNT(AH118:AH124)=0,0,AVERAGE(AH118:AH125))","v":0},{"$f":"IF(COUNT(AI118:AI124)=0,0,AVERAGE(AI118:AI125))","v":0},{"$f":"IF(COUNT(AJ118:AJ124)=0,0,AVERAGE(AJ118:AJ125))","v":0},{"$f":"IF(COUNT(AK118:AK126)=0,0,AVERAGE(AK118:AK125))","v":0}]
[null,{"$f":"'Proces - Oversigt'!B116","v":"aktivitet 1"},{"$f":"'Proces - Belastning'!C109","v":0},null,null,null,null,null,null,null,null,null,null,null,null,null,null,null,null,null,null,null,null,null,null,null,null,null,null,null,null,null,null,null,null,null,{"$f":"IF(COUNT(D118:AA118)=0,0,AVERAGE(D118:AA118))","v":0}]
[null,{"$f":"'Proces - Oversigt'!B117","v":"aktivitet 2"},{"$f":"'Proces - Belastning'!C110","v":0},null,null,null,null,null,null,null,null,null,null,null,null,null,null,null,null,null,null,null,null,null,null,null,null,null,null,null,null,null,null,null,null,null,0]
[null,{"$f":"'Proces - Oversigt'!B118","v":"aktivitet 3"},{"$f":"'Proces - Belastning'!C111","v":0},null,null,null,null,null,null,null,null,null,null,null,null,null,null,null,null,null,null,null,null,null,null,null,null,null,null,null,null,null,null,null,null,null,0]
[null,{"$f":"'Proces - Oversigt'!B119","v":"aktivitet 4"},{"$f":"'Proces - Belastning'!C112","v":0},null,null,null,null,null,null,null,null,null,null,null,null,null,null,null,null,null,null,null,null,null,null,null,null,null,null,null,null,null,null,null,null,null,0]
[null,{"$f":"'Proces - Oversigt'!B120","v":"aktivitet 5"},{"$f":"'Proces - Belastning'!C113","v":0},null,null,null,null,null,null,null,null,null,null,null,null,null,null,null,null,null,null,null,null,null,null,null,null,null,null,null,null,null,null,null,null,null,0]
[null,{"$f":"'Proces - Oversigt'!B121","v":"aktivitet 6"},{"$f":"'Proces - Belastning'!C114","v":0},null,null,null,null,null,null,null,null,null,null,null,null,null,null,null,null,null,null,null,null,null,null,null,null,null,null,null,null,null,null,null,null,null,0]
[null,{"$f":"'Proces - Oversigt'!B122","v":"aktivitet 7"},{"$f":"'Proces - Belastning'!C115","v":0},null,null,null,null,null,null,null,null,null,null,null,null,null,null,null,null,null,null,null,null,null,null,null,null,null,null,null,null,null,null,null,null,null,0]
[null,{"$f":"'Proces - Oversigt'!B123","v":"aktivitet 8"},{"$f":"'Proces - Belastning'!C116","v":0},null,null,null,null,null,null,null,null,null,null,null,null,null,null,null,null,null,null,null,null,null,null,null,null,null,null,null,null,null,null,null,null,null,0]
[null,{"$f":"'Proces - Oversigt'!B124","v":0},{"$f":"'Proces - Belastning'!C117","v":0}]
[null,null,null,{"$f":"IF(COUNT(D128:D134)=0,0,AVERAGE(D128:D135))","v":0},{"$f":"IF(COUNT(E128:E134)=0,0,AVERAGE(E128:E135))","v":0},{"$f":"IF(COUNT(F128:F134)=0,0,AVERAGE(F128:F135))","v":0},{"$f":"IF(COUNT(G128:G134)=0,0,AVERAGE(G128:G135))","v":0},{"$f":"IF(COUNT(H128:H134)=0,0,AVERAGE(H128:H135))","v":0},{"$f":"IF(COUNT(I128:I134)=0,0,AVERAGE(I128:I135))","v":0},{"$f":"IF(COUNT(J128:J134)=0,0,AVERAGE(J128:J135))","v":0},{"$f":"IF(COUNT(K128:K134)=0,0,AVERAGE(K128:K135))","v":0},{"$f":"IF(COUNT(L128:L134)=0,0,AVERAGE(L128:L135))","v":0},{"$f":"IF(COUNT(M128:M134)=0,0,AVERAGE(M128:M135))","v":0},{"$f":"IF(COUNT(N128:N134)=0,0,AVERAGE(N128:N135))","v":0},{"$f":"IF(COUNT(O128:O134)=0,0,AVERAGE(O128:O135))","v":0},{"$f":"IF(COUNT(P128:P134)=0,0,AVERAGE(P128:P135))","v":0},{"$f":"IF(COUNT(Q128:Q134)=0,0,AVERAGE(Q128:Q135))","v":0},{"$f":"IF(COUNT(R128:R134)=0,0,AVERAGE(R128:R135))","v":0},{"$f":"IF(COUNT(S128:S134)=0,0,AVERAGE(S128:S135))","v":0},{"$f":"IF(COUNT(T128:T134)=0,0,AVERAGE(T128:T135))","v":0},{"$f":"IF(COUNT(U128:U134)=0,0,AVERAGE(U128:U135))","v":0},{"$f":"IF(COUNT(V128:V134)=0,0,AVERAGE(V128:V135))","v":0},{"$f":"IF(COUNT(W128:W134)=0,0,AVERAGE(W128:W135))","v":0},{"$f":"IF(COUNT(X128:X134)=0,0,AVERAGE(X128:X135))","v":0},{"$f":"IF(COUNT(Y128:Y134)=0,0,AVERAGE(Y128:Y135))","v":0},{"$f":"IF(COUNT(Z128:Z134)=0,0,AVERAGE(Z128:Z135))","v":0},{"$f":"IF(COUNT(AA128:AA134)=0,0,AVERAGE(AA128:AA135))","v":0},{"$f":"IF(COUNT(AB128:AB134)=0,0,AVERAGE(AB128:AB135))","v":0},{"$f":"IF(COUNT(AC128:AC134)=0,0,AVERAGE(AC128:AC135))","v":0},{"$f":"IF(COUNT(AD128:AD134)=0,0,AVERAGE(AD128:AD135))","v":0},{"$f":"IF(COUNT(AE128:AE134)=0,0,AVERAGE(AE128:AE135))","v":0},{"$f":"IF(COUNT(AF128:AF134)=0,0,AVERAGE(AF128:AF135))","v":0},{"$f":"IF(COUNT(AG128:AG134)=0,0,AVERAGE(AG128:AG135))","v":0},{"$f":"IF(COUNT(AH128:AH134)=0,0,AVERAGE(AH128:AH135))","v":0},{"$f":"IF(COUNT(AI128:AI134)=0,0,AVERAGE(AI128:AI135))","v":0},{"$f":"IF(COUNT(AJ128:AJ134)=0,0,AVERAGE(AJ128:AJ135))","v":0},{"$f":"IF(COUNT(AK128:AK136)=0,0,AVERAGE(AK128:AK135))","v":0}]
[null,null,{"$f":"SUM('Proces - Belastning'!C111,E123)","v":0},null,null,null,null,null,null,null,null,null,null,null,null,null,null,null,null,null,null,null,null,null,null,null,null,null,null,null,null,null,null,null,null,null,0]
[null,null,{"$f":"SUM('Proces - Belastning'!C112,E124)","v":0},null,null,null,null,null,null,null,null,null,null,null,null,null,null,null,null,null,null,null,null,null,null,null,null,null,null,null,null,null,null,null,null,null,0]
[null,null,{"$f":"SUM('Proces - Belastning'!C113,E125)","v":0},null,null,null,null,null,null,null,null,null,null,null,null,null,null,null,null,null,null,null,null,null,null,null,null,null,null,null,null,null,null,null,null,null,0]
[null,null,{"$f":"SUM('Proces - Belastning'!C114,E126)","v":0},null,null,null,null,null,null,null,null,null,null,null,null,null,null,null,null,null,null,null,null,null,null,null,null,null,null,null,null,null,null,null,null,null,0]
[null,null,{"$f":"SUM('Proces - Belastning'!C115,E127)","v":0},null,null,null,null,null,null,null,null,null,null,null,null,null,null,null,null,null,null,null,null,null,null,null,null,null,null,null,null,null,null,null,null,null,0]
[null,null,{"$f":"SUM('Proces - Belastning'!C116,E128)","v":0},null,null,null,null,null,null,null,null,null,null,null,null,null,null,null,null,null,null,null,null,null,null,null,null,null,null,null,null,null,null,null,null,null,0]
[null,null,{"$f":"SUM('Proces - Belastning'!C117,E129)","v":0},null,null,null,null,null,null,null,null,null,null,null,null,null,null,null,null,null,null,null,null,null,null,null,null,null,null,null,null,null,null,null,null,null,0]
[null,null,{"$f":"SUM('Proces - Belastning'!C118,E130)","v":0},null,null,null,null,null,null,null,null,null,null,null,null,null,null,null,null,null,null,null,null,null,null,null,null,null,null,null,null,null,null,null,null,null,0]
[]
[]
[null,"Samlet vurdering",null,{"$f":"SUM(D12,D19)/INDEX(FREQUENCE((D12,D19),{0}),2)","v":{"$error":"#NAME?"}},{"$f":"SUM(E12,E19,E31,E45,E58,E73,E86)/INDEX(FREQUENCE((E12,E19,E31,E45,E58,E73,E86),{0}),2)","v":{"$error":"#NAME?"}},{"$f":"SUM(A1,#REF!,A2,A6)/INDEX(FREQUENCY((A1,#REF!,A2,A6),{0}),2)","v":{"$error":"#REF!"}},{"$f":"SUM(B1,#REF!,B2,B6)/INDEX(FREQUENCY((B1,#REF!,B2,B6),{0}),2)","v":{"$error":"#REF!"}},{"$f":"SUM(C1,#REF!,C2,C6)/INDEX(FREQUENCY((C1,#REF!,C2,C6),{0}),2)","v":{"$error":"#REF!"}},{"$f":"SUM(D1,#REF!,D2,D6)/INDEX(FREQUENCY((D1,#REF!,D2,D6),{0}),2)","v":{"$error":"#REF!"}},{"$f":"SUM(E1,#REF!,E2,E6)/INDEX(FREQUENCY((E1,#REF!,E2,E6),{0}),2)","v":{"$error":"#REF!"}},{"$f":"SUM(F1,#REF!,F2,F6)/INDEX(FREQUENCY((F1,#REF!,F2,F6),{0}),2)","v":{"$error":"#REF!"}},{"$f":"SUM(G1,#REF!,G2,G6)/INDEX(FREQUENCY((G1,#REF!,G2,G6),{0}),2)","v":{"$error":"#REF!"}},{"$f":"SUM(H1,#REF!,H2,H6)/INDEX(FREQUENCY((H1,#REF!,H2,H6),{0}),2)","v":{"$error":"#REF!"}},{"$f":"SUM(I1,#REF!,I2,I6)/INDEX(FREQUENCY((I1,#REF!,I2,I6),{0}),2)","v":{"$error":"#REF!"}},{"$f":"SUM(J1,#REF!,J2,J6)/INDEX(FREQUENCY((J1,#REF!,J2,J6),{0}),2)","v":{"$error":"#REF!"}},{"$f":"SUM(K1,#REF!,K2,K6)/INDEX(FREQUENCY((K1,#REF!,K2,K6),{0}),2)","v":{"$error":"#REF!"}},{"$f":"SUM(L1,#REF!,L2,L6)/INDEX(FREQUENCY((L1,#REF!,L2,L6),{0}),2)","v":{"$error":"#REF!"}},{"$f":"SUM(M1,#REF!,M2,M6)/INDEX(FREQUENCY((M1,#REF!,M2,M6),{0}),2)","v":{"$error":"#REF!"}},{"$f":"SUM(N1,#REF!,N2,N6)/INDEX(FREQUENCY((N1,#REF!,N2,N6),{0}),2)","v":{"$error":"#REF!"}},{"$f":"SUM(O1,#REF!,O2,O6)/INDEX(FREQUENCY((O1,#REF!,O2,O6),{0}),2)","v":{"$error":"#REF!"}},{"$f":"SUM(P1,#REF!,P2,P6)/INDEX(FREQUENCY((P1,#REF!,P2,P6),{0}),2)","v":{"$error":"#REF!"}},{"$f":"AVERAGE(V12,V31,V45,V58,V73,V86,V97,V107,V117,V127)","v":0},0,0,0,0,0,0,0,0,0,0,0,0,0,0]

{"sheet":"Organisation","index":6,"n_rows":20,"n_cols":19,"rows_kept":20,"cut":false,"hidden":true,"merged":[[1,10,9,10],[8,11,9,13],[0,1,0,4],[0,6,0,9],[1,1,9,1],[1,2,9,2],[1,3,9,3],[1,4,9,4],[1,5,9,5],[1,6,9,6],[1,7,9,7],[1,8,9,8],[1,9,9,9],[17,11,17,13],[8,15,8,18],[10,11,10,13],[12,11,12,13],[13,11,13,13],[14,11,14,13],[14,15,14,17],[11,11,11,13]]}
[null,"Værdier",null,null,null,null,"Vurdering"]
[null,"Antal medarbejdere","Aldersgennemsnit - i år","Fastholdelsesfrekvensen i %","Ledergruppe - antal fra",null,"Kompetenceniveau","Forandringsparathed",null,"Forretningsgange - \"certificeret\"","Samlet vurdering",null,"Kategori-vægt",{"$f":"AVERAGEIF(K11:K18,\">0\",K11:K18)","v":3}]
[]
[]
[]
[]
[]
[]
[null,null,null,null,null,null,null,null,null,null,null,"Kommentar",null,null,null,"Ordreomkostninger"]
["Organisation",null,null,null,null,null,null,null,null,null,null,null,null,null,null,"Ty-pe","An-tal","Bel. %","tkr"]
["Daglig ledelse",null,null,null,null,null,3,null,null,null,{"$f":"IF(AND(G11>=0,H11>=0,I11>=0,J11>=0),AVERAGE(G11:J11),\"\")","v":3},null,null,null,null,"TAP",0,0,0]
[" Administration",null,null,null,null,null,0,null,null,null,0,null,null,null,null,"VIP",0,0,0]
["Udvikling ",null,null,null,null,null,0,null,null,null,0,null,null,null,null,"OPR",0,0,0]
["Produktion og PTA",null,null,null,null,null,0,null,null,null,0]
["Lager og forsendelse",null,null,null,null,null,0,null,null,null,0,null,null,null,null,"Total",null,null,{"$f":"SUM(S11:S14)","v":0}]
["Salg",null,null,null,null,null,0,null,null,null,0]
["Informationsteknologi    ",null,null,null,null,null,0,null,null,null,0]
["Ledergruppe",null,null,null,null,null,0,null,null,null,0]
[null,null,null,null,null,null,{"$f":"AVERAGE(G11:G18)","v":0.375}]
[null,null,"Tast kun i de farvede felter"]

{"sheet":"Proces - Vurderinger","index":7,"n_rows":45,"n_cols":12,"rows_kept":45,"cut":false,"hidden":false,"merged":[[13,1,13,10],[1,1,1,10],[24,1,24,10]]}
[]
[null,"Timeforbrug pr uge"]
["Aktivitet",{"$f":"'Proces - Oversigt'!B127","v":"Ledelse"},{"$f":"'Proces - Oversigt'!B128","v":"Salg"},{"$f":"'Proces - Oversigt'!B129","v":"Produktion"},{"$f":"'Proces - Oversigt'!B130","v":"PTF"},{"$f":"'Proces - Oversigt'!B131","v":"Lager"},{"$f":"'Proces - Oversigt'!B132","v":"Indkøb"},{"$f":"'Proces - Oversigt'!B133","v":"Bogholderi"},{"$f":"'Proces - Oversigt'!B134","v":"A1"},{"$f":"'Proces - Oversigt'!B135","v":"A2"},{"$f":"'Proces - Oversigt'!B136","v":"A3"},"Summeringer"]
[{"$f":"'Proces - Oversigt'!B10","v":"L - Ledelsesopgaver"},{"$f":"IF(ISBLANK('Proces - Belastning'!D5),\"\", 'Proces - Belastning'!D5)","v":0},{"$f":"IF(ISBLANK('Proces - Belastning'!E5),\"\", 'Proces - Belastning'!E5)","v":0},{"$f":"IF(ISBLANK('Proces - Belastning'!F5),\"\", 'Proces - Belastning'!F5)","v":0},{"$f":"IF(ISBLANK('Proces - Belastning'!G5),\"\", 'Proces - Belastning'!G5)","v":0},{"$f":"IF(ISBLANK('Proces - Belastning'!H5),\"\", 'Proces - Belastning'!H5)","v":0},{"$f":"IF(ISBLANK('Proces - Belastning'!I5),\"\", 'Proces - Belastning'!I5)","v":0},{"$f":"IF(ISBLANK('Proces - Belastning'!J5),\"\", 'Proces - Belastning'!J5)","v":0},{"$f":"IF(ISBLANK('Proces - Belastning'!K5),\"\", 'Proces - Belastning'!K5)","v":0},{"$f":"IF(ISBLANK('Proces - Belastning'!L5),\"\", 'Proces - Belastning'!L5)","v":0},{"$f":"'Proces - Belastning'!M5","v":0},{"$f":"SUM(B4:K4)","v":0}]
[{"$f":"'Proces - Oversigt'!B17","v":"S - Salgsopgaver"},{"$f":"'Proces - Belastning'!D12","v":0},{"$f":"'Proces - Belastning'!E12","v":0},{"$f":"'Proces - Belastning'!F12","v":0},{"$f":"'Proces - Belastning'!G12","v":0},{"$f":"'Proces - Belastning'!H12","v":0},{"$f":"'Proces - Belastning'!I12","v":0},{"$f":"'Proces - Belastning'!J12","v":0},{"$f":"'Proces - Belastning'!K12","v":0},{"$f":"'Proces - Belastning'!L12","v":0},{"$f":"'Proces - Belastning'!M6","v":0},0]
[{"$f":"'Proces - Oversigt'!B29","v":"T - Opgaver vedr. Produktionsteknik - PTF"},{"$f":"'Proces - Belastning'!D24","v":0},{"$f":"'Proces - Belastning'!E24","v":0},{"$f":"'Proces - Belastning'!F24","v":0},{"$f":"'Proces - Belastning'!G24","v":0},{"$f":"'Proces - Belastning'!H24","v":0},{"$f":"'Proces - Belastning'!I24","v":0},{"$f":"'Proces - Belastning'!J24","v":0},{"$f":"'Proces - Belastning'!K24","v":0},{"$f":"'Proces - Belastning'!L24","v":0},{"$f":"'Proces - Belastning'!M7","v":0},0]
[{"$f":"'Proces - Oversigt'!B43","v":"P - Produktionsopgaver"},{"$f":"'Proces - Belastning'!D38","v":0},{"$f":"'Proces - Belastning'!E38","v":0},{"$f":"'Proces - Belastning'!F38","v":0},{"$f":"'Proces - Belastning'!G38","v":0},{"$f":"'Proces - Belastning'!H38","v":0},{"$f":"'Proces - Belastning'!I38","v":0},{"$f":"'Proces - Belastning'!J38","v":0},{"$f":"'Proces - Belastning'!K38","v":0},{"$f":"'Proces - Belastning'!L38","v":0},{"$f":"'Proces - Belastning'!M8","v":0},0]
[{"$f":"'Proces - Oversigt'!B56","v":"L - Lager- og logistikopgaver"},{"$f":"'Proces - Belastning'!D51","v":0},{"$f":"'Proces - Belastning'!E51","v":0},{"$f":"'Proces - Belastning'!F51","v":0},{"$f":"'Proces - Belastning'!G51","v":0},{"$f":"'Proces - Belastning'!H51","v":0},{"$f":"'Proces - Belastning'!I51","v":0},{"$f":"'Proces - Belastning'!J51","v":0},{"$f":"'Proces - Belastning'!K51","v":0},{"$f":"'Proces - Belastning'!L51","v":0},{"$f":"'Proces - Belastning'!M11","v":0},0]
[{"$f":"'Proces - Oversigt'!B71","v":"I - Indkøbsopgaver"},{"$f":"'Proces - Belastning'!D66","v":0},{"$f":"'Proces - Belastning'!E66","v":0},{"$f":"'Proces - Belastning'!F66","v":0},{"$f":"'Proces - Belastning'!G66","v":0},{"$f":"'Proces - Belastning'!H66","v":0},{"$f":"'Proces - Belastning'!I66","v":0},{"$f":"'Proces - Belastning'!J66","v":0},{"$f":"'Proces - Belastning'!K66","v":0},{"$f":"'Proces - Belastning'!L66","v":0},{"$f":"'Proces - Belastning'!M12","v":0},0]
[{"$f":"'Proces - Oversigt'!B84","v":"B - Økonomiopgaver"},{"$f":"'Proces - Belastning'!D79","v":0},{"$f":"'Proces - Belastning'!E79","v":0},{"$f":"'Proces - Belastning'!F79","v":0},{"$f":"'Proces - Belastning'!G79","v":0},{"$f":"'Proces - Belastning'!H79","v":0},{"$f":"'Proces - Belastning'!I79","v":0},{"$f":"'Proces - Belastning'!J79","v":0},{"$f":"'Proces - Belastning'!K79","v":0},{"$f":"'Proces - Belastning'!L79","v":0},{"$f":"'Proces - Belastning'!M79","v":0},0]
[{"$f":"'Proces - Belastning'!B90","v":"Hovedaktivtet 8 - opgaver"},{"$f":"'Proces - Belastning'!D90","v":0},{"$f":"'Proces - Belastning'!E90","v":0},{"$f":"'Proces - Belastning'!F90","v":0},{"$f":"'Proces - Belastning'!G90","v":0},{"$f":"'Proces - Belastning'!H90","v":0},{"$f":"'Proces - Belastning'!I90","v":0},{"$f":"'Proces - Belastning'!J90","v":0},{"$f":"'Proces - Belastning'!K90","v":0},{"$f":"'Proces - Belastning'!L90","v":0},{"$f":"'Proces - Belastning'!M90","v":0}]
[{"$f":"'Proces - Belastning'!B100","v":"Hovedaktivtet 9 - opgaver"},{"$f":"'Proces - Belastning'!D100","v":0},{"$f":"'Proces - Belastning'!E100","v":0},{"$f":"'Proces - Belastning'!F100","v":0},{"$f":"'Proces - Belastning'!G100","v":0},{"$f":"'Proces - Belastning'!H100","v":0},{"$f":"'Proces - Belastning'!I100","v":0},{"$f":"'Proces - Belastning'!J100","v":0},{"$f":"'Proces - Belastning'!K100","v":0},{"$f":"'Proces - Belastning'!L100","v":0},{"$f":"'Proces - Belastning'!M100","v":0}]
[{"$f":"'Proces - Belastning'!B110","v":"Hovedaktivtet 10 - opgaver"},{"$f":"'Proces - Belastning'!D110","v":0},{"$f":"'Proces - Belastning'!E110","v":0},{"$f":"'Proces - Belastning'!F110","v":0},{"$f":"'Proces - Belastning'!G110","v":0},{"$f":"'Proces - Belastning'!H110","v":0},{"$f":"'Proces - Belastning'!I110","v":0},{"$f":"'Proces - Belastning'!J110","v":0},{"$f":"'Proces - Belastning'!K110","v":0},{"$f":"'Proces - Belastning'!L110","v":0},{"$f":"'Proces - Belastning'!M110","v":0}]
[null,"Timeforbrug pr. måned"]
[{"$f":"A4","v":"L - Ledelsesopgaver"},{"$f":"B4*$B$44/$B$45","v":0},0,0,0,0,0,0,0,0,0,{"$f":"SUM(B15:K15)","v":0}]
["S - Salgsopgaver",{"$f":"B5*$B$44/$B$45","v":0},0,0,0,0,0,0,0,0,0,0]
["T - Opgaver vedr. Produktionsteknik - PTF",{"$f":"B6*$B$44/$B$45","v":0},0,0,0,0,0,0,0,0,0,0]
["P - Produktionsopgaver",{"$f":"B7*$B$44/$B$45","v":0},0,0,0,0,0,0,0,0,0,0]
["L - Lager- og logistikopgaver",{"$f":"B8*$B$44/$B$45","v":0},0,0,0,0,0,0,0,0,0,0]
["I - Indkøbsopgaver",{"$f":"B9*$B$44/$B$45","v":0},0,0,0,0,0,0,0,0,0,0]
["B - Økonomiopgaver",{"$f":"B10*$B$44/$B$45","v":0},0,0,0,0,0,0,0,0,0,0]
[{"$f":"'Rutine-oversigt'!B76","v":"B - Økonomiopgaver"},{"$f":"B11*$B$44/$B$45","v":0},0,0,0,0,0,0,0,0,0]
[{"$f":"'Rutine-oversigt'!B86","v":"Hovedaktivtet 8 - opgaver"},{"$f":"B12*$B$44/$B$45","v":0},0,0,0,0,0,0,0,0,0]
[{"$f":"'Rutine-oversigt'!B96","v":"Hovedaktivtet 9 - opgaver"},{"$f":"B13*$B$44/$B$45","v":0},0,0,0,0,0,0,0,0,0]
[null,"Omkostning pr mnd."]
[{"$f":"A4","v":"L - Ledelsesopgaver"},{"$f":"(B4*$B$44*$C$42)/12","v":0},{"$f":"(C4*$B$44*$C$40)/12","v":0},0,0,0,0,0,0,0,0,{"$f":"SUM(B26:K26)","v":0}]
["S - Salgsopgaver",0,{"$f":"(C5*$B$44*$C$40)/12","v":0},0,0,0,0,0,0,0,0,0]
["T - Opgaver vedr. Produktionsteknik - PTF",0,{"$f":"(C6*$B$44*$C$40)/12","v":0},0,0,0,0,0,0,0,0,0]
["P - Produktionsopgaver",0,{"$f":"(C7*$B$44*$C$40)/12","v":0},0,0,0,0,0,0,0,0,0]
["L - Lager- og logistikopgaver",0,{"$f":"(C8*$B$44*$C$40)/12","v":0},0,0,0,0,0,0,0,0,0]
["I - Indkøbsopgaver",0,{"$f":"(C9*$B$44*$C$40)/12","v":0},0,0,0,0,0,0,0,0,0]
["B - Økonomiopgaver",0,{"$f":"(C10*$B$44*$C$40)/12","v":0},0,0,0,0,0,0,0,0,0]
["Hovedaktivtet 8 - opgaver",0,{"$f":"(C11*$B$44*$C$40)/12","v":0},0,0,0,0,0,0,0,0]
["Hovedaktivtet 9 - opgaver",0,{"$f":"(C12*$B$44*$C$40)/12","v":0},0,0,0,0,0,0,0,0]
["Hovedaktivtet 10 - opgaver",0,{"$f":"(C13*$B$44*$C$40)/12","v":0},0,0,0,0,0,0,0,0]
[]
["Total",{"$f":"SUM(B26:B36)","v":0},{"$f":"SUM(C26:C36)","v":0},0,0,0,0,0,0,{"$f":"SUM(J26:J36)","v":0},0,{"$f":"SUM(B37:K37)","v":0}]
[]
[null,null,"Kr/time"]
["Operatør",300000,{"$f":"B40/B43","v":178.57142857142858}]
["Administration",350000,{"$f":"B41/B43","v":208.33333333333334}]
["Ledelse",500000,{"$f":"B42/B43","v":297.61904761904759}]
["Total timer pr år",1680]
["Uger pr. år",52]
["Timer pr. mnd",170]

{"sheet":"Kompetence Vurderinger","index":8,"n_rows":176,"n_cols":5,"rows_kept":176,"cut":false,"hidden":false,"merged":[]}
[]
[null,"Indsatsområder - generelt"]
[]
[null,"Aktiviteter","Kategori værdi","Vægtning","Vægtet værdier"]
[null,{"$f":"'Menu - hovedaktiviteter'!C7","v":"L - Ledelsesopgaver"},{"$f":"'Proces - Kompetencer'!AK12","v":{"$error":"#DIV/0!"}},{"$f":"'Menu - hovedaktiviteter'!D7","v":0.15},{"$f":"((5-C5)*D5)*100","v":{"$error":"#DIV/0!"}}]
[null,{"$f":"'Menu - hovedaktiviteter'!C8","v":"S - Salgsopgaver"},{"$f":"'Proces - Kompetencer'!AK19","v":{"$error":"#DIV/0!"}},{"$f":"'Menu - hovedaktiviteter'!D8","v":0.15},{"$f":"((5-C6)*D6)*100","v":{"$error":"#DIV/0!"}}]
[null,{"$f":"'Menu - hovedaktiviteter'!C9","v":"T - Opgaver vedr. Produktionsteknik - PTF"},{"$f":"'Proces - Kompetencer'!AK31","v":{"$error":"#DIV/0!"}},{"$f":"'Menu - hovedaktiviteter'!D9","v":0.15},{"$error":"#DIV/0!"}]
[null,{"$f":"'Menu - hovedaktiviteter'!C10","v":"P - Produktionsopgaver"},{"$f":"'Proces - Kompetencer'!AK45","v":{"$error":"#DIV/0!"}},{"$f":"'Menu - hovedaktiviteter'!D10","v":0.15},{"$error":"#DIV/0!"}]
[null,{"$f":"'Menu - hovedaktiviteter'!C11","v":"L - Lager- og logistikopgaver"},{"$f":"'Proces - Kompetencer'!AK58","v":{"$error":"#DIV/0!"}},{"$f":"'Menu - hovedaktiviteter'!D11","v":0.15},{"$error":"#DIV/0!"}]
[null,{"$f":"'Menu - hovedaktiviteter'!C12","v":"I - Indkøbsopgaver"},{"$f":"'Proces - Kompetencer'!AK73","v":{"$error":"#DIV/0!"}},{"$f":"'Menu - hovedaktiviteter'!D12","v":0.15},{"$error":"#DIV/0!"}]
[null,{"$f":"'Menu - hovedaktiviteter'!C13","v":"B - Økonomiopgaver"},{"$f":"'Proces - Kompetencer'!AK86","v":{"$error":"#DIV/0!"}},{"$f":"'Menu - hovedaktiviteter'!D13","v":0.1},{"$error":"#DIV/0!"}]
[null,{"$f":"'Menu - hovedaktiviteter'!C14","v":"Hovedaktivtet 8 - opgaver"},{"$f":"'Proces - Kompetencer'!AK107","v":0},{"$f":"'Menu - hovedaktiviteter'!D14","v":0},0]
[null,{"$f":"'Menu - hovedaktiviteter'!C15","v":"Hovedaktivtet 9 - opgaver"},{"$f":"'Proces - Kompetencer'!AK117","v":0},{"$f":"'Menu - hovedaktiviteter'!D15","v":0},0]
[null,{"$f":"'Menu - hovedaktiviteter'!C16","v":"Hovedaktivtet 10 - opgaver"},{"$f":"'Proces - Kompetencer'!AK127","v":0},{"$f":"'Menu - hovedaktiviteter'!D16","v":0},0]
[]
[]
[]
[]
[]
[]
[]
[]
[]
[]
[]
[]
[]
[]
[]
[]
[]
[]
[]
[]
[]
[]
[]
[]
[]
[null,"Kompetencevurdering pr. opgaveområde"]
[]
[]
[null,{"$f":"IF(ISBLANK('Proces - Kompetencer'!B12),\"\", 'Proces - Kompetencer'!B12)","v":"L - Ledelsesopgaver"},"Kategoriværdi","Vægtet værdi","Værdi"]
[null,{"$f":"IF(ISBLANK('Proces - Kompetencer'!B13),\"\", 'Proces - Kompetencer'!B13)","v":"L01 - Koordinering af ledergruppe"},{"$f":"'Proces - Kompetencer'!AK13","v":0},0.2,{"$f":"((5-C44)*D44)*100","v":100}]
[null,{"$f":"IF(ISBLANK('Proces - Kompetencer'!B14),\"\", 'Proces - Kompetencer'!B14)","v":"L02 - Kvalitetsstyring - reklamationer"},{"$f":"'Proces - Kompetencer'!AK14","v":0},0.2,{"$f":"((5-C45)*D45)*100","v":100}]
[null,{"$f":"IF(ISBLANK('Proces - Kompetencer'!B15),\"\", 'Proces - Kompetencer'!B15)","v":"L03 - Projektstyring"},{"$f":"'Proces - Kompetencer'!AK15","v":0},0.2,100]
[null,{"$f":"IF(ISBLANK('Proces - Kompetencer'!B16),\"\", 'Proces - Kompetencer'!B16)","v":"L04 - Kontraktforhandlinger"},{"$f":"'Proces - Kompetencer'!AK16","v":0},0.2,100]
[null,{"$f":"IF(ISBLANK('Proces - Kompetencer'!B17),\"\", 'Proces - Kompetencer'!B17)","v":"L05 - Økonomi, rapportering, planlægning"},{"$f":"'Proces - Kompetencer'!AK17","v":0},0.2,100]
[null,{"$f":"IF(ISBLANK('Proces - Kompetencer'!B18),\"\", 'Proces - Kompetencer'!B18)","v":""},null,{"$f":"SUM(D44:D48)","v":1}]
[]
[]
[]
[]
[null,{"$f":"IF(ISBLANK('Proces - Kompetencer'!B19),\"\", 'Proces - Kompetencer'!B19)","v":"S - Salgsopgaver"},"Kategoriværdi","Vægt","Vægtet værdi"]
[null,{"$f":"IF(ISBLANK('Proces - Kompetencer'!B20),\"\", 'Proces - Kompetencer'!B20)","v":"S01 - Salgsordre - almindelige ordre"},{"$f":"'Proces - Kompetencer'!AK20","v":0},0.15,{"$f":"((5-C55)*D55)*100","v":75}]
[null,{"$f":"IF(ISBLANK('Proces - Kompetencer'!B21),\"\", 'Proces - Kompetencer'!B21)","v":"S02 - Salgsordre - projekter, 1. gangsleverancer/prototyper"},{"$f":"'Proces - Kompetencer'!AK21","v":0},0.15,75]
[null,{"$f":"IF(ISBLANK('Proces - Kompetencer'!B22),\"\", 'Proces - Kompetencer'!B22)","v":"S03 - Tilbud , forespørgelser"},{"$f":"'Proces - Kompetencer'!AK22","v":0},0.15,75]
[null,{"$f":"IF(ISBLANK('Proces - Kompetencer'!B23),\"\", 'Proces - Kompetencer'!B23)","v":"S04 - Ændrings- og hasteordre"},{"$f":"'Proces - Kompetencer'!AK23","v":0},0.15,75]
[null,{"$f":"IF(ISBLANK('Proces - Kompetencer'!B24),\"\", 'Proces - Kompetencer'!B24)","v":"S05 - Kundebesøg, messer"},{"$f":"'Proces - Kompetencer'!AK24","v":0},0.1,50]
[null,{"$f":"IF(ISBLANK('Proces - Kompetencer'!B25),\"\", 'Proces - Kompetencer'!B25)","v":"S06"},{"$f":"'Proces - Kompetencer'!AK25","v":0},0,{"$f":"((5-C60)*D60)*100","v":0}]
[null,{"$f":"IF(ISBLANK('Proces - Kompetencer'!B26),\"\", 'Proces - Kompetencer'!B26)","v":"S07"},{"$f":"'Proces - Kompetencer'!AK26","v":0},0,0]
[null,{"$f":"IF(ISBLANK('Proces - Kompetencer'!B27),\"\", 'Proces - Kompetencer'!B27)","v":"S11 - Kvalitetsstyring"},{"$f":"'Proces - Kompetencer'!AK27","v":0},0.1,50]
[null,{"$f":"IF(ISBLANK('Proces - Kompetencer'!B28),\"\", 'Proces - Kompetencer'!B28)","v":"S12 - Økonomi, rapportering, planlægning"},{"$f":"'Proces - Kompetencer'!AK28","v":0},0.1,50]
[null,{"$f":"IF(ISBLANK('Proces - Kompetencer'!B29),\"\", 'Proces - Kompetencer'!B29)","v":"S13 - HR opgaver"},{"$f":"'Proces - Kompetencer'!AK29","v":0},0.1,50]
[null,{"$f":"IF(ISBLANK('Proces - Kompetencer'!B30),\"\", 'Proces - Kompetencer'!B30)","v":""},null,{"$f":"SUM(D55:D64)","v":0.99999999999999989}]
[]
[]
[null,{"$f":"IF(ISBLANK('Proces - Kompetencer'!B31),\"\", 'Proces - Kompetencer'!B31)","v":"T - Opgaver vedr. Produktionsteknik - PTF"},"Kategoriværdi","Vægt","Vægtet værdi"]
[null,{"$f":"IF(ISBLANK('Proces - Kompetencer'!B32),\"\", 'Proces - Kompetencer'!B32)","v":"T01 - Produktionsgrundlag"},{"$f":"'Proces - Kompetencer'!AK32","v":0},0.1,{"$f":"((5-C69)*D69)*100","v":50}]
[null,{"$f":"IF(ISBLANK('Proces - Kompetencer'!B33),\"\", 'Proces - Kompetencer'!B33)","v":"T02 - Hjælpeværktøjer"},{"$f":"'Proces - Kompetencer'!AK33","v":0},0.1,50]
[null,{"$f":"IF(ISBLANK('Proces - Kompetencer'!B34),\"\", 'Proces - Kompetencer'!B34)","v":"T03 - Prototyper, nulserier og vareprøver"},{"$f":"'Proces - Kompetencer'!AK34","v":0},0.1,50]
[null,{"$f":"IF(ISBLANK('Proces - Kompetencer'!B35),\"\", 'Proces - Kompetencer'!B35)","v":"T04 - Produktkalkulation"},{"$f":"'Proces - Kompetencer'!AK35","v":0},0.1,50]
[null,{"$f":"IF(ISBLANK('Proces - Kompetencer'!B36),\"\", 'Proces - Kompetencer'!B36)","v":"T05 - Procesoptimering"},{"$f":"'Proces - Kompetencer'!AK36","v":0},0.1,50]
[null,{"$f":"IF(ISBLANK('Proces - Kompetencer'!B37),\"\", 'Proces - Kompetencer'!B37)","v":"T06 - Produktudvikling"},{"$f":"'Proces - Kompetencer'!AK37","v":0},0.1,50]
[null,{"$f":"IF(ISBLANK('Proces - Kompetencer'!B38),\"\", 'Proces - Kompetencer'!B38)","v":"T07 - Teknisk salgssupport"},{"$f":"'Proces - Kompetencer'!AK38","v":0},0.1,50]
[null,{"$f":"IF(ISBLANK('Proces - Kompetencer'!B39),\"\", 'Proces - Kompetencer'!B39)","v":"T08"},{"$f":"'Proces - Kompetencer'!AK39","v":0},0,{"$f":"((5-C76)*D76)*100","v":0}]
[null,{"$f":"IF(ISBLANK('Proces - Kompetencer'!B40),\"\", 'Proces - Kompetencer'!B40)","v":"T09"},{"$f":"'Proces - Kompetencer'!AK40","v":0},0,0]
[null,{"$f":"IF(ISBLANK('Proces - Kompetencer'!B41),\"\", 'Proces - Kompetencer'!B41)","v":"T11 - Kvalitetsstyring"},{"$f":"'Proces - Kompetencer'!AK41","v":0},0.1,50]
[null,{"$f":"IF(ISBLANK('Proces - Kompetencer'!B42),\"\", 'Proces - Kompetencer'!B42)","v":"T12 - Økonomi, rapportering, planlægning"},{"$f":"'Proces - Kompetencer'!AK42","v":0},0.1,50]
[null,{"$f":"IF(ISBLANK('Proces - Kompetencer'!B43),\"\", 'Proces - Kompetencer'!B43)","v":"T13 - HR opgaver"},{"$f":"'Proces - Kompetencer'!AK43","v":0},0.1,50]
[null,{"$f":"IF(ISBLANK('Proces - Kompetencer'!B44),\"\", 'Proces - Kompetencer'!B44)","v":""},null,{"$f":"SUM(D69:D80)","v":0.99999999999999989}]
[]
[null,{"$f":"IF(ISBLANK('Proces - Kompetencer'!B45),\"\", 'Proces - Kompetencer'!B45)","v":"P - Produktionsopgaver"},"Kategoriværdi","Vægt","Vægtet værdi"]
[null,{"$f":"IF(ISBLANK('Proces - Kompetencer'!B46),\"\", 'Proces - Kompetencer'!B46)","v":"P01 - Planlægning, hoved-finplan., "},{"$f":"'Proces - Kompetencer'!AK46","v":0},0.1,{"$f":"((5-C84)*D84)*100","v":50}]
[null,{"$f":"IF(ISBLANK('Proces - Kompetencer'!B47),\"\", 'Proces - Kompetencer'!B47)","v":"P02 - Klargøring og opstart af produktion"},{"$f":"'Proces - Kompetencer'!AK47","v":0},0.1,50]
[null,{"$f":"IF(ISBLANK('Proces - Kompetencer'!B48),\"\", 'Proces - Kompetencer'!B48)","v":"P03 - Værkstedsstyring og overvågning af leveringsterm."},{"$f":"'Proces - Kompetencer'!AK48","v":0},0.1,50]
[null,{"$f":"IF(ISBLANK('Proces - Kompetencer'!B49),\"\", 'Proces - Kompetencer'!B49)","v":"P04 - Optimering af processer"},{"$f":"'Proces - Kompetencer'!AK49","v":0},0.1,50]
[null,{"$f":"IF(ISBLANK('Proces - Kompetencer'!B50),\"\", 'Proces - Kompetencer'!B50)","v":"P05 - Instruktion og kompetenceudvikling af medarb."},{"$f":"'Proces - Kompetencer'!AK50","v":0},0.1,50]
[null,{"$f":"IF(ISBLANK('Proces - Kompetencer'!B51),\"\", 'Proces - Kompetencer'!B51)","v":"P06 - Håndtering af ændrings- og hasteordre."},{"$f":"'Proces - Kompetencer'!AK51","v":0},0.1,50]
[null,{"$f":"IF(ISBLANK('Proces - Kompetencer'!B53),\"\", 'Proces - Kompetencer'!B53)","v":"P08"},{"$f":"'Proces - Kompetencer'!AK53","v":0},0.1,50]
[null,{"$f":"IF(ISBLANK('Proces - Kompetencer'!B54),\"\", 'Proces - Kompetencer'!B54)","v":"P11 - Kvalitetsstyring"},{"$f":"'Proces - Kompetencer'!AK54","v":0},0.1,50]
[null,{"$f":"IF(ISBLANK('Proces - Kompetencer'!B55),\"\", 'Proces - Kompetencer'!B55)","v":"P12 - Økonomi, rapportering, planlægning"},{"$f":"'Proces - Kompetencer'!AK55","v":0},0.1,50]
[null,{"$f":"IF(ISBLANK('Proces - Kompetencer'!B56),\"\", 'Proces - Kompetencer'!B56)","v":"P13 - HR opgaver"},{"$f":"'Proces - Kompetencer'!AK56","v":0},0.1,50]
[null,{"$f":"IF(ISBLANK('Proces - Kompetencer'!B57),\"\", 'Proces - Kompetencer'!B57)","v":""},null,{"$f":"SUM(D84:D93)","v":0.99999999999999989}]
[]
[]
[null,{"$f":"IF(ISBLANK('Proces - Kompetencer'!B58),\"\", 'Proces - Kompetencer'!B58)","v":"L - Lager- og logistikopgaver"},"Kategoriværdi","Vægt","Vægtet værdi"]
[null,{"$f":"IF(ISBLANK('Proces - Kompetencer'!B59),\"\", 'Proces - Kompetencer'!B59)","v":"L01 - Varemodtagelse, kontrol, registrering"},{"$f":"'Proces - Kompetencer'!AK59","v":0},0.1,{"$f":"((5-C98)*D98)*100","v":50}]
[null,{"$f":"IF(ISBLANK('Proces - Kompetencer'!B60),\"\", 'Proces - Kompetencer'!B60)","v":"L02 - Lagerregnskab - Fysisk optælling af lagerbeholdning"},{"$f":"'Proces - Kompetencer'!AK60","v":0},0.1,50]
[null,{"$f":"IF(ISBLANK('Proces - Kompetencer'!B61),\"\", 'Proces - Kompetencer'!B61)","v":"L03 - Udlevering af varer til produktion"},{"$f":"'Proces - Kompetencer'!AK61","v":0},0.1,50]
[null,{"$f":"IF(ISBLANK('Proces - Kompetencer'!B62),\"\", 'Proces - Kompetencer'!B62)","v":"L04 - Klargøring af varer til forsendelse"},{"$f":"'Proces - Kompetencer'!AK62","v":0},0.1,50]
[null,{"$f":"IF(ISBLANK('Proces - Kompetencer'!B63),\"\", 'Proces - Kompetencer'!B63)","v":"L05 - Forsendelsespapirer - bookning af transportør"},{"$f":"'Proces - Kompetencer'!AK63","v":0},0.05,25]
[null,{"$f":"IF(ISBLANK('Proces - Kompetencer'!B64),\"\", 'Proces - Kompetencer'!B64)","v":"L06 - Pålæsning af varer - udgangskontrol"},{"$f":"'Proces - Kompetencer'!AK64","v":0},0.05,25]
[null,{"$f":"IF(ISBLANK('Proces - Kompetencer'!B65),\"\", 'Proces - Kompetencer'!B65)","v":"L07 - Logistikaftaler - transport, lagerhotel, etc."},{"$f":"'Proces - Kompetencer'!AK65","v":0},0.1,50]
[null,{"$f":"IF(ISBLANK('Proces - Kompetencer'!B66),\"\", 'Proces - Kompetencer'!B66)","v":"L08 - Håndtering af ændrings- og hasteordrer"},{"$f":"'Proces - Kompetencer'!AK66","v":0},0.1,50]
[null,{"$f":"IF(ISBLANK('Proces - Kompetencer'!B67),\"\", 'Proces - Kompetencer'!B67)","v":"L09"},{"$f":"'Proces - Kompetencer'!AK67","v":0},0,{"$f":"((5-C106)*D106)*100","v":0}]
[null,{"$f":"IF(ISBLANK('Proces - Kompetencer'!B68),\"\", 'Proces - Kompetencer'!B68)","v":"L10"},{"$f":"'Proces - Kompetencer'!AK68","v":0},0,0]
[null,{"$f":"IF(ISBLANK('Proces - Kompetencer'!B69),\"\", 'Proces - Kompetencer'!B69)","v":"L11 - Kvalitetsstyring"},{"$f":"'Proces - Kompetencer'!AK69","v":0},0.1,50]
[null,{"$f":"IF(ISBLANK('Proces - Kompetencer'!B70),\"\", 'Proces - Kompetencer'!B70)","v":"L12 - Økonomi, rapportering, planlægning"},{"$f":"'Proces - Kompetencer'!AK70","v":0},0.1,50]
[null,{"$f":"IF(ISBLANK('Proces - Kompetencer'!B71),\"\", 'Proces - Kompetencer'!B71)","v":"L13 - HR opgaver"},{"$f":"'Proces - Kompetencer'!AK71","v":0},0.1,50]
[null,{"$f":"IF(ISBLANK('Proces - Kompetencer'!B72),\"\", 'Proces - Kompetencer'!B72)","v":""},null,{"$f":"SUM(D98:D110)","v":0.99999999999999989}]
[]
[]
[null,{"$f":"IF(ISBLANK('Proces - Kompetencer'!B73),\"\", 'Proces - Kompetencer'!B73)","v":"I - Indkøbsopgaver"},"Kategoriværdi","Vægt","Vægtet værdi"]
[null,{"$f":"IF(ISBLANK('Proces - Kompetencer'!B74),\"\", 'Proces - Kompetencer'!B74)","v":"I01 - Leverandørevaluering"},{"$f":"'Proces - Kompetencer'!AK74","v":0},0.1,{"$f":"((5-C115)*D115)*100","v":50}]
[null,{"$f":"IF(ISBLANK('Proces - Kompetencer'!B75),\"\", 'Proces - Kompetencer'!B75)","v":"I02 - Leverandøraftaler"},{"$f":"'Proces - Kompetencer'!AK75","v":0},0.1,{"$f":"((5-C116)*D116)*100","v":50}]
[null,{"$f":"IF(ISBLANK('Proces - Kompetencer'!B76),\"\", 'Proces - Kompetencer'!B76)","v":"I03 - Behovsberegning og disponering"},{"$f":"'Proces - Kompetencer'!AK76","v":0},0.15,75]
[null,{"$f":"IF(ISBLANK('Proces - Kompetencer'!B77),\"\", 'Proces - Kompetencer'!B77)","v":"I04 - Indkøbsordrer"},{"$f":"'Proces - Kompetencer'!AK77","v":0},0.15,75]
[null,{"$f":"IF(ISBLANK('Proces - Kompetencer'!B78),\"\", 'Proces - Kompetencer'!B78)","v":"I05 - Reklamationsbehandling"},{"$f":"'Proces - Kompetencer'!AK78","v":0},0.1,50]
[null,{"$f":"IF(ISBLANK('Proces - Kompetencer'!B79),\"\", 'Proces - Kompetencer'!B79)","v":"I06 - Vedligehold af indkøbte varers kostpriser - kostprisafv."},{"$f":"'Proces - Kompetencer'!AK79","v":0},0.1,50]
[null,{"$f":"IF(ISBLANK('Proces - Kompetencer'!B80),\"\", 'Proces - Kompetencer'!B80)","v":"I07"},{"$f":"'Proces - Kompetencer'!AK80","v":0},0,0]
[null,{"$f":"IF(ISBLANK('Proces - Kompetencer'!B81),\"\", 'Proces - Kompetencer'!B81)","v":"I08"},{"$f":"'Proces - Kompetencer'!AK81","v":0},0,0]
[null,{"$f":"IF(ISBLANK('Proces - Kompetencer'!B82),\"\", 'Proces - Kompetencer'!B82)","v":"I11 - Kvalitetsstyring"},{"$f":"'Proces - Kompetencer'!AK82","v":0},0.1,50]
[null,{"$f":"IF(ISBLANK('Proces - Kompetencer'!B83),\"\", 'Proces - Kompetencer'!B83)","v":"I12 - Økonomi, rapportering, planlægning"},{"$f":"'Proces - Kompetencer'!AK83","v":0},0.1,50]
[null,{"$f":"IF(ISBLANK('Proces - Kompetencer'!B84),\"\", 'Proces - Kompetencer'!B84)","v":"I13 - HR opgaver"},{"$f":"'Proces - Kompetencer'!AK84","v":0},0.1,50]
[null,{"$f":"IF(ISBLANK('Proces - Kompetencer'!B85),\"\", 'Proces - Kompetencer'!B85)","v":""},null,{"$f":"SUM(D115:D125)","v":0.99999999999999989}]
[]
[]
[null,{"$f":"IF(ISBLANK('Proces - Kompetencer'!B86),\"\", 'Proces - Kompetencer'!B86)","v":"B - Økonomiopgaver"},"Kategoriværdi","Vægt","Vægtet værdi"]
[null,{"$f":"IF(ISBLANK('Proces - Kompetencer'!B87),\"\", 'Proces - Kompetencer'!B87)","v":"B01 - Finans, debitor og kreditor"},{"$f":"'Proces - Kompetencer'!AK87","v":0},0.2,{"$f":"((5-C130)*D130)*100","v":100}]
[null,{"$f":"IF(ISBLANK('Proces - Kompetencer'!B88),\"\", 'Proces - Kompetencer'!B88)","v":"B02 - Gage og lønninger"},{"$f":"'Proces - Kompetencer'!AK88","v":0},0.1,{"$f":"((5-C131)*D131)*100","v":50}]
[null,{"$f":"IF(ISBLANK('Proces - Kompetencer'!B89),\"\", 'Proces - Kompetencer'!B89)","v":"B03 - Budgetlægning"},{"$f":"'Proces - Kompetencer'!AK89","v":0},0.15,75]
[null,{"$f":"IF(ISBLANK('Proces - Kompetencer'!B90),\"\", 'Proces - Kompetencer'!B90)","v":"B04 - Likviditetsstyring"},{"$f":"'Proces - Kompetencer'!AK90","v":0},0.15,75]
[null,{"$f":"IF(ISBLANK('Proces - Kompetencer'!B91),\"\", 'Proces - Kompetencer'!B91)","v":"B05"},{"$f":"'Proces - Kompetencer'!AK91","v":0},0,0]
[null,{"$f":"IF(ISBLANK('Proces - Kompetencer'!B92),\"\", 'Proces - Kompetencer'!B92)","v":"B06"},{"$f":"'Proces - Kompetencer'!AK92","v":0},0,0]
[null,{"$f":"IF(ISBLANK('Proces - Kompetencer'!B93),\"\", 'Proces - Kompetencer'!B93)","v":"B11 - Reklamationsbehandling"},{"$f":"'Proces - Kompetencer'!AK93","v":0},0.15,75]
[null,{"$f":"IF(ISBLANK('Proces - Kompetencer'!B94),\"\", 'Proces - Kompetencer'!B94)","v":"B12 - Økonomi, rapportering, planlægning"},{"$f":"'Proces - Kompetencer'!AK94","v":0},0.15,75]
[null,{"$f":"IF(ISBLANK('Proces - Kompetencer'!B95),\"\", 'Proces - Kompetencer'!B95)","v":"B13 - HR opgaver"},{"$f":"'Proces - Kompetencer'!AK95","v":0},0.1,50]
[null,{"$f":"IF(ISBLANK('Proces - Kompetencer'!B96),\"\", 'Proces - Kompetencer'!B96)","v":""},null,{"$f":"SUM(D130:D138)","v":1.0000000000000002}]
[]
[null,{"$f":"IF(ISBLANK('Proces - Kompetencer'!B97),\"\", 'Proces - Kompetencer'!B97)","v":"Hovedaktivtet 8 - opgaver"},"Kategoriværdi","Vægt","Vægtet værdi"]
[null,{"$f":"IF(ISBLANK('Proces - Kompetencer'!B98),\"\", 'Proces - Kompetencer'!B98)","v":"aktivitet 1"},null,0.15]
[null,{"$f":"IF(ISBLANK('Proces - Kompetencer'!B99),\"\", 'Proces - Kompetencer'!B99)","v":"aktivitet 2"},null,0.15]
[null,{"$f":"IF(ISBLANK('Proces - Kompetencer'!B100),\"\", 'Proces - Kompetencer'!B100)","v":"aktivitet 3"},null,0.15]
[null,{"$f":"IF(ISBLANK('Proces - Kompetencer'!B101),\"\", 'Proces - Kompetencer'!B101)","v":"aktivitet 4"},null,0.15]
[null,{"$f":"IF(ISBLANK('Proces - Kompetencer'!B102),\"\", 'Proces - Kompetencer'!B102)","v":"aktivitet 5"},null,0.1]
[null,{"$f":"IF(ISBLANK('Proces - Kompetencer'!B103),\"\", 'Proces - Kompetencer'!B103)","v":"aktivitet 6"},null,0.1]
[null,{"$f":"IF(ISBLANK('Proces - Kompetencer'!B104),\"\", 'Proces - Kompetencer'!B104)","v":"aktivitet 7"},null,0.1]
[null,{"$f":"IF(ISBLANK('Proces - Kompetencer'!B105),\"\", 'Proces - Kompetencer'!B105)","v":"aktivitet 8"},null,0.1]
[null,null,null,{"$f":"SUM(D142:D149)","v":0.99999999999999989}]
[]
[]
[null,{"$f":"IF(ISBLANK('Proces - Kompetencer'!B107),\"\", 'Proces - Kompetencer'!B107)","v":"Hovedaktivtet 9 - opgaver"},"Kategoriværdi","Vægt","Vægtet værdi"]
[null,{"$f":"IF(ISBLANK('Proces - Kompetencer'!B108),\"\", 'Proces - Kompetencer'!B108)","v":"aktivitet 1"},null,0.15]
[null,{"$f":"IF(ISBLANK('Proces - Kompetencer'!B109),\"\", 'Proces - Kompetencer'!B109)","v":"aktivitet 2"},null,0.15]
[null,{"$f":"IF(ISBLANK('Proces - Kompetencer'!B110),\"\", 'Proces - Kompetencer'!B110)","v":"aktivitet 3"},null,0.15]
[null,{"$f":"IF(ISBLANK('Proces - Kompetencer'!B111),\"\", 'Proces - Kompetencer'!B111)","v":"aktivitet 4"},null,0.15]
[null,{"$f":"IF(ISBLANK('Proces - Kompetencer'!B112),\"\", 'Proces - Kompetencer'!B112)","v":"aktivitet 5"},null,0.1]
[null,{"$f":"IF(ISBLANK('Proces - Kompetencer'!B113),\"\", 'Proces - Kompetencer'!B113)","v":"aktivitet 6"},null,0.1]
[null,{"$f":"IF(ISBLANK('Proces - Kompetencer'!B114),\"\", 'Proces - Kompetencer'!B114)","v":"aktivitet 7"},null,0.1]
[null,{"$f":"IF(ISBLANK('Proces - Kompetencer'!B115),\"\", 'Proces - Kompetencer'!B115)","v":"aktivitet 8"},null,0.1]
[null,null,null,{"$f":"SUM(D154:D161)","v":0.99999999999999989}]
[]
[]
[null,{"$f":"IF(ISBLANK('Proces - Kompetencer'!B117),\"\", 'Proces - Kompetencer'!B117)","v":"Hovedaktivtet 10 - opgaver"},"Kategoriværdi","Vægt","Vægtet værdi"]
[null,{"$f":"IF(ISBLANK('Proces - Kompetencer'!B118),\"\", 'Proces - Kompetencer'!B118)","v":"aktivitet 1"},null,0.15]
[null,{"$f":"IF(ISBLANK('Proces - Kompetencer'!B119),\"\", 'Proces - Kompetencer'!B119)","v":"aktivitet 2"},null,0.15]
[null,{"$f":"IF(ISBLANK('Proces - Kompetencer'!B120),\"\", 'Proces - Kompetencer'!B120)","v":"aktivitet 3"},null,0.15]
[null,{"$f":"IF(ISBLANK('Proces - Kompetencer'!B121),\"\", 'Proces - Kompetencer'!B121)","v":"aktivitet 4"},null,0.15]
[null,{"$f":"IF(ISBLANK('Proces - Kompetencer'!B122),\"\", 'Proces - Kompetencer'!B122)","v":"aktivitet 5"},null,0.1]
[null,{"$f":"IF(ISBLANK('Proces - Kompetencer'!B123),\"\", 'Proces - Kompetencer'!B123)","v":"aktivitet 6"},null,0.1]
[null,{"$f":"IF(ISBLANK('Proces - Kompetencer'!B124),\"\", 'Proces - Kompetencer'!B124)","v":"aktivitet 7"},null,0.1]
[null,{"$f":"IF(ISBLANK('Proces - Kompetencer'!B125),\"\", 'Proces - Kompetencer'!B125)","v":"aktivitet 8"},null,0.1]
[null,null,null,{"$f":"SUM(D166:D173)","v":0.99999999999999989}]
[null,{"$f":"IF(ISBLANK('Proces - Kompetencer'!B127),\"\", 'Proces - Kompetencer'!B127)","v":""}]
[null,{"$f":"IF(ISBLANK('Proces - Kompetencer'!B128),\"\", 'Proces - Kompetencer'!B128)","v":""}]

{"sheet":"Rutine-oversigt","index":9,"n_rows":124,"n_cols":2,"rows_kept":124,"cut":false,"hidden":true,"merged":[[4,1,5,1]]}
[]
[]
[]
[]
[null,"Procesoversigt"]
[]
[null,{"$f":"'Proces - Oversigt'!B10","v":"L - Ledelsesopgaver"}]
[null,{"$f":"'Proces - Oversigt'!B11","v":"L01 - Koordinering af ledergruppe"}]
[null,{"$f":"'Proces - Oversigt'!B12","v":"L02 - Kvalitetsstyring - reklamationer"}]
[null,{"$f":"'Proces - Oversigt'!B13","v":"L03 - Projektstyring"}]
[null,{"$f":"'Proces - Oversigt'!B14","v":"L04 - Kontraktforhandlinger"}]
[null,{"$f":"'Proces - Oversigt'!B15","v":"L05 - Økonomi, rapportering, planlægning"}]
[null,{"$f":"'Proces - Oversigt'!B16","v":0}]
[null,{"$f":"'Proces - Oversigt'!B17","v":"S - Salgsopgaver"}]
[null,{"$f":"'Proces - Oversigt'!B18","v":"S01 - Salgsordre - almindelige ordre"}]
[null,{"$f":"'Proces - Oversigt'!B19","v":"S02 - Salgsordre - projekter, 1. gangsleverancer/prototyper"}]
[null,{"$f":"'Proces - Oversigt'!B20","v":"S03 - Tilbud , forespørgelser"}]
[null,{"$f":"'Proces - Oversigt'!B21","v":"S04 - Ændrings- og hasteordre"}]
[null,{"$f":"'Proces - Oversigt'!B22","v":"S05 - Kundebesøg, messer"}]
[null,{"$f":"'Proces - Oversigt'!B24","v":"S07"}]
[null,{"$f":"'Proces - Oversigt'!B25","v":"S11 - Kvalitetsstyring"}]
[null,{"$f":"'Proces - Oversigt'!B26","v":"S12 - Økonomi, rapportering, planlægning"}]
[null,{"$f":"'Proces - Oversigt'!B27","v":"S13 - HR opgaver"}]
[null,{"$f":"'Proces - Oversigt'!B28","v":0}]
[null,{"$f":"'Proces - Oversigt'!B29","v":"T - Opgaver vedr. Produktionsteknik - PTF"}]
[null,{"$f":"'Proces - Oversigt'!B30","v":"T01 - Produktionsgrundlag"}]
[null,{"$f":"'Proces - Oversigt'!B31","v":"T02 - Hjælpeværktøjer"}]
[null,{"$f":"'Proces - Oversigt'!B32","v":"T03 - Prototyper, nulserier og vareprøver"}]
[null,{"$f":"'Proces - Oversigt'!B33","v":"T04 - Produktkalkulation"}]
[null,{"$f":"'Proces - Oversigt'!B34","v":"T05 - Procesoptimering"}]
[null,{"$f":"'Proces - Oversigt'!B35","v":"T06 - Produktudvikling"}]
[null,{"$f":"'Proces - Oversigt'!B36","v":"T07 - Teknisk salgssupport"}]
[null,{"$f":"'Proces - Oversigt'!B38","v":"T09"}]
[null,{"$f":"'Proces - Oversigt'!B39","v":"T11 - Kvalitetsstyring"}]
[null,{"$f":"'Proces - Oversigt'!B40","v":"T12 - Økonomi, rapportering, planlægning"}]
[null,{"$f":"'Proces - Oversigt'!B41","v":"T13 - HR opgaver"}]
[null,{"$f":"'Proces - Oversigt'!B42","v":0}]
[null,{"$f":"'Proces - Oversigt'!B43","v":"P - Produktionsopgaver"}]
[null,{"$f":"'Proces - Oversigt'!B44","v":"P01 - Planlægning, hoved-finplan., "}]
[null,{"$f":"'Proces - Oversigt'!B45","v":"P02 - Klargøring og opstart af produktion"}]
[null,{"$f":"'Proces - Oversigt'!B46","v":"P03 - Værkstedsstyring og overvågning af leveringsterm."}]
[null,{"$f":"'Proces - Oversigt'!B47","v":"P04 - Optimering af processer"}]
[null,{"$f":"'Proces - Oversigt'!B48","v":"P05 - Instruktion og kompetenceudvikling af medarb."}]
[null,{"$f":"'Proces - Oversigt'!B49","v":"P06 - Håndtering af ændrings- og hasteordre."}]
[null,{"$f":"'Proces - Oversigt'!B51","v":"P08"}]
[null,{"$f":"'Proces - Oversigt'!B52","v":"P11 - Kvalitetsstyring"}]
[null,{"$f":"'Proces - Oversigt'!B53","v":"P12 - Økonomi, rapportering, planlægning"}]
[null,{"$f":"'Proces - Oversigt'!B54","v":"P13 - HR opgaver"}]
[null,{"$f":"'Proces - Oversigt'!B55","v":0}]
[null,{"$f":"'Proces - Oversigt'!B56","v":"L - Lager- og logistikopgaver"}]
[null,{"$f":"'Proces - Oversigt'!B57","v":"L01 - Varemodtagelse, kontrol, registrering"}]
[null,{"$f":"'Proces - Oversigt'!B58","v":"L02 - Lagerregnskab - Fysisk optælling af lagerbeholdning"}]
[null,{"$f":"'Proces - Oversigt'!B59","v":"L03 - Udlevering af varer til produktion"}]
[null,{"$f":"'Proces - Oversigt'!B60","v":"L04 - Klargøring af varer til forsendelse"}]
[null,{"$f":"'Proces - Oversigt'!B61","v":"L05 - Forsendelsespapirer - bookning af transportør"}]
[null,{"$f":"'Proces - Oversigt'!B62","v":"L06 - Pålæsning af varer - udgangskontrol"}]
[null,{"$f":"'Proces - Oversigt'!B63","v":"L07 - Logistikaftaler - transport, lagerhotel, etc."}]
[null,{"$f":"'Proces - Oversigt'!B64","v":"L08 - Håndtering af ændrings- og hasteordrer"}]
[null,{"$f":"'Proces - Oversigt'!B66","v":"L10"}]
[null,{"$f":"'Proces - Oversigt'!B67","v":"L11 - Kvalitetsstyring"}]
[null,{"$f":"'Proces - Oversigt'!B68","v":"L12 - Økonomi, rapportering, planlægning"}]
[null,{"$f":"'Proces - Oversigt'!B69","v":"L13 - HR opgaver"}]
[null,{"$f":"'Proces - Oversigt'!B70","v":0}]
[null,{"$f":"'Proces - Oversigt'!B71","v":"I - Indkøbsopgaver"}]
[null,{"$f":"'Proces - Oversigt'!B72","v":"I01 - Leverandørevaluering"}]
[null,{"$f":"'Proces - Oversigt'!B73","v":"I02 - Leverandøraftaler"}]
[null,{"$f":"'Proces - Oversigt'!B74","v":"I03 - Behovsberegning og disponering"}]
[null,{"$f":"'Proces - Oversigt'!B75","v":"I04 - Indkøbsordrer"}]
[null,{"$f":"'Proces - Oversigt'!B76","v":"I05 - Reklamationsbehandling"}]
[null,{"$f":"'Proces - Oversigt'!B77","v":"I06 - Vedligehold af indkøbte varers kostpriser - kostprisafv."}]
[null,{"$f":"'Proces - Oversigt'!B79","v":"I08"}]
[null,{"$f":"'Proces - Oversigt'!B80","v":"I11 - Kvalitetsstyring"}]
[null,{"$f":"'Proces - Oversigt'!B81","v":"I12 - Økonomi, rapportering, planlægning"}]
[null,{"$f":"'Proces - Oversigt'!B82","v":"I13 - HR opgaver"}]
[null,{"$f":"'Proces - Oversigt'!B83","v":0}]
[null,{"$f":"'Proces - Oversigt'!B84","v":"B - Økonomiopgaver"}]
[null,{"$f":"'Proces - Oversigt'!B85","v":"B01 - Finans, debitor og kreditor"}]
[null,{"$f":"'Proces - Oversigt'!B86","v":"B02 - Gage og lønninger"}]
[null,{"$f":"'Proces - Oversigt'!B87","v":"B03 - Budgetlægning"}]
[null,{"$f":"'Proces - Oversigt'!B88","v":"B04 - Likviditetsstyring"}]
[null,{"$f":"'Proces - Oversigt'!B90","v":"B06"}]
[null,{"$f":"'Proces - Oversigt'!B91","v":"B11 - Reklamationsbehandling"}]
[null,{"$f":"'Proces - Oversigt'!B92","v":"B12 - Økonomi, rapportering, planlægning"}]
[null,{"$f":"'Proces - Oversigt'!B93","v":"B13 - HR opgaver"}]
[null,{"$f":"'Proces - Oversigt'!#REF!","v":{"$error":"#REF!"}}]
[null,{"$f":"'Proces - Oversigt'!B95","v":"Hovedaktivtet 8 - opgaver"}]
[null,{"$f":"'Proces - Oversigt'!B96","v":"aktivitet 1"}]
[null,{"$f":"'Proces - Oversigt'!B97","v":"aktivitet 2"}]
[null,{"$f":"'Proces - Oversigt'!B98","v":"aktivitet 3"}]
[null,{"$f":"'Proces - Oversigt'!B99","v":"aktivitet 4"}]
[null,{"$f":"'Proces - Oversigt'!B100","v":"aktivitet 5"}]
[null,{"$f":"'Proces - Oversigt'!B101","v":"aktivitet 6"}]
[null,{"$f":"'Proces - Oversigt'!B102","v":"aktivitet 7"}]
[null,{"$f":"'Proces - Oversigt'!B103","v":"aktivitet 8"}]
[null,{"$f":"'Proces - Oversigt'!B104","v":0}]
[null,{"$f":"'Proces - Oversigt'!B105","v":"Hovedaktivtet 9 - opgaver"}]
[null,{"$f":"'Proces - Oversigt'!B106","v":"aktivitet 1"}]
[null,{"$f":"'Proces - Oversigt'!B107","v":"aktivitet 2"}]
[null,{"$f":"'Proces - Oversigt'!B108","v":"aktivitet 3"}]
[null,{"$f":"'Proces - Oversigt'!B109","v":"aktivitet 4"}]
[null,{"$f":"'Proces - Oversigt'!B110","v":"aktivitet 5"}]
[null,{"$f":"'Proces - Oversigt'!B111","v":"aktivitet 6"}]
[null,{"$f":"'Proces - Oversigt'!B112","v":"aktivitet 7"}]
[null,{"$f":"'Proces - Oversigt'!B113","v":"aktivitet 8"}]
[null,{"$f":"'Proces - Oversigt'!B114","v":0}]
[null,{"$f":"'Proces - Oversigt'!B115","v":"Hovedaktivtet 10 - opgaver"}]
[null,{"$f":"'Proces - Oversigt'!B116","v":"aktivitet 1"}]
[null,{"$f":"'Proces - Oversigt'!B117","v":"aktivitet 2"}]
[null,{"$f":"'Proces - Oversigt'!B118","v":"aktivitet 3"}]
[null,{"$f":"'Proces - Oversigt'!B119","v":"aktivitet 4"}]
[null,{"$f":"'Proces - Oversigt'!B120","v":"aktivitet 5"}]
[null,{"$f":"'Proces - Oversigt'!B121","v":"aktivitet 6"}]
[null,{"$f":"'Proces - Oversigt'!B122","v":"aktivitet 7"}]
[null,{"$f":"'Proces - Oversigt'!B123","v":"aktivitet 8"}]
[null,{"$f":"'Proces - Oversigt'!B124","v":0}]
[null,{"$f":"'Proces - Oversigt'!B125","v":0}]
[null,{"$f":"'Proces - Oversigt'!B126","v":"Afdelinger/Funktioner"}]
[null,{"$f":"'Proces - Oversigt'!B127","v":"Ledelse"}]
[null,{"$f":"'Proces - Oversigt'!B128","v":"Salg"}]
[null,{"$f":"'Proces - Oversigt'!B129","v":"Produktion"}]
[null,{"$f":"'Proces - Oversigt'!B130","v":"PTF"}]
[null,{"$f":"'Proces - Oversigt'!B131","v":"Lager"}]
[null,{"$f":"'Proces - Oversigt'!B132","v":"Indkøb"}]
[null,{"$f":"'Proces - Oversigt'!B133","v":"Bogholderi"}]

{"sheet":"Rutiner - Ledelse","index":10,"n_rows":10,"n_cols":16,"rows_kept":10,"cut":false,"hidden":true,"merged":[[1,1,1,14],[2,1,2,9],[2,10,2,14]]}
[]
["Arbejdsrutiner","                           Organisation                   "]
[null,"Interne medarbejdere",null,null,null,null,null,null,null,null,"Ekst. Medarb.  "]
["Anvendt koder:\nGodkendelse og kontrol: G\nUdfører aktivitet: X\nBackup: B\nOrienteres: O\n",{"$f":"IF(ISBLANK('Proces - Oversigt'!#REF!),\"\", 'Proces - Oversigt'!#REF!)","v":{"$error":"#REF!"}},{"$f":"IF(ISBLANK('Proces - Oversigt'!#REF!),\"\", 'Proces - Oversigt'!#REF!)","v":{"$error":"#REF!"}},{"$f":"IF(ISBLANK('Proces - Oversigt'!#REF!),\"\", 'Proces - Oversigt'!#REF!)","v":{"$error":"#REF!"}},{"$f":"IF(ISBLANK('Proces - Oversigt'!#REF!),\"\", 'Proces - Oversigt'!#REF!)","v":{"$error":"#REF!"}},{"$f":"IF(ISBLANK('Proces - Oversigt'!#REF!),\"\", 'Proces - Oversigt'!#REF!)","v":{"$error":"#REF!"}},{"$f":"IF(ISBLANK('Proces - Oversigt'!#REF!),\"\", 'Proces - Oversigt'!#REF!)","v":{"$error":"#REF!"}},{"$f":"IF(ISBLANK('Proces - Oversigt'!#REF!),\"\", 'Proces - Oversigt'!#REF!)","v":{"$error":"#REF!"}},{"$f":"IF(ISBLANK('Proces - Oversigt'!#REF!),\"\", 'Proces - Oversigt'!#REF!)","v":{"$error":"#REF!"}},{"$f":"IF(ISBLANK('Proces - Oversigt'!#REF!),\"\", 'Proces - Oversigt'!#REF!)","v":{"$error":"#REF!"}},"Hans Hansen",null,null,null,null,"Kommentarer .\nMedtages der eksterne medarbejdere i forbindelse med beskrivelse af arbejdsrutinerne indsættes navnet her."]
[{"$f":"'Proces - Oversigt'!B10","v":"L - Ledelsesopgaver"}]
[{"$f":"'Proces - Oversigt'!B11","v":"L01 - Koordinering af ledergruppe"},"G"]
[{"$f":"'Proces - Oversigt'!B12","v":"L02 - Kvalitetsstyring - reklamationer"}]
[{"$f":"'Proces - Oversigt'!B13","v":"L03 - Projektstyring"}]
[{"$f":"'Proces - Oversigt'!B14","v":"L04 - Kontraktforhandlinger"}]
[{"$f":"'Proces - Oversigt'!B15","v":"L05 - Økonomi, rapportering, planlægning"}]

{"sheet":"Rutiner - Salg","index":11,"n_rows":14,"n_cols":16,"rows_kept":14,"cut":false,"hidden":true,"merged":[[1,1,1,14],[2,10,2,14],[2,1,2,9]]}
[]
["Arbejdsrutiner","                           Organisation                   "]
[null,"Interne medarbejdere",null,null,null,null,null,null,null,null,"Ekst. Medarb.  "]
["Anvendt koder:\nGodkendelse og kontrol: G\nUdfører aktivitet: X\nBackup: B\nOrienteres: O",{"$f":"'Rutiner - Ledelse'!B4","v":{"$error":"#REF!"}},{"$f":"'Rutiner - Ledelse'!C4","v":{"$error":"#REF!"}},{"$f":"'Rutiner - Ledelse'!D4","v":{"$error":"#REF!"}},{"$f":"'Rutiner - Ledelse'!E4","v":{"$error":"#REF!"}},{"$f":"'Rutiner - Ledelse'!F4","v":{"$error":"#REF!"}},{"$f":"'Rutiner - Ledelse'!G4","v":{"$error":"#REF!"}},{"$f":"'Rutiner - Ledelse'!H4","v":{"$error":"#REF!"}},{"$f":"'Rutiner - Ledelse'!I4","v":{"$error":"#REF!"}},{"$f":"'Rutiner - Ledelse'!J4","v":{"$error":"#REF!"}},{"$f":"IF(ISBLANK('Rutiner - Ledelse'!K4),\"\", 'Rutiner - Ledelse'!K4)","v":"Hans Hansen"},{"$f":"IF(ISBLANK('Rutiner - Ledelse'!L4),\"\", 'Rutiner - Ledelse'!L4)","v":""},{"$f":"IF(ISBLANK('Rutiner - Ledelse'!M4),\"\", 'Rutiner - Ledelse'!M4)","v":""},{"$f":"IF(ISBLANK('Rutiner - Ledelse'!N4),\"\", 'Rutiner - Ledelse'!N4)","v":""},{"$f":"IF(ISBLANK('Rutiner - Ledelse'!O4),\"\", 'Rutiner - Ledelse'!O4)","v":""},"Kommentarer"]
[{"$f":"'Proces - Oversigt'!B17","v":"S - Salgsopgaver"}]
[{"$f":"'Proces - Oversigt'!B18","v":"S01 - Salgsordre - almindelige ordre"},"G"]
[{"$f":"'Proces - Oversigt'!B19","v":"S02 - Salgsordre - projekter, 1. gangsleverancer/prototyper"}]
[{"$f":"'Proces - Oversigt'!B20","v":"S03 - Tilbud , forespørgelser"}]
[{"$f":"'Proces - Oversigt'!B21","v":"S04 - Ændrings- og hasteordre"}]
[{"$f":"'Proces - Oversigt'!B22","v":"S05 - Kundebesøg, messer"}]
[{"$f":"'Proces - Oversigt'!B24","v":"S07"}]
[{"$f":"'Proces - Oversigt'!B25","v":"S11 - Kvalitetsstyring"}]
[{"$f":"'Proces - Oversigt'!B26","v":"S12 - Økonomi, rapportering, planlægning"}]
[{"$f":"'Proces - Oversigt'!B27","v":"S13 - HR opgaver"}]

{"sheet":"Rutiner - Produktion","index":12,"n_rows":146,"n_cols":16,"rows_kept":146,"cut":false,"hidden":true,"merged":[[1,1,1,14],[2,1,2,9],[2,10,2,14]]}
[]
["Arbejdsrutiner","                           Organisation                   "]
[null,"Interne medarbejdere",null,null,null,null,null,null,null,null,"Ekst. Medarb.  "]
["Anvendt koder:\nGodkendelse og kontrol: G\nUdfører aktivitet: X\nBackup: B\nOrienteres: O",{"$f":"'Rutiner - Ledelse'!B4","v":{"$error":"#REF!"}},{"$f":"'Rutiner - Ledelse'!C4","v":{"$error":"#REF!"}},{"$f":"'Rutiner - Ledelse'!D4","v":{"$error":"#REF!"}},{"$f":"'Rutiner - Ledelse'!E4","v":{"$error":"#REF!"}},{"$f":"'Rutiner - Ledelse'!F4","v":{"$error":"#REF!"}},{"$f":"'Rutiner - Ledelse'!G4","v":{"$error":"#REF!"}},{"$f":"'Rutiner - Ledelse'!H4","v":{"$error":"#REF!"}},{"$f":"'Rutiner - Ledelse'!I4","v":{"$error":"#REF!"}},{"$f":"'Rutiner - Ledelse'!J4","v":{"$error":"#REF!"}},{"$f":"IF(ISBLANK('Rutiner - Ledelse'!K4),\"\", 'Rutiner - Ledelse'!K4)","v":"Hans Hansen"},{"$f":"IF(ISBLANK('Rutiner - Ledelse'!L4),\"\", 'Rutiner - Ledelse'!L4)","v":""},{"$f":"IF(ISBLANK('Rutiner - Ledelse'!M4),\"\", 'Rutiner - Ledelse'!M4)","v":""},{"$f":"IF(ISBLANK('Rutiner - Ledelse'!N4),\"\", 'Rutiner - Ledelse'!N4)","v":""},{"$f":"IF(ISBLANK('Rutiner - Ledelse'!O4),\"\", 'Rutiner - Ledelse'!O4)","v":""},"Kommentarer"]
[{"$f":"'Proces - Oversigt'!B43","v":"P - Produktionsopgaver"}]
[{"$f":"'Proces - Oversigt'!B44","v":"P01 - Planlægning, hoved-finplan., "},"G",null,null,"B",null,null,null,null,null,null,null,null,null,null,"test"]
[{"$f":"'Proces - Oversigt'!B45","v":"P02 - Klargøring og opstart af produktion"}]
[{"$f":"'Proces - Oversigt'!B46","v":"P03 - Værkstedsstyring og overvågning af leveringsterm."}]
[{"$f":"'Proces - Oversigt'!B47","v":"P04 - Optimering af processer"},null,null,null,null,"X","O"]
[{"$f":"'Proces - Oversigt'!B48","v":"P05 - Instruktion og kompetenceudvikling af medarb."}]
[{"$f":"'Proces - Oversigt'!B49","v":"P06 - Håndtering af ændrings- og hasteordre."}]
[{"$f":"'Proces - Oversigt'!B51","v":"P08"}]
[{"$f":"'Proces - Oversigt'!B52","v":"P11 - Kvalitetsstyring"}]
[{"$f":"'Proces - Oversigt'!B53","v":"P12 - Økonomi, rapportering, planlægning"}]
[{"$f":"'Proces - Oversigt'!B54","v":"P13 - HR opgaver"}]
[]
[]
[]
[]
[]
[]
[]
[]
[]
[]
[]
[]
[]
[]
[]
[]
[]
[]
[]
[]
[]
[]
[]
[]
[]
[]
[]
[]
[]
[]
[]
[]
[]
[]
[]
[]
[]
[]
[]
[]
[]
[]
[]
[]
[]
[]
[]
[]
[]
[]
[]
[]
[]
[]
[]
[]
[]
[]
[]
[]
[]
[]
[]
[]
[]
[]
[]
[]
[]
[]
[]
[null,"Interne medarbejdere"]
[]
[]
[]
[]
[]
[]
[]
[]
[]
[]
[]
[]
[]
[]
[]
[]
[]
[]
[]
[]
[]
[]
[]
[]
[]
[]
[]
[]
[]
[]
[]
[]
[]
[]
[]
[]
[]
[]
[]
[]
[]
[]
[]
[]
[]
[]
[]
[]
[]
[]
[]
[]
[]
[]
[]
[]
[]
[]
[null,"Interne medarbejdere"]

{"sheet":"Rutiner - PTF","index":13,"n_rows":17,"n_cols":16,"rows_kept":17,"cut":false,"hidden":true,"merged":[[14,15,14,16],[15,15,15,16],[16,15,16,16],[11,15,11,16],[12,15,12,16],[13,15,13,16],[6,15,6,16],[7,15,7,16],[8,15,8,16],[9,15,9,16],[10,15,10,16],[2,1,2,14],[2,15,2,16],[3,1,3,9],[3,10,3,14],[3,15,3,16]]}
[]
[]
["Arbejdsrutiner","                           Organisation                   "]
[null,"Interne medarbejdere",null,null,null,null,null,null,null,null,"Ekst. Medarb.  "]
["Anvendt koder:\nGodkendelse og kontrol: G\nUdfører aktivitet: X\nBackup: B\nOrienteres: O",{"$f":"'Rutiner - Ledelse'!B4","v":{"$error":"#REF!"}},{"$f":"'Rutiner - Ledelse'!C4","v":{"$error":"#REF!"}},{"$f":"'Rutiner - Ledelse'!D4","v":{"$error":"#REF!"}},{"$f":"'Rutiner - Ledelse'!E4","v":{"$error":"#REF!"}},{"$f":"'Rutiner - Ledelse'!F4","v":{"$error":"#REF!"}},{"$f":"'Rutiner - Ledelse'!G4","v":{"$error":"#REF!"}},{"$f":"'Rutiner - Ledelse'!H4","v":{"$error":"#REF!"}},{"$f":"'Rutiner - Ledelse'!I4","v":{"$error":"#REF!"}},{"$f":"'Rutiner - Ledelse'!J4","v":{"$error":"#REF!"}},{"$f":"IF(ISBLANK('Rutiner - Ledelse'!K4),\"\", 'Rutiner - Ledelse'!K4)","v":"Hans Hansen"},{"$f":"IF(ISBLANK('Rutiner - Ledelse'!L4),\"\", 'Rutiner - Ledelse'!L4)","v":""},{"$f":"IF(ISBLANK('Rutiner - Ledelse'!M4),\"\", 'Rutiner - Ledelse'!M4)","v":""},{"$f":"IF(ISBLANK('Rutiner - Ledelse'!N4),\"\", 'Rutiner - Ledelse'!N4)","v":""},{"$f":"IF(ISBLANK('Rutiner - Ledelse'!O4),\"\", 'Rutiner - Ledelse'!O4)","v":""},"Kommentarer"]
[{"$f":"'Proces - Oversigt'!B29","v":"T - Opgaver vedr. Produktionsteknik - PTF"}]
[{"$f":"'Proces - Oversigt'!B30","v":"T01 - Produktionsgrundlag"},"G"]
[{"$f":"'Proces - Oversigt'!B31","v":"T02 - Hjælpeværktøjer"}]
[{"$f":"'Proces - Oversigt'!B32","v":"T03 - Prototyper, nulserier og vareprøver"}]
[{"$f":"'Proces - Oversigt'!B33","v":"T04 - Produktkalkulation"}]
[{"$f":"'Proces - Oversigt'!B34","v":"T05 - Procesoptimering"}]
[{"$f":"'Proces - Oversigt'!B35","v":"T06 - Produktudvikling"}]
[{"$f":"'Proces - Oversigt'!B36","v":"T07 - Teknisk salgssupport"}]
[{"$f":"'Proces - Oversigt'!B38","v":"T09"}]
[{"$f":"'Proces - Oversigt'!B39","v":"T11 - Kvalitetsstyring"}]
[{"$f":"'Proces - Oversigt'!B40","v":"T12 - Økonomi, rapportering, planlægning"}]
[{"$f":"'Proces - Oversigt'!B41","v":"T13 - HR opgaver"}]

{"sheet":"Rutiner - Lager og logistik","index":14,"n_rows":18,"n_cols":16,"rows_kept":18,"cut":false,"hidden":true,"merged":[[1,1,1,14],[2,1,2,9],[2,10,2,14]]}
[]
["Arbejdsrutiner","                           Organisation                   "]
[null,"Interne medarbejdere",null,null,null,null,null,null,null,null,"Ekst. Medarb.  "]
["Anvendt koder:\nGodkendelse og kontrol: G\nUdfører aktivitet: X\nBackup: B\nOrienteres: O",{"$f":"'Rutiner - Ledelse'!B4","v":{"$error":"#REF!"}},{"$f":"'Rutiner - Ledelse'!C4","v":{"$error":"#REF!"}},{"$f":"'Rutiner - Ledelse'!D4","v":{"$error":"#REF!"}},{"$f":"'Rutiner - Ledelse'!E4","v":{"$error":"#REF!"}},{"$f":"'Rutiner - Ledelse'!F4","v":{"$error":"#REF!"}},{"$f":"'Rutiner - Ledelse'!G4","v":{"$error":"#REF!"}},{"$f":"'Rutiner - Ledelse'!H4","v":{"$error":"#REF!"}},{"$f":"'Rutiner - Ledelse'!I4","v":{"$error":"#REF!"}},{"$f":"'Rutiner - Ledelse'!J4","v":{"$error":"#REF!"}},{"$f":"IF(ISBLANK('Rutiner - Ledelse'!K4),\"\", 'Rutiner - Ledelse'!K4)","v":"Hans Hansen"},{"$f":"IF(ISBLANK('Rutiner - Ledelse'!L4),\"\", 'Rutiner - Ledelse'!L4)","v":""},{"$f":"IF(ISBLANK('Rutiner - Ledelse'!M4),\"\", 'Rutiner - Ledelse'!M4)","v":""},{"$f":"IF(ISBLANK('Rutiner - Ledelse'!N4),\"\", 'Rutiner - Ledelse'!N4)","v":""},{"$f":"IF(ISBLANK('Rutiner - Ledelse'!O4),\"\", 'Rutiner - Ledelse'!O4)","v":""},"Kommentarer"]
[{"$f":"'Proces - Oversigt'!B56","v":"L - Lager- og logistikopgaver"}]
[{"$f":"'Proces - Oversigt'!B57","v":"L01 - Varemodtagelse, kontrol, registrering"},"G"]
[{"$f":"'Proces - Oversigt'!B58","v":"L02 - Lagerregnskab - Fysisk optælling af lagerbeholdning"}]
[{"$f":"'Proces - Oversigt'!B59","v":"L03 - Udlevering af varer til produktion"}]
[{"$f":"'Proces - Oversigt'!B60","v":"L04 - Klargøring af varer til forsendelse"}]
[{"$f":"'Proces - Oversigt'!B60","v":"L04 - Klargøring af varer til forsendelse"}]
[{"$f":"'Proces - Oversigt'!B61","v":"L05 - Forsendelsespapirer - bookning af transportør"}]
[{"$f":"'Proces - Oversigt'!B62","v":"L06 - Pålæsning af varer - udgangskontrol"}]
[{"$f":"'Proces - Oversigt'!B63","v":"L07 - Logistikaftaler - transport, lagerhotel, etc."}]
[{"$f":"'Proces - Oversigt'!B64","v":"L08 - Håndtering af ændrings- og hasteordrer"}]
[{"$f":"'Proces - Oversigt'!B66","v":"L10"}]
[{"$f":"'Proces - Oversigt'!B67","v":"L11 - Kvalitetsstyring"}]
[{"$f":"'Proces - Oversigt'!B68","v":"L12 - Økonomi, rapportering, planlægning"}]
[{"$f":"'Proces - Oversigt'!B69","v":"L13 - HR opgaver"}]

{"sheet":"Rutiner - Indkøb","index":15,"n_rows":146,"n_cols":16,"rows_kept":146,"cut":false,"hidden":true,"merged":[[1,1,1,14],[2,1,2,9],[2,10,2,14]]}
[]
["Arbejdsrutiner","                           Organisation                   "]
[null,"Interne medarbejdere",null,null,null,null,null,null,null,null,"Ekst. Medarb.  "]
["Anvendt koder:\nGodkendelse og kontrol: G\nUdfører aktivitet: X\nBackup: B\nOrienteres: O",{"$f":"'Rutiner - Ledelse'!B4","v":{"$error":"#REF!"}},{"$f":"'Rutiner - Ledelse'!C4","v":{"$error":"#REF!"}},{"$f":"'Rutiner - Ledelse'!D4","v":{"$error":"#REF!"}},{"$f":"'Rutiner - Ledelse'!E4","v":{"$error":"#REF!"}},{"$f":"'Rutiner - Ledelse'!F4","v":{"$error":"#REF!"}},{"$f":"'Rutiner - Ledelse'!G4","v":{"$error":"#REF!"}},{"$f":"'Rutiner - Ledelse'!H4","v":{"$error":"#REF!"}},{"$f":"'Rutiner - Ledelse'!I4","v":{"$error":"#REF!"}},{"$f":"'Rutiner - Ledelse'!J4","v":{"$error":"#REF!"}},{"$f":"IF(ISBLANK('Rutiner - Ledelse'!K4),\"\", 'Rutiner - Ledelse'!K4)","v":"Hans Hansen"},{"$f":"IF(ISBLANK('Rutiner - Ledelse'!L4),\"\", 'Rutiner - Ledelse'!L4)","v":""},{"$f":"IF(ISBLANK('Rutiner - Ledelse'!M4),\"\", 'Rutiner - Ledelse'!M4)","v":""},{"$f":"IF(ISBLANK('Rutiner - Ledelse'!N4),\"\", 'Rutiner - Ledelse'!N4)","v":""},{"$f":"IF(ISBLANK('Rutiner - Ledelse'!O4),\"\", 'Rutiner - Ledelse'!O4)","v":""},"Kommentarer"]
[{"$f":"'Proces - Oversigt'!B71","v":"I - Indkøbsopgaver"}]
[{"$f":"'Proces - Oversigt'!B72","v":"I01 - Leverandørevaluering"},"G"]
[{"$f":"'Proces - Oversigt'!B73","v":"I02 - Leverandøraftaler"}]
[{"$f":"'Proces - Oversigt'!B74","v":"I03 - Behovsberegning og disponering"}]
[{"$f":"'Proces - Oversigt'!B75","v":"I04 - Indkøbsordrer"}]
[{"$f":"'Proces - Oversigt'!B76","v":"I05 - Reklamationsbehandling"}]
[{"$f":"IF(ISBLANK('Rutiner - Ledelse'!K4),\"\", 'Rutiner - Ledelse'!K4)","v":"Hans Hansen"}]
[{"$f":"'Proces - Oversigt'!B79","v":"I08"}]
[{"$f":"'Proces - Oversigt'!B80","v":"I11 - Kvalitetsstyring"}]
[{"$f":"'Proces - Oversigt'!B81","v":"I12 - Økonomi, rapportering, planlægning"}]
[{"$f":"'Proces - Oversigt'!B82","v":"I13 - HR opgaver"}]
[]
[]
[]
[]
[]
[]
[]
[]
[]
[]
[]
[]
[]
[]
[]
[]
[]
[]
[]
[]
[]
[]
[]
[]
[]
[]
[]
[]
[]
[]
[]
[]
[]
[]
[]
[]
[]
[]
[]
[]
[]
[]
[]
[]
[]
[]
[]
[]
[]
[]
[]
[]
[]
[]
[]
[]
[]
[]
[]
[]
[]
[]
[]
[]
[]
[]
[]
[]
[]
[]
[]
[null,"Interne medarbejdere"]
[]
[]
[]
[]
[]
[]
[]
[]
[]
[]
[]
[]
[]
[]
[]
[]
[]
[]
[]
[]
[]
[]
[]
[]
[]
[]
[]
[]
[]
[]
[]
[]
[]
[]
[]
[]
[]
[]
[]
[]
[]
[]
[]
[]
[]
[]
[]
[]
[]
[]
[]
[]
[]
[]
[]
[]
[]
[]
[null,"Interne medarbejdere"]

{"sheet":"Rutiner - Økonomi","index":16,"n_rows":13,"n_cols":16,"rows_kept":13,"cut":false,"hidden":true,"merged":[[1,1,1,14],[2,1,2,9],[2,10,2,14]]}
[]
["Arbejdsrutiner","                           Organisation                   "]
[null,"Interne medarbejdere",null,null,null,null,null,null,null,null,"Ekst. Medarb.  "]
["Anvendt koder:\nGodkendelse og kontrol: G\nUdfører aktivitet: X\nBackup: B\nOrienteres: O",{"$f":"'Rutiner - Ledelse'!B4","v":{"$error":"#REF!"}},{"$f":"'Rutiner - Ledelse'!C4","v":{"$error":"#REF!"}},{"$f":"'Rutiner - Ledelse'!D4","v":{"$error":"#REF!"}},{"$f":"'Rutiner - Ledelse'!E4","v":{"$error":"#REF!"}},{"$f":"'Rutiner - Ledelse'!F4","v":{"$error":"#REF!"}},{"$f":"'Rutiner - Ledelse'!G4","v":{"$error":"#REF!"}},{"$f":"'Rutiner - Ledelse'!H4","v":{"$error":"#REF!"}},{"$f":"'Rutiner - Ledelse'!I4","v":{"$error":"#REF!"}},{"$f":"'Rutiner - Ledelse'!J4","v":{"$error":"#REF!"}},{"$f":"IF(ISBLANK('Rutiner - Ledelse'!K4),\"\", 'Rutiner - Ledelse'!K4)","v":"Hans Hansen"},{"$f":"IF(ISBLANK('Rutiner - Ledelse'!L4),\"\", 'Rutiner - Ledelse'!L4)","v":""},{"$f":"IF(ISBLANK('Rutiner - Ledelse'!M4),\"\", 'Rutiner - Ledelse'!M4)","v":""},{"$f":"IF(ISBLANK('Rutiner - Ledelse'!N4),\"\", 'Rutiner - Ledelse'!N4)","v":""},{"$f":"IF(ISBLANK('Rutiner - Ledelse'!O4),\"\", 'Rutiner - Ledelse'!O4)","v":""},"Kommentarer"]
[{"$f":"'Proces - Oversigt'!B84","v":"B - Økonomiopgaver"}]
[{"$f":"'Proces - Oversigt'!B85","v":"B01 - Finans, debitor og kreditor"},"G"]
[{"$f":"'Proces - Oversigt'!B86","v":"B02 - Gage og lønninger"}]
[{"$f":"'Proces - Oversigt'!B87","v":"B03 - Budgetlægning"}]
[{"$f":"'Proces - Oversigt'!B88","v":"B04 - Likviditetsstyring"}]
[{"$f":"'Proces - Oversigt'!B90","v":"B06"}]
[{"$f":"'Proces - Oversigt'!B91","v":"B11 - Reklamationsbehandling"}]
[{"$f":"'Proces - Oversigt'!B92","v":"B12 - Økonomi, rapportering, planlægning"}]
[{"$f":"'Proces - Oversigt'!B93","v":"B13 - HR opgaver"}]

{"sheet":"Rutine - oversigt","index":17,"n_rows":83,"n_cols":17,"rows_kept":83,"cut":false,"hidden":true,"merged":[[2,2,2,15],[3,2,3,10],[3,11,3,15]]}
[]
[]
[null,"Arbejdsrutiner","                           Organisation                   "]
[null,null,"Interne medarbejdere",null,null,null,null,null,null,null,null,"Ekst. Medarb.  "]
[null,"Anvendt koder:\nGodkendelse og kontrol: G\nUdfører aktivitet: X\nBackup: B\nOrienteres: O\n",{"$f":"IF(ISBLANK('Proces - Oversigt'!#REF!),\"\", 'Proces - Oversigt'!#REF!)","v":{"$error":"#REF!"}},{"$f":"IF(ISBLANK('Proces - Oversigt'!#REF!),\"\", 'Proces - Oversigt'!#REF!)","v":{"$error":"#REF!"}},{"$f":"IF(ISBLANK('Proces - Oversigt'!#REF!),\"\", 'Proces - Oversigt'!#REF!)","v":{"$error":"#REF!"}},{"$f":"IF(ISBLANK('Proces - Oversigt'!#REF!),\"\", 'Proces - Oversigt'!#REF!)","v":{"$error":"#REF!"}},{"$f":"IF(ISBLANK('Proces - Oversigt'!#REF!),\"\", 'Proces - Oversigt'!#REF!)","v":{"$error":"#REF!"}},{"$f":"IF(ISBLANK('Proces - Oversigt'!#REF!),\"\", 'Proces - Oversigt'!#REF!)","v":{"$error":"#REF!"}},{"$f":"IF(ISBLANK('Proces - Oversigt'!#REF!),\"\", 'Proces - Oversigt'!#REF!)","v":{"$error":"#REF!"}},{"$f":"IF(ISBLANK('Proces - Oversigt'!#REF!),\"\", 'Proces - Oversigt'!#REF!)","v":{"$error":"#REF!"}},{"$f":"IF(ISBLANK('Proces - Oversigt'!#REF!),\"\", 'Proces - Oversigt'!#REF!)","v":{"$error":"#REF!"}},{"$f":"IF(ISBLANK('Rutiner - Ledelse'!K4),\"\", 'Rutiner - Ledelse'!K4)","v":"Hans Hansen"},{"$f":"IF(ISBLANK('Rutiner - Ledelse'!L4),\"\", 'Rutiner - Ledelse'!L4)","v":""},{"$f":"IF(ISBLANK('Rutiner - Ledelse'!M4),\"\", 'Rutiner - Ledelse'!M4)","v":""},{"$f":"IF(ISBLANK('Rutiner - Ledelse'!N4),\"\", 'Rutiner - Ledelse'!N4)","v":""},{"$f":"IF(ISBLANK('Rutiner - Ledelse'!O4),\"\", 'Rutiner - Ledelse'!O4)","v":""},"Kommentarer:\n\nIngen indtastning på denne side!"]
[null,{"$f":"IF(ISBLANK('Proces - Oversigt'!B10),\"\", 'Proces - Oversigt'!B10)","v":"L - Ledelsesopgaver"}]
[null,{"$f":"IF(ISBLANK('Proces - Oversigt'!B11),\"\", 'Proces - Oversigt'!B11)","v":"L01 - Koordinering af ledergruppe"},{"$f":"IF(ISBLANK('Rutiner - Ledelse'!B6),\"\",'Rutiner - Ledelse'!B6)","v":"G"},{"$f":"IF(ISBLANK('Rutiner - Ledelse'!C6),\"\",'Rutiner - Ledelse'!C6)","v":""},{"$f":"IF(ISBLANK('Rutiner - Ledelse'!D6),\"\",'Rutiner - Ledelse'!D6)","v":""},{"$f":"IF(ISBLANK('Rutiner - Ledelse'!E6),\"\",'Rutiner - Ledelse'!E6)","v":""},{"$f":"IF(ISBLANK('Rutiner - Ledelse'!F6),\"\",'Rutiner - Ledelse'!F6)","v":""},{"$f":"IF(ISBLANK('Rutiner - Ledelse'!G6),\"\",'Rutiner - Ledelse'!G6)","v":""},{"$f":"IF(ISBLANK('Rutiner - Ledelse'!H6),\"\",'Rutiner - Ledelse'!H6)","v":""},{"$f":"IF(ISBLANK('Rutiner - Ledelse'!I6),\"\",'Rutiner - Ledelse'!I6)","v":""},{"$f":"IF(ISBLANK('Rutiner - Ledelse'!J6),\"\",'Rutiner - Ledelse'!J6)","v":""},{"$f":"IF(ISBLANK('Rutiner - Ledelse'!K6),\"\",'Rutiner - Ledelse'!K6)","v":""},{"$f":"IF(ISBLANK('Rutiner - Ledelse'!L6),\"\",'Rutiner - Ledelse'!L6)","v":""},{"$f":"IF(ISBLANK('Rutiner - Ledelse'!M6),\"\",'Rutiner - Ledelse'!M6)","v":""},{"$f":"IF(ISBLANK('Rutiner - Ledelse'!N6),\"\",'Rutiner - Ledelse'!N6)","v":""},{"$f":"IF(ISBLANK('Rutiner - Ledelse'!O6),\"\",'Rutiner - Ledelse'!O6)","v":""},{"$f":"IF(ISBLANK('Rutiner - Ledelse'!P6),\"\",'Rutiner - Ledelse'!P6)","v":""}]
[null,{"$f":"IF(ISBLANK('Proces - Oversigt'!B12),\"\", 'Proces - Oversigt'!B12)","v":"L02 - Kvalitetsstyring - reklamationer"},{"$f":"IF(ISBLANK('Rutiner - Ledelse'!B7),\"\",'Rutiner - Ledelse'!B7)","v":""},{"$f":"IF(ISBLANK('Rutiner - Ledelse'!C7),\"\",'Rutiner - Ledelse'!C7)","v":""},{"$f":"IF(ISBLANK('Rutiner - Ledelse'!D7),\"\",'Rutiner - Ledelse'!D7)","v":""},{"$f":"IF(ISBLANK('Rutiner - Ledelse'!E7),\"\",'Rutiner - Ledelse'!E7)","v":""},{"$f":"IF(ISBLANK('Rutiner - Ledelse'!F7),\"\",'Rutiner - Ledelse'!F7)","v":""},{"$f":"IF(ISBLANK('Rutiner - Ledelse'!G7),\"\",'Rutiner - Ledelse'!G7)","v":""},{"$f":"IF(ISBLANK('Rutiner - Ledelse'!H7),\"\",'Rutiner - Ledelse'!H7)","v":""},{"$f":"IF(ISBLANK('Rutiner - Ledelse'!I7),\"\",'Rutiner - Ledelse'!I7)","v":""},{"$f":"IF(ISBLANK('Rutiner - Ledelse'!J7),\"\",'Rutiner - Ledelse'!J7)","v":""},{"$f":"IF(ISBLANK('Rutiner - Ledelse'!K7),\"\",'Rutiner - Ledelse'!K7)","v":""},{"$f":"IF(ISBLANK('Rutiner - Ledelse'!L7),\"\",'Rutiner - Ledelse'!L7)","v":""},{"$f":"IF(ISBLANK('Rutiner - Ledelse'!M7),\"\",'Rutiner - Ledelse'!M7)","v":""},{"$f":"IF(ISBLANK('Rutiner - Ledelse'!N7),\"\",'Rutiner - Ledelse'!N7)","v":""},{"$f":"IF(ISBLANK('Rutiner - Ledelse'!O7),\"\",'Rutiner - Ledelse'!O7)","v":""},{"$f":"IF(ISBLANK('Rutiner - Ledelse'!P7),\"\",'Rutiner - Ledelse'!P7)","v":""}]
[null,{"$f":"IF(ISBLANK('Proces - Oversigt'!B13),\"\", 'Proces - Oversigt'!B13)","v":"L03 - Projektstyring"},{"$f":"IF(ISBLANK('Rutiner - Ledelse'!B8),\"\",'Rutiner - Ledelse'!B8)","v":""},{"$f":"IF(ISBLANK('Rutiner - Ledelse'!C8),\"\",'Rutiner - Ledelse'!C8)","v":""},{"$f":"IF(ISBLANK('Rutiner - Ledelse'!D8),\"\",'Rutiner - Ledelse'!D8)","v":""},{"$f":"IF(ISBLANK('Rutiner - Ledelse'!E8),\"\",'Rutiner - Ledelse'!E8)","v":""},{"$f":"IF(ISBLANK('Rutiner - Ledelse'!F8),\"\",'Rutiner - Ledelse'!F8)","v":""},{"$f":"IF(ISBLANK('Rutiner - Ledelse'!G8),\"\",'Rutiner - Ledelse'!G8)","v":""},{"$f":"IF(ISBLANK('Rutiner - Ledelse'!H8),\"\",'Rutiner - Ledelse'!H8)","v":""},{"$f":"IF(ISBLANK('Rutiner - Ledelse'!I8),\"\",'Rutiner - Ledelse'!I8)","v":""},{"$f":"IF(ISBLANK('Rutiner - Ledelse'!J8),\"\",'Rutiner - Ledelse'!J8)","v":""},{"$f":"IF(ISBLANK('Rutiner - Ledelse'!K8),\"\",'Rutiner - Ledelse'!K8)","v":""},{"$f":"IF(ISBLANK('Rutiner - Ledelse'!L8),\"\",'Rutiner - Ledelse'!L8)","v":""},{"$f":"IF(ISBLANK('Rutiner - Ledelse'!M8),\"\",'Rutiner - Ledelse'!M8)","v":""},{"$f":"IF(ISBLANK('Rutiner - Ledelse'!N8),\"\",'Rutiner - Ledelse'!N8)","v":""},{"$f":"IF(ISBLANK('Rutiner - Ledelse'!O8),\"\",'Rutiner - Ledelse'!O8)","v":""},{"$f":"IF(ISBLANK('Rutiner - Ledelse'!P8),\"\",'Rutiner - Ledelse'!P8)","v":""}]
[null,{"$f":"IF(ISBLANK('Proces - Oversigt'!B14),\"\", 'Proces - Oversigt'!B14)","v":"L04 - Kontraktforhandlinger"},{"$f":"IF(ISBLANK('Rutiner - Ledelse'!B9),\"\",'Rutiner - Ledelse'!B9)","v":""},{"$f":"IF(ISBLANK('Rutiner - Ledelse'!C9),\"\",'Rutiner - Ledelse'!C9)","v":""},{"$f":"IF(ISBLANK('Rutiner - Ledelse'!D9),\"\",'Rutiner - Ledelse'!D9)","v":""},{"$f":"IF(ISBLANK('Rutiner - Ledelse'!E9),\"\",'Rutiner - Ledelse'!E9)","v":""},{"$f":"IF(ISBLANK('Rutiner - Ledelse'!F9),\"\",'Rutiner - Ledelse'!F9)","v":""},{"$f":"IF(ISBLANK('Rutiner - Ledelse'!G9),\"\",'Rutiner - Ledelse'!G9)","v":""},{"$f":"IF(ISBLANK('Rutiner - Ledelse'!H9),\"\",'Rutiner - Ledelse'!H9)","v":""},{"$f":"IF(ISBLANK('Rutiner - Ledelse'!I9),\"\",'Rutiner - Ledelse'!I9)","v":""},{"$f":"IF(ISBLANK('Rutiner - Ledelse'!J9),\"\",'Rutiner - Ledelse'!J9)","v":""},{"$f":"IF(ISBLANK('Rutiner - Ledelse'!K9),\"\",'Rutiner - Ledelse'!K9)","v":""},{"$f":"IF(ISBLANK('Rutiner - Ledelse'!L9),\"\",'Rutiner - Ledelse'!L9)","v":""},{"$f":"IF(ISBLANK('Rutiner - Ledelse'!M9),\"\",'Rutiner - Ledelse'!M9)","v":""},{"$f":"IF(ISBLANK('Rutiner - Ledelse'!N9),\"\",'Rutiner - Ledelse'!N9)","v":""},{"$f":"IF(ISBLANK('Rutiner - Ledelse'!O9),\"\",'Rutiner - Ledelse'!O9)","v":""},{"$f":"IF(ISBLANK('Rutiner - Ledelse'!P9),\"\",'Rutiner - Ledelse'!P9)","v":""}]
[null,{"$f":"IF(ISBLANK('Proces - Oversigt'!B15),\"\", 'Proces - Oversigt'!B15)","v":"L05 - Økonomi, rapportering, planlægning"},{"$f":"IF(ISBLANK('Rutiner - Ledelse'!B10),\"\",'Rutiner - Ledelse'!B10)","v":""},{"$f":"IF(ISBLANK('Rutiner - Ledelse'!C10),\"\",'Rutiner - Ledelse'!C10)","v":""},{"$f":"IF(ISBLANK('Rutiner - Ledelse'!D10),\"\",'Rutiner - Ledelse'!D10)","v":""},{"$f":"IF(ISBLANK('Rutiner - Ledelse'!E10),\"\",'Rutiner - Ledelse'!E10)","v":""},{"$f":"IF(ISBLANK('Rutiner - Ledelse'!F10),\"\",'Rutiner - Ledelse'!F10)","v":""},{"$f":"IF(ISBLANK('Rutiner - Ledelse'!G10),\"\",'Rutiner - Ledelse'!G10)","v":""},{"$f":"IF(ISBLANK('Rutiner - Ledelse'!H10),\"\",'Rutiner - Ledelse'!H10)","v":""},{"$f":"IF(ISBLANK('Rutiner - Ledelse'!I10),\"\",'Rutiner - Ledelse'!I10)","v":""},{"$f":"IF(ISBLANK('Rutiner - Ledelse'!J10),\"\",'Rutiner - Ledelse'!J10)","v":""},{"$f":"IF(ISBLANK('Rutiner - Ledelse'!K10),\"\",'Rutiner - Ledelse'!K10)","v":""},{"$f":"IF(ISBLANK('Rutiner - Ledelse'!L10),\"\",'Rutiner - Ledelse'!L10)","v":""},{"$f":"IF(ISBLANK('Rutiner - Ledelse'!M10),\"\",'Rutiner - Ledelse'!M10)","v":""},{"$f":"IF(ISBLANK('Rutiner - Ledelse'!N10),\"\",'Rutiner - Ledelse'!N10)","v":""},{"$f":"IF(ISBLANK('Rutiner - Ledelse'!O10),\"\",'Rutiner - Ledelse'!O10)","v":""},{"$f":"IF(ISBLANK('Rutiner - Ledelse'!P10),\"\",'Rutiner - Ledelse'!P10)","v":""}]
[null,{"$f":"IF(ISBLANK('Proces - Oversigt'!B16),\"\", 'Proces - Oversigt'!B16)","v":""},{"$f":"IF(ISBLANK('Rutiner - Ledelse'!B11),\"\",'Rutiner - Ledelse'!B11)","v":""},{"$f":"IF(ISBLANK('Rutiner - Ledelse'!C11),\"\",'Rutiner - Ledelse'!C11)","v":""},{"$f":"IF(ISBLANK('Rutiner - Ledelse'!D11),\"\",'Rutiner - Ledelse'!D11)","v":""},{"$f":"IF(ISBLANK('Rutiner - Ledelse'!E11),\"\",'Rutiner - Ledelse'!E11)","v":""},{"$f":"IF(ISBLANK('Rutiner - Ledelse'!F11),\"\",'Rutiner - Ledelse'!F11)","v":""},{"$f":"IF(ISBLANK('Rutiner - Ledelse'!G11),\"\",'Rutiner - Ledelse'!G11)","v":""},{"$f":"IF(ISBLANK('Rutiner - Ledelse'!H11),\"\",'Rutiner - Ledelse'!H11)","v":""},{"$f":"IF(ISBLANK('Rutiner - Ledelse'!I11),\"\",'Rutiner - Ledelse'!I11)","v":""},{"$f":"IF(ISBLANK('Rutiner - Ledelse'!J11),\"\",'Rutiner - Ledelse'!J11)","v":""},{"$f":"IF(ISBLANK('Rutiner - Ledelse'!K11),\"\",'Rutiner - Ledelse'!K11)","v":""},{"$f":"IF(ISBLANK('Rutiner - Ledelse'!L11),\"\",'Rutiner - Ledelse'!L11)","v":""},{"$f":"IF(ISBLANK('Rutiner - Ledelse'!M11),\"\",'Rutiner - Ledelse'!M11)","v":""},{"$f":"IF(ISBLANK('Rutiner - Ledelse'!N11),\"\",'Rutiner - Ledelse'!N11)","v":""},{"$f":"IF(ISBLANK('Rutiner - Ledelse'!O11),\"\",'Rutiner - Ledelse'!O11)","v":""},{"$f":"IF(ISBLANK('Rutiner - Ledelse'!P11),\"\",'Rutiner - Ledelse'!P11)","v":""}]
[null,{"$f":"IF(ISBLANK('Proces - Oversigt'!B17),\"\", 'Proces - Oversigt'!B17)","v":"S - Salgsopgaver"}]
[null,{"$f":"IF(ISBLANK('Proces - Oversigt'!B18),\"\", 'Proces - Oversigt'!B18)","v":"S01 - Salgsordre - almindelige ordre"},{"$f":"IF(ISBLANK('Rutiner - Salg'!B6),\"\", 'Rutiner - Salg'!B6)","v":"G"},{"$f":"IF(ISBLANK('Rutiner - Salg'!C6),\"\", 'Rutiner - Salg'!C6)","v":""},{"$f":"IF(ISBLANK('Rutiner - Salg'!D6),\"\", 'Rutiner - Salg'!D6)","v":""},{"$f":"IF(ISBLANK('Rutiner - Salg'!E6),\"\", 'Rutiner - Salg'!E6)","v":""},{"$f":"IF(ISBLANK('Rutiner - Salg'!F6),\"\", 'Rutiner - Salg'!F6)","v":""},{"$f":"IF(ISBLANK('Rutiner - Salg'!G6),\"\", 'Rutiner - Salg'!G6)","v":""},{"$f":"IF(ISBLANK('Rutiner - Salg'!H6),\"\", 'Rutiner - Salg'!H6)","v":""},{"$f":"IF(ISBLANK('Rutiner - Salg'!I6),\"\", 'Rutiner - Salg'!I6)","v":""},{"$f":"IF(ISBLANK('Rutiner - Salg'!J6),\"\", 'Rutiner - Salg'!J6)","v":""},{"$f":"IF(ISBLANK('Rutiner - Salg'!K6),\"\", 'Rutiner - Salg'!K6)","v":""},{"$f":"IF(ISBLANK('Rutiner - Salg'!L6),\"\", 'Rutiner - Salg'!L6)","v":""},{"$f":"IF(ISBLANK('Rutiner - Salg'!M6),\"\", 'Rutiner - Salg'!M6)","v":""},{"$f":"IF(ISBLANK('Rutiner - Salg'!N6),\"\", 'Rutiner - Salg'!N6)","v":""},{"$f":"IF(ISBLANK('Rutiner - Salg'!O6),\"\", 'Rutiner - Salg'!O6)","v":""},{"$f":"IF(ISBLANK('Rutiner - Salg'!P6),\"\", 'Rutiner - Salg'!P6)","v":""}]
[null,{"$f":"IF(ISBLANK('Proces - Oversigt'!B19),\"\", 'Proces - Oversigt'!B19)","v":"S02 - Salgsordre - projekter, 1. gangsleverancer/prototyper"},{"$f":"IF(ISBLANK('Rutiner - Salg'!B7),\"\", 'Rutiner - Salg'!B7)","v":""},{"$f":"IF(ISBLANK('Rutiner - Salg'!C7),\"\", 'Rutiner - Salg'!C7)","v":""},{"$f":"IF(ISBLANK('Rutiner - Salg'!D7),\"\", 'Rutiner - Salg'!D7)","v":""},{"$f":"IF(ISBLANK('Rutiner - Salg'!E7),\"\", 'Rutiner - Salg'!E7)","v":""},{"$f":"IF(ISBLANK('Rutiner - Salg'!F7),\"\", 'Rutiner - Salg'!F7)","v":""},{"$f":"IF(ISBLANK('Rutiner - Salg'!G7),\"\", 'Rutiner - Salg'!G7)","v":""},{"$f":"IF(ISBLANK('Rutiner - Salg'!H7),\"\", 'Rutiner - Salg'!H7)","v":""},{"$f":"IF(ISBLANK('Rutiner - Salg'!I7),\"\", 'Rutiner - Salg'!I7)","v":""},{"$f":"IF(ISBLANK('Rutiner - Salg'!J7),\"\", 'Rutiner - Salg'!J7)","v":""},{"$f":"IF(ISBLANK('Rutiner - Salg'!K7),\"\", 'Rutiner - Salg'!K7)","v":""},{"$f":"IF(ISBLANK('Rutiner - Salg'!L7),\"\", 'Rutiner - Salg'!L7)","v":""},{"$f":"IF(ISBLANK('Rutiner - Salg'!M7),\"\", 'Rutiner - Salg'!M7)","v":""},{"$f":"IF(ISBLANK('Rutiner - Salg'!N7),\"\", 'Rutiner - Salg'!N7)","v":""},{"$f":"IF(ISBLANK('Rutiner - Salg'!O7),\"\", 'Rutiner - Salg'!O7)","v":""},{"$f":"IF(ISBLANK('Rutiner - Salg'!P7),\"\", 'Rutiner - Salg'!P7)","v":""}]
[null,{"$f":"IF(ISBLANK('Proces - Oversigt'!B20),\"\", 'Proces - Oversigt'!B20)","v":"S03 - Tilbud , forespørgelser"},{"$f":"IF(ISBLANK('Rutiner - Salg'!B8),\"\", 'Rutiner - Salg'!B8)","v":""},{"$f":"IF(ISBLANK('Rutiner - Salg'!C8),\"\", 'Rutiner - Salg'!C8)","v":""},{"$f":"IF(ISBLANK('Rutiner - Salg'!D8),\"\", 'Rutiner - Salg'!D8)","v":""},{"$f":"IF(ISBLANK('Rutiner - Salg'!E8),\"\", 'Rutiner - Salg'!E8)","v":""},{"$f":"IF(ISBLANK('Rutiner - Salg'!F8),\"\", 'Rutiner - Salg'!F8)","v":""},{"$f":"IF(ISBLANK('Rutiner - Salg'!G8),\"\", 'Rutiner - Salg'!G8)","v":""},{"$f":"IF(ISBLANK('Rutiner - Salg'!H8),\"\", 'Rutiner - Salg'!H8)","v":""},{"$f":"IF(ISBLANK('Rutiner - Salg'!I8),\"\", 'Rutiner - Salg'!I8)","v":""},{"$f":"IF(ISBLANK('Rutiner - Salg'!J8),\"\", 'Rutiner - Salg'!J8)","v":""},{"$f":"IF(ISBLANK('Rutiner - Salg'!K8),\"\", 'Rutiner - Salg'!K8)","v":""},{"$f":"IF(ISBLANK('Rutiner - Salg'!L8),\"\", 'Rutiner - Salg'!L8)","v":""},{"$f":"IF(ISBLANK('Rutiner - Salg'!M8),\"\", 'Rutiner - Salg'!M8)","v":""},{"$f":"IF(ISBLANK('Rutiner - Salg'!N8),\"\", 'Rutiner - Salg'!N8)","v":""},{"$f":"IF(ISBLANK('Rutiner - Salg'!O8),\"\", 'Rutiner - Salg'!O8)","v":""},{"$f":"IF(ISBLANK('Rutiner - Salg'!P8),\"\", 'Rutiner - Salg'!P8)","v":""}]
[null,{"$f":"IF(ISBLANK('Proces - Oversigt'!B21),\"\", 'Proces - Oversigt'!B21)","v":"S04 - Ændrings- og hasteordre"},{"$f":"IF(ISBLANK('Rutiner - Salg'!B9),\"\", 'Rutiner - Salg'!B9)","v":""},{"$f":"IF(ISBLANK('Rutiner - Salg'!C9),\"\", 'Rutiner - Salg'!C9)","v":""},{"$f":"IF(ISBLANK('Rutiner - Salg'!D9),\"\", 'Rutiner - Salg'!D9)","v":""},{"$f":"IF(ISBLANK('Rutiner - Salg'!E9),\"\", 'Rutiner - Salg'!E9)","v":""},{"$f":"IF(ISBLANK('Rutiner - Salg'!F9),\"\", 'Rutiner - Salg'!F9)","v":""},{"$f":"IF(ISBLANK('Rutiner - Salg'!G9),\"\", 'Rutiner - Salg'!G9)","v":""},{"$f":"IF(ISBLANK('Rutiner - Salg'!H9),\"\", 'Rutiner - Salg'!H9)","v":""},{"$f":"IF(ISBLANK('Rutiner - Salg'!I9),\"\", 'Rutiner - Salg'!I9)","v":""},{"$f":"IF(ISBLANK('Rutiner - Salg'!J9),\"\", 'Rutiner - Salg'!J9)","v":""},{"$f":"IF(ISBLANK('Rutiner - Salg'!K9),\"\", 'Rutiner - Salg'!K9)","v":""},{"$f":"IF(ISBLANK('Rutiner - Salg'!L9),\"\", 'Rutiner - Salg'!L9)","v":""},{"$f":"IF(ISBLANK('Rutiner - Salg'!M9),\"\", 'Rutiner - Salg'!M9)","v":""},{"$f":"IF(ISBLANK('Rutiner - Salg'!N9),\"\", 'Rutiner - Salg'!N9)","v":""},{"$f":"IF(ISBLANK('Rutiner - Salg'!O9),\"\", 'Rutiner - Salg'!O9)","v":""},{"$f":"IF(ISBLANK('Rutiner - Salg'!P9),\"\", 'Rutiner - Salg'!P9)","v":""}]
[null,{"$f":"IF(ISBLANK('Proces - Oversigt'!B22),\"\", 'Proces - Oversigt'!B22)","v":"S05 - Kundebesøg, messer"},{"$f":"IF(ISBLANK('Rutiner - Salg'!B10),\"\", 'Rutiner - Salg'!B10)","v":""},{"$f":"IF(ISBLANK('Rutiner - Salg'!C10),\"\", 'Rutiner - Salg'!C10)","v":""},{"$f":"IF(ISBLANK('Rutiner - Salg'!D10),\"\", 'Rutiner - Salg'!D10)","v":""},{"$f":"IF(ISBLANK('Rutiner - Salg'!E10),\"\", 'Rutiner - Salg'!E10)","v":""},{"$f":"IF(ISBLANK('Rutiner - Salg'!F10),\"\", 'Rutiner - Salg'!F10)","v":""},{"$f":"IF(ISBLANK('Rutiner - Salg'!G10),\"\", 'Rutiner - Salg'!G10)","v":""},{"$f":"IF(ISBLANK('Rutiner - Salg'!H10),\"\", 'Rutiner - Salg'!H10)","v":""},{"$f":"IF(ISBLANK('Rutiner - Salg'!I10),\"\", 'Rutiner - Salg'!I10)","v":""},{"$f":"IF(ISBLANK('Rutiner - Salg'!J10),\"\", 'Rutiner - Salg'!J10)","v":""},{"$f":"IF(ISBLANK('Rutiner - Salg'!K10),\"\", 'Rutiner - Salg'!K10)","v":""},{"$f":"IF(ISBLANK('Rutiner - Salg'!L10),\"\", 'Rutiner - Salg'!L10)","v":""},{"$f":"IF(ISBLANK('Rutiner - Salg'!M10),\"\", 'Rutiner - Salg'!M10)","v":""},{"$f":"IF(ISBLANK('Rutiner - Salg'!N10),\"\", 'Rutiner - Salg'!N10)","v":""},{"$f":"IF(ISBLANK('Rutiner - Salg'!O10),\"\", 'Rutiner - Salg'!O10)","v":""},{"$f":"IF(ISBLANK('Rutiner - Salg'!P10),\"\", 'Rutiner - Salg'!P10)","v":""}]
[null,{"$f":"IF(ISBLANK('Proces - Oversigt'!B24),\"\", 'Proces - Oversigt'!B24)","v":"S07"},{"$f":"IF(ISBLANK('Rutiner - Salg'!B11),\"\", 'Rutiner - Salg'!B11)","v":""},{"$f":"IF(ISBLANK('Rutiner - Salg'!C11),\"\", 'Rutiner - Salg'!C11)","v":""},{"$f":"IF(ISBLANK('Rutiner - Salg'!D11),\"\", 'Rutiner - Salg'!D11)","v":""},{"$f":"IF(ISBLANK('Rutiner - Salg'!E11),\"\", 'Rutiner - Salg'!E11)","v":""},{"$f":"IF(ISBLANK('Rutiner - Salg'!F11),\"\", 'Rutiner - Salg'!F11)","v":""},{"$f":"IF(ISBLANK('Rutiner - Salg'!G11),\"\", 'Rutiner - Salg'!G11)","v":""},{"$f":"IF(ISBLANK('Rutiner - Salg'!H11),\"\", 'Rutiner - Salg'!H11)","v":""},{"$f":"IF(ISBLANK('Rutiner - Salg'!I11),\"\", 'Rutiner - Salg'!I11)","v":""},{"$f":"IF(ISBLANK('Rutiner - Salg'!J11),\"\", 'Rutiner - Salg'!J11)","v":""},{"$f":"IF(ISBLANK('Rutiner - Salg'!K11),\"\", 'Rutiner - Salg'!K11)","v":""},{"$f":"IF(ISBLANK('Rutiner - Salg'!L11),\"\", 'Rutiner - Salg'!L11)","v":""},{"$f":"IF(ISBLANK('Rutiner - Salg'!M11),\"\", 'Rutiner - Salg'!M11)","v":""},{"$f":"IF(ISBLANK('Rutiner - Salg'!N11),\"\", 'Rutiner - Salg'!N11)","v":""},{"$f":"IF(ISBLANK('Rutiner - Salg'!O11),\"\", 'Rutiner - Salg'!O11)","v":""},{"$f":"IF(ISBLANK('Rutiner - Salg'!P11),\"\", 'Rutiner - Salg'!P11)","v":""}]
[null,{"$f":"IF(ISBLANK('Proces - Oversigt'!B25),\"\", 'Proces - Oversigt'!B25)","v":"S11 - Kvalitetsstyring"},{"$f":"IF(ISBLANK('Rutiner - Salg'!B12),\"\", 'Rutiner - Salg'!B12)","v":""},{"$f":"IF(ISBLANK('Rutiner - Salg'!C12),\"\", 'Rutiner - Salg'!C12)","v":""},{"$f":"IF(ISBLANK('Rutiner - Salg'!D12),\"\", 'Rutiner - Salg'!D12)","v":""},{"$f":"IF(ISBLANK('Rutiner - Salg'!E12),\"\", 'Rutiner - Salg'!E12)","v":""},{"$f":"IF(ISBLANK('Rutiner - Salg'!F12),\"\", 'Rutiner - Salg'!F12)","v":""},{"$f":"IF(ISBLANK('Rutiner - Salg'!G12),\"\", 'Rutiner - Salg'!G12)","v":""},{"$f":"IF(ISBLANK('Rutiner - Salg'!H12),\"\", 'Rutiner - Salg'!H12)","v":""},{"$f":"IF(ISBLANK('Rutiner - Salg'!I12),\"\", 'Rutiner - Salg'!I12)","v":""},{"$f":"IF(ISBLANK('Rutiner - Salg'!J12),\"\", 'Rutiner - Salg'!J12)","v":""},{"$f":"IF(ISBLANK('Rutiner - Salg'!K12),\"\", 'Rutiner - Salg'!K12)","v":""},{"$f":"IF(ISBLANK('Rutiner - Salg'!L12),\"\", 'Rutiner - Salg'!L12)","v":""},{"$f":"IF(ISBLANK('Rutiner - Salg'!M12),\"\", 'Rutiner - Salg'!M12)","v":""},{"$f":"IF(ISBLANK('Rutiner - Salg'!N12),\"\", 'Rutiner - Salg'!N12)","v":""},{"$f":"IF(ISBLANK('Rutiner - Salg'!O12),\"\", 'Rutiner - Salg'!O12)","v":""},{"$f":"IF(ISBLANK('Rutiner - Salg'!P12),\"\", 'Rutiner - Salg'!P12)","v":""}]
[null,{"$f":"IF(ISBLANK('Proces - Oversigt'!B26),\"\", 'Proces - Oversigt'!B26)","v":"S12 - Økonomi, rapportering, planlægning"},{"$f":"IF(ISBLANK('Rutiner - Salg'!B13),\"\", 'Rutiner - Salg'!B13)","v":""},{"$f":"IF(ISBLANK('Rutiner - Salg'!C13),\"\", 'Rutiner - Salg'!C13)","v":""},{"$f":"IF(ISBLANK('Rutiner - Salg'!D13),\"\", 'Rutiner - Salg'!D13)","v":""},{"$f":"IF(ISBLANK('Rutiner - Salg'!E13),\"\", 'Rutiner - Salg'!E13)","v":""},{"$f":"IF(ISBLANK('Rutiner - Salg'!F13),\"\", 'Rutiner - Salg'!F13)","v":""},{"$f":"IF(ISBLANK('Rutiner - Salg'!G13),\"\", 'Rutiner - Salg'!G13)","v":""},{"$f":"IF(ISBLANK('Rutiner - Salg'!H13),\"\", 'Rutiner - Salg'!H13)","v":""},{"$f":"IF(ISBLANK('Rutiner - Salg'!I13),\"\", 'Rutiner - Salg'!I13)","v":""},{"$f":"IF(ISBLANK('Rutiner - Salg'!J13),\"\", 'Rutiner - Salg'!J13)","v":""},{"$f":"IF(ISBLANK('Rutiner - Salg'!K13),\"\", 'Rutiner - Salg'!K13)","v":""},{"$f":"IF(ISBLANK('Rutiner - Salg'!L13),\"\", 'Rutiner - Salg'!L13)","v":""},{"$f":"IF(ISBLANK('Rutiner - Salg'!M13),\"\", 'Rutiner - Salg'!M13)","v":""},{"$f":"IF(ISBLANK('Rutiner - Salg'!N13),\"\", 'Rutiner - Salg'!N13)","v":""},{"$f":"IF(ISBLANK('Rutiner - Salg'!O13),\"\", 'Rutiner - Salg'!O13)","v":""},{"$f":"IF(ISBLANK('Rutiner - Salg'!P13),\"\", 'Rutiner - Salg'!P13)","v":""}]
[null,{"$f":"IF(ISBLANK('Proces - Oversigt'!B27),\"\", 'Proces - Oversigt'!B27)","v":"S13 - HR opgaver"},{"$f":"IF(ISBLANK('Rutiner - Salg'!B14),\"\", 'Rutiner - Salg'!B14)","v":""},{"$f":"IF(ISBLANK('Rutiner - Salg'!C14),\"\", 'Rutiner - Salg'!C14)","v":""},{"$f":"IF(ISBLANK('Rutiner - Salg'!D14),\"\", 'Rutiner - Salg'!D14)","v":""},{"$f":"IF(ISBLANK('Rutiner - Salg'!E14),\"\", 'Rutiner - Salg'!E14)","v":""},{"$f":"IF(ISBLANK('Rutiner - Salg'!F14),\"\", 'Rutiner - Salg'!F14)","v":""},{"$f":"IF(ISBLANK('Rutiner - Salg'!G14),\"\", 'Rutiner - Salg'!G14)","v":""},{"$f":"IF(ISBLANK('Rutiner - Salg'!H14),\"\", 'Rutiner - Salg'!H14)","v":""},{"$f":"IF(ISBLANK('Rutiner - Salg'!I14),\"\", 'Rutiner - Salg'!I14)","v":""},{"$f":"IF(ISBLANK('Rutiner - Salg'!J14),\"\", 'Rutiner - Salg'!J14)","v":""},{"$f":"IF(ISBLANK('Rutiner - Salg'!K14),\"\", 'Rutiner - Salg'!K14)","v":""},{"$f":"IF(ISBLANK('Rutiner - Salg'!L14),\"\", 'Rutiner - Salg'!L14)","v":""},{"$f":"IF(ISBLANK('Rutiner - Salg'!M14),\"\", 'Rutiner - Salg'!M14)","v":""},{"$f":"IF(ISBLANK('Rutiner - Salg'!N14),\"\", 'Rutiner - Salg'!N14)","v":""},{"$f":"IF(ISBLANK('Rutiner - Salg'!O14),\"\", 'Rutiner - Salg'!O14)","v":""},{"$f":"IF(ISBLANK('Rutiner - Salg'!P14),\"\", 'Rutiner - Salg'!P14)","v":""}]
[null,{"$f":"IF(ISBLANK('Proces - Oversigt'!B28),\"\", 'Proces - Oversigt'!B28)","v":""}]
[null,{"$f":"IF(ISBLANK('Proces - Oversigt'!B29),\"\", 'Proces - Oversigt'!B29)","v":"T - Opgaver vedr. Produktionsteknik - PTF"}]
[null,{"$f":"IF(ISBLANK('Proces - Oversigt'!B30),\"\", 'Proces - Oversigt'!B30)","v":"T01 - Produktionsgrundlag"}]
[null,{"$f":"IF(ISBLANK('Proces - Oversigt'!B31),\"\", 'Proces - Oversigt'!B31)","v":"T02 - Hjælpeværktøjer"}]
[null,{"$f":"IF(ISBLANK('Proces - Oversigt'!B32),\"\", 'Proces - Oversigt'!B32)","v":"T03 - Prototyper, nulserier og vareprøver"}]
[null,{"$f":"IF(ISBLANK('Proces - Oversigt'!B33),\"\", 'Proces - Oversigt'!B33)","v":"T04 - Produktkalkulation"}]
[null,{"$f":"IF(ISBLANK('Proces - Oversigt'!B34),\"\", 'Proces - Oversigt'!B34)","v":"T05 - Procesoptimering"}]
[null,{"$f":"IF(ISBLANK('Proces - Oversigt'!B35),\"\", 'Proces - Oversigt'!B35)","v":"T06 - Produktudvikling"}]
[null,{"$f":"IF(ISBLANK('Proces - Oversigt'!B36),\"\", 'Proces - Oversigt'!B36)","v":"T07 - Teknisk salgssupport"}]
[null,{"$f":"IF(ISBLANK('Proces - Oversigt'!B38),\"\", 'Proces - Oversigt'!B38)","v":"T09"}]
[null,{"$f":"IF(ISBLANK('Proces - Oversigt'!B39),\"\", 'Proces - Oversigt'!B39)","v":"T11 - Kvalitetsstyring"}]
[null,{"$f":"IF(ISBLANK('Proces - Oversigt'!B40),\"\", 'Proces - Oversigt'!B40)","v":"T12 - Økonomi, rapportering, planlægning"}]
[null,{"$f":"IF(ISBLANK('Proces - Oversigt'!B41),\"\", 'Proces - Oversigt'!B41)","v":"T13 - HR opgaver"}]
[]
[null,{"$f":"IF(ISBLANK('Proces - Oversigt'!B43),\"\",'Proces - Oversigt'!B43)","v":"P - Produktionsopgaver"}]
[null,{"$f":"IF(ISBLANK('Proces - Oversigt'!B44),\"\",'Proces - Oversigt'!B44)","v":"P01 - Planlægning, hoved-finplan., "},{"$f":"IF(ISBLANK('Rutiner - Produktion'!B6),\"\", 'Rutiner - Produktion'!B6)","v":"G"},{"$f":"IF(ISBLANK('Rutiner - Produktion'!C6),\"\", 'Rutiner - Produktion'!C6)","v":""},{"$f":"IF(ISBLANK('Rutiner - Produktion'!D6),\"\", 'Rutiner - Produktion'!D6)","v":""},{"$f":"IF(ISBLANK('Rutiner - Produktion'!E6),\"\", 'Rutiner - Produktion'!E6)","v":"B"},{"$f":"IF(ISBLANK('Rutiner - Produktion'!F6),\"\", 'Rutiner - Produktion'!F6)","v":""},{"$f":"IF(ISBLANK('Rutiner - Produktion'!G6),\"\", 'Rutiner - Produktion'!G6)","v":""},{"$f":"IF(ISBLANK('Rutiner - Produktion'!H6),\"\", 'Rutiner - Produktion'!H6)","v":""},{"$f":"IF(ISBLANK('Rutiner - Produktion'!I6),\"\", 'Rutiner - Produktion'!I6)","v":""},{"$f":"IF(ISBLANK('Rutiner - Produktion'!J6),\"\", 'Rutiner - Produktion'!J6)","v":""},{"$f":"IF(ISBLANK('Rutiner - Produktion'!K6),\"\", 'Rutiner - Produktion'!K6)","v":""},{"$f":"IF(ISBLANK('Rutiner - Produktion'!L6),\"\", 'Rutiner - Produktion'!L6)","v":""},{"$f":"IF(ISBLANK('Rutiner - Produktion'!M6),\"\", 'Rutiner - Produktion'!M6)","v":""},{"$f":"IF(ISBLANK('Rutiner - Produktion'!N6),\"\", 'Rutiner - Produktion'!N6)","v":""},{"$f":"IF(ISBLANK('Rutiner - Produktion'!O6),\"\", 'Rutiner - Produktion'!O6)","v":""},{"$f":"IF(ISBLANK('Rutiner - Produktion'!P6),\"\", 'Rutiner - Produktion'!P6)","v":"test"}]
[null,{"$f":"IF(ISBLANK('Proces - Oversigt'!B45),\"\",'Proces - Oversigt'!B45)","v":"P02 - Klargøring og opstart af produktion"},{"$f":"IF(ISBLANK('Rutiner - Produktion'!B7),\"\", 'Rutiner - Produktion'!B7)","v":""},{"$f":"IF(ISBLANK('Rutiner - Produktion'!C7),\"\", 'Rutiner - Produktion'!C7)","v":""},{"$f":"IF(ISBLANK('Rutiner - Produktion'!D7),\"\", 'Rutiner - Produktion'!D7)","v":""},{"$f":"IF(ISBLANK('Rutiner - Produktion'!E7),\"\", 'Rutiner - Produktion'!E7)","v":""},{"$f":"IF(ISBLANK('Rutiner - Produktion'!F7),\"\", 'Rutiner - Produktion'!F7)","v":""},{"$f":"IF(ISBLANK('Rutiner - Produktion'!G7),\"\", 'Rutiner - Produktion'!G7)","v":""},{"$f":"IF(ISBLANK('Rutiner - Produktion'!H7),\"\", 'Rutiner - Produktion'!H7)","v":""},{"$f":"IF(ISBLANK('Rutiner - Produktion'!I7),\"\", 'Rutiner - Produktion'!I7)","v":""},{"$f":"IF(ISBLANK('Rutiner - Produktion'!J7),\"\", 'Rutiner - Produktion'!J7)","v":""},{"$f":"IF(ISBLANK('Rutiner - Produktion'!K7),\"\", 'Rutiner - Produktion'!K7)","v":""},{"$f":"IF(ISBLANK('Rutiner - Produktion'!L7),\"\", 'Rutiner - Produktion'!L7)","v":""},{"$f":"IF(ISBLANK('Rutiner - Produktion'!M7),\"\", 'Rutiner - Produktion'!M7)","v":""},{"$f":"IF(ISBLANK('Rutiner - Produktion'!N7),\"\", 'Rutiner - Produktion'!N7)","v":""},{"$f":"IF(ISBLANK('Rutiner - Produktion'!O7),\"\", 'Rutiner - Produktion'!O7)","v":""},{"$f":"IF(ISBLANK('Rutiner - Produktion'!P7),\"\", 'Rutiner - Produktion'!P7)","v":""}]
[null,{"$f":"IF(ISBLANK('Proces - Oversigt'!B46),\"\",'Proces - Oversigt'!B46)","v":"P03 - Værkstedsstyring og overvågning af leveringsterm."},{"$f":"IF(ISBLANK('Rutiner - Produktion'!B8),\"\", 'Rutiner - Produktion'!B8)","v":""},{"$f":"IF(ISBLANK('Rutiner - Produktion'!C8),\"\", 'Rutiner - Produktion'!C8)","v":""},{"$f":"IF(ISBLANK('Rutiner - Produktion'!D8),\"\", 'Rutiner - Produktion'!D8)","v":""},{"$f":"IF(ISBLANK('Rutiner - Produktion'!E8),\"\", 'Rutiner - Produktion'!E8)","v":""},{"$f":"IF(ISBLANK('Rutiner - Produktion'!F8),\"\", 'Rutiner - Produktion'!F8)","v":""},{"$f":"IF(ISBLANK('Rutiner - Produktion'!G8),\"\", 'Rutiner - Produktion'!G8)","v":""},{"$f":"IF(ISBLANK('Rutiner - Produktion'!H8),\"\", 'Rutiner - Produktion'!H8)","v":""},{"$f":"IF(ISBLANK('Rutiner - Produktion'!I8),\"\", 'Rutiner - Produktion'!I8)","v":""},{"$f":"IF(ISBLANK('Rutiner - Produktion'!J8),\"\", 'Rutiner - Produktion'!J8)","v":""},{"$f":"IF(ISBLANK('Rutiner - Produktion'!K8),\"\", 'Rutiner - Produktion'!K8)","v":""},{"$f":"IF(ISBLANK('Rutiner - Produktion'!L8),\"\", 'Rutiner - Produktion'!L8)","v":""},{"$f":"IF(ISBLANK('Rutiner - Produktion'!M8),\"\", 'Rutiner - Produktion'!M8)","v":""},{"$f":"IF(ISBLANK('Rutiner - Produktion'!N8),\"\", 'Rutiner - Produktion'!N8)","v":""},{"$f":"IF(ISBLANK('Rutiner - Produktion'!O8),\"\", 'Rutiner - Produktion'!O8)","v":""},{"$f":"IF(ISBLANK('Rutiner - Produktion'!P8),\"\", 'Rutiner - Produktion'!P8)","v":""}]
[null,{"$f":"IF(ISBLANK('Proces - Oversigt'!B47),\"\",'Proces - Oversigt'!B47)","v":"P04 - Optimering af processer"},{"$f":"IF(ISBLANK('Rutiner - Produktion'!B9),\"\", 'Rutiner - Produktion'!B9)","v":""},{"$f":"IF(ISBLANK('Rutiner - Produktion'!C9),\"\", 'Rutiner - Produktion'!C9)","v":""},{"$f":"IF(ISBLANK('Rutiner - Produktion'!D9),\"\", 'Rutiner - Produktion'!D9)","v":""},{"$f":"IF(ISBLANK('Rutiner - Produktion'!E9),\"\", 'Rutiner - Produktion'!E9)","v":""},{"$f":"IF(ISBLANK('Rutiner - Produktion'!F9),\"\", 'Rutiner - Produktion'!F9)","v":"X"},{"$f":"IF(ISBLANK('Rutiner - Produktion'!G9),\"\", 'Rutiner - Produktion'!G9)","v":"O"},{"$f":"IF(ISBLANK('Rutiner - Produktion'!H9),\"\", 'Rutiner - Produktion'!H9)","v":""},{"$f":"IF(ISBLANK('Rutiner - Produktion'!I9),\"\", 'Rutiner - Produktion'!I9)","v":""},{"$f":"IF(ISBLANK('Rutiner - Produktion'!J9),\"\", 'Rutiner - Produktion'!J9)","v":""},{"$f":"IF(ISBLANK('Rutiner - Produktion'!K9),\"\", 'Rutiner - Produktion'!K9)","v":""},{"$f":"IF(ISBLANK('Rutiner - Produktion'!L9),\"\", 'Rutiner - Produktion'!L9)","v":""},{"$f":"IF(ISBLANK('Rutiner - Produktion'!M9),\"\", 'Rutiner - Produktion'!M9)","v":""},{"$f":"IF(ISBLANK('Rutiner - Produktion'!N9),\"\", 'Rutiner - Produktion'!N9)","v":""},{"$f":"IF(ISBLANK('Rutiner - Produktion'!O9),\"\", 'Rutiner - Produktion'!O9)","v":""},{"$f":"IF(ISBLANK('Rutiner - Produktion'!P9),\"\", 'Rutiner - Produktion'!P9)","v":""}]
[null,{"$f":"IF(ISBLANK('Proces - Oversigt'!B48),\"\",'Proces - Oversigt'!B48)","v":"P05 - Instruktion og kompetenceudvikling af medarb."},{"$f":"IF(ISBLANK('Rutiner - Produktion'!B10),\"\", 'Rutiner - Produktion'!B10)","v":""},{"$f":"IF(ISBLANK('Rutiner - Produktion'!C10),\"\", 'Rutiner - Produktion'!C10)","v":""},{"$f":"IF(ISBLANK('Rutiner - Produktion'!D10),\"\", 'Rutiner - Produktion'!D10)","v":""},{"$f":"IF(ISBLANK('Rutiner - Produktion'!E10),\"\", 'Rutiner - Produktion'!E10)","v":""},{"$f":"IF(ISBLANK('Rutiner - Produktion'!F10),\"\", 'Rutiner - Produktion'!F10)","v":""},{"$f":"IF(ISBLANK('Rutiner - Produktion'!G10),\"\", 'Rutiner - Produktion'!G10)","v":""},{"$f":"IF(ISBLANK('Rutiner - Produktion'!H10),\"\", 'Rutiner - Produktion'!H10)","v":""},{"$f":"IF(ISBLANK('Rutiner - Produktion'!I10),\"\", 'Rutiner - Produktion'!I10)","v":""},{"$f":"IF(ISBLANK('Rutiner - Produktion'!J10),\"\", 'Rutiner - Produktion'!J10)","v":""},{"$f":"IF(ISBLANK('Rutiner - Produktion'!K10),\"\", 'Rutiner - Produktion'!K10)","v":""},{"$f":"IF(ISBLANK('Rutiner - Produktion'!L10),\"\", 'Rutiner - Produktion'!L10)","v":""},{"$f":"IF(ISBLANK('Rutiner - Produktion'!M10),\"\", 'Rutiner - Produktion'!M10)","v":""},{"$f":"IF(ISBLANK('Rutiner - Produktion'!N10),\"\", 'Rutiner - Produktion'!N10)","v":""},{"$f":"IF(ISBLANK('Rutiner - Produktion'!O10),\"\", 'Rutiner - Produktion'!O10)","v":""},{"$f":"IF(ISBLANK('Rutiner - Produktion'!P10),\"\", 'Rutiner - Produktion'!P10)","v":""}]
[null,{"$f":"IF(ISBLANK('Proces - Oversigt'!B49),\"\",'Proces - Oversigt'!B49)","v":"P06 - Håndtering af ændrings- og hasteordre."},{"$f":"IF(ISBLANK('Rutiner - Produktion'!B11),\"\", 'Rutiner - Produktion'!B11)","v":""},{"$f":"IF(ISBLANK('Rutiner - Produktion'!C11),\"\", 'Rutiner - Produktion'!C11)","v":""},{"$f":"IF(ISBLANK('Rutiner - Produktion'!D11),\"\", 'Rutiner - Produktion'!D11)","v":""},{"$f":"IF(ISBLANK('Rutiner - Produktion'!E11),\"\", 'Rutiner - Produktion'!E11)","v":""},{"$f":"IF(ISBLANK('Rutiner - Produktion'!F11),\"\", 'Rutiner - Produktion'!F11)","v":""},{"$f":"IF(ISBLANK('Rutiner - Produktion'!G11),\"\", 'Rutiner - Produktion'!G11)","v":""},{"$f":"IF(ISBLANK('Rutiner - Produktion'!H11),\"\", 'Rutiner - Produktion'!H11)","v":""},{"$f":"IF(ISBLANK('Rutiner - Produktion'!I11),\"\", 'Rutiner - Produktion'!I11)","v":""},{"$f":"IF(ISBLANK('Rutiner - Produktion'!J11),\"\", 'Rutiner - Produktion'!J11)","v":""},{"$f":"IF(ISBLANK('Rutiner - Produktion'!K11),\"\", 'Rutiner - Produktion'!K11)","v":""},{"$f":"IF(ISBLANK('Rutiner - Produktion'!L11),\"\", 'Rutiner - Produktion'!L11)","v":""},{"$f":"IF(ISBLANK('Rutiner - Produktion'!M11),\"\", 'Rutiner - Produktion'!M11)","v":""},{"$f":"IF(ISBLANK('Rutiner - Produktion'!N11),\"\", 'Rutiner - Produktion'!N11)","v":""},{"$f":"IF(ISBLANK('Rutiner - Produktion'!O11),\"\", 'Rutiner - Produktion'!O11)","v":""},{"$f":"IF(ISBLANK('Rutiner - Produktion'!P11),\"\", 'Rutiner - Produktion'!P11)","v":""}]
[null,{"$f":"IF(ISBLANK('Proces - Oversigt'!B51),\"\",'Proces - Oversigt'!B51)","v":"P08"},{"$f":"IF(ISBLANK('Rutiner - Produktion'!B12),\"\", 'Rutiner - Produktion'!B12)","v":""},{"$f":"IF(ISBLANK('Rutiner - Produktion'!C12),\"\", 'Rutiner - Produktion'!C12)","v":""},{"$f":"IF(ISBLANK('Rutiner - Produktion'!D12),\"\", 'Rutiner - Produktion'!D12)","v":""},{"$f":"IF(ISBLANK('Rutiner - Produktion'!E12),\"\", 'Rutiner - Produktion'!E12)","v":""},{"$f":"IF(ISBLANK('Rutiner - Produktion'!F12),\"\", 'Rutiner - Produktion'!F12)","v":""},{"$f":"IF(ISBLANK('Rutiner - Produktion'!G12),\"\", 'Rutiner - Produktion'!G12)","v":""},{"$f":"IF(ISBLANK('Rutiner - Produktion'!H12),\"\", 'Rutiner - Produktion'!H12)","v":""},{"$f":"IF(ISBLANK('Rutiner - Produktion'!I12),\"\", 'Rutiner - Produktion'!I12)","v":""},{"$f":"IF(ISBLANK('Rutiner - Produktion'!J12),\"\", 'Rutiner - Produktion'!J12)","v":""},{"$f":"IF(ISBLANK('Rutiner - Produktion'!K12),\"\", 'Rutiner - Produktion'!K12)","v":""},{"$f":"IF(ISBLANK('Rutiner - Produktion'!L12),\"\", 'Rutiner - Produktion'!L12)","v":""},{"$f":"IF(ISBLANK('Rutiner - Produktion'!M12),\"\", 'Rutiner - Produktion'!M12)","v":""},{"$f":"IF(ISBLANK('Rutiner - Produktion'!N12),\"\", 'Rutiner - Produktion'!N12)","v":""},{"$f":"IF(ISBLANK('Rutiner - Produktion'!O12),\"\", 'Rutiner - Produktion'!O12)","v":""},{"$f":"IF(ISBLANK('Rutiner - Produktion'!P12),\"\", 'Rutiner - Produktion'!P12)","v":""}]
[null,{"$f":"IF(ISBLANK('Proces - Oversigt'!B52),\"\",'Proces - Oversigt'!B52)","v":"P11 - Kvalitetsstyring"},{"$f":"IF(ISBLANK('Rutiner - Produktion'!B13),\"\", 'Rutiner - Produktion'!B13)","v":""},{"$f":"IF(ISBLANK('Rutiner - Produktion'!C13),\"\", 'Rutiner - Produktion'!C13)","v":""},{"$f":"IF(ISBLANK('Rutiner - Produktion'!D13),\"\", 'Rutiner - Produktion'!D13)","v":""},{"$f":"IF(ISBLANK('Rutiner - Produktion'!E13),\"\", 'Rutiner - Produktion'!E13)","v":""},{"$f":"IF(ISBLANK('Rutiner - Produktion'!F13),\"\", 'Rutiner - Produktion'!F13)","v":""},{"$f":"IF(ISBLANK('Rutiner - Produktion'!G13),\"\", 'Rutiner - Produktion'!G13)","v":""},{"$f":"IF(ISBLANK('Rutiner - Produktion'!H13),\"\", 'Rutiner - Produktion'!H13)","v":""},{"$f":"IF(ISBLANK('Rutiner - Produktion'!I13),\"\", 'Rutiner - Produktion'!I13)","v":""},{"$f":"IF(ISBLANK('Rutiner - Produktion'!J13),\"\", 'Rutiner - Produktion'!J13)","v":""},{"$f":"IF(ISBLANK('Rutiner - Produktion'!K13),\"\", 'Rutiner - Produktion'!K13)","v":""},{"$f":"IF(ISBLANK('Rutiner - Produktion'!L13),\"\", 'Rutiner - Produktion'!L13)","v":""},{"$f":"IF(ISBLANK('Rutiner - Produktion'!M13),\"\", 'Rutiner - Produktion'!M13)","v":""},{"$f":"IF(ISBLANK('Rutiner - Produktion'!N13),\"\", 'Rutiner - Produktion'!N13)","v":""},{"$f":"IF(ISBLANK('Rutiner - Produktion'!O13),\"\", 'Rutiner - Produktion'!O13)","v":""},{"$f":"IF(ISBLANK('Rutiner - Produktion'!P13),\"\", 'Rutiner - Produktion'!P13)","v":""}]
[null,{"$f":"IF(ISBLANK('Proces - Oversigt'!B53),\"\",'Proces - Oversigt'!B53)","v":"P12 - Økonomi, rapportering, planlægning"},{"$f":"IF(ISBLANK('Rutiner - Produktion'!B14),\"\", 'Rutiner - Produktion'!B14)","v":""},{"$f":"IF(ISBLANK('Rutiner - Produktion'!C14),\"\", 'Rutiner - Produktion'!C14)","v":""},{"$f":"IF(ISBLANK('Rutiner - Produktion'!D14),\"\", 'Rutiner - Produktion'!D14)","v":""},{"$f":"IF(ISBLANK('Rutiner - Produktion'!E14),\"\", 'Rutiner - Produktion'!E14)","v":""},{"$f":"IF(ISBLANK('Rutiner - Produktion'!F14),\"\", 'Rutiner - Produktion'!F14)","v":""},{"$f":"IF(ISBLANK('Rutiner - Produktion'!G14),\"\", 'Rutiner - Produktion'!G14)","v":""},{"$f":"IF(ISBLANK('Rutiner - Produktion'!H14),\"\", 'Rutiner - Produktion'!H14)","v":""},{"$f":"IF(ISBLANK('Rutiner - Produktion'!I14),\"\", 'Rutiner - Produktion'!I14)","v":""},{"$f":"IF(ISBLANK('Rutiner - Produktion'!J14),\"\", 'Rutiner - Produktion'!J14)","v":""},{"$f":"IF(ISBLANK('Rutiner - Produktion'!K14),\"\", 'Rutiner - Produktion'!K14)","v":""},{"$f":"IF(ISBLANK('Rutiner - Produktion'!L14),\"\", 'Rutiner - Produktion'!L14)","v":""},{"$f":"IF(ISBLANK('Rutiner - Produktion'!M14),\"\", 'Rutiner - Produktion'!M14)","v":""},{"$f":"IF(ISBLANK('Rutiner - Produktion'!N14),\"\", 'Rutiner - Produktion'!N14)","v":""},{"$f":"IF(ISBLANK('Rutiner - Produktion'!O14),\"\", 'Rutiner - Produktion'!O14)","v":""},{"$f":"IF(ISBLANK('Rutiner - Produktion'!P14),\"\", 'Rutiner - Produktion'!P14)","v":""}]
[null,{"$f":"IF(ISBLANK('Proces - Oversigt'!B54),\"\",'Proces - Oversigt'!B54)","v":"P13 - HR opgaver"},{"$f":"IF(ISBLANK('Rutiner - Produktion'!B15),\"\", 'Rutiner - Produktion'!B15)","v":""},{"$f":"IF(ISBLANK('Rutiner - Produktion'!C15),\"\", 'Rutiner - Produktion'!C15)","v":""},{"$f":"IF(ISBLANK('Rutiner - Produktion'!D15),\"\", 'Rutiner - Produktion'!D15)","v":""},{"$f":"IF(ISBLANK('Rutiner - Produktion'!E15),\"\", 'Rutiner - Produktion'!E15)","v":""},{"$f":"IF(ISBLANK('Rutiner - Produktion'!F15),\"\", 'Rutiner - Produktion'!F15)","v":""},{"$f":"IF(ISBLANK('Rutiner - Produktion'!G15),\"\", 'Rutiner - Produktion'!G15)","v":""},{"$f":"IF(ISBLANK('Rutiner - Produktion'!H15),\"\", 'Rutiner - Produktion'!H15)","v":""},{"$f":"IF(ISBLANK('Rutiner - Produktion'!I15),\"\", 'Rutiner - Produktion'!I15)","v":""},{"$f":"IF(ISBLANK('Rutiner - Produktion'!J15),\"\", 'Rutiner - Produktion'!J15)","v":""},{"$f":"IF(ISBLANK('Rutiner - Produktion'!K15),\"\", 'Rutiner - Produktion'!K15)","v":""},{"$f":"IF(ISBLANK('Rutiner - Produktion'!L15),\"\", 'Rutiner - Produktion'!L15)","v":""},{"$f":"IF(ISBLANK('Rutiner - Produktion'!M15),\"\", 'Rutiner - Produktion'!M15)","v":""},{"$f":"IF(ISBLANK('Rutiner - Produktion'!N15),\"\", 'Rutiner - Produktion'!N15)","v":""},{"$f":"IF(ISBLANK('Rutiner - Produktion'!O15),\"\", 'Rutiner - Produktion'!O15)","v":""},{"$f":"IF(ISBLANK('Rutiner - Produktion'!P15),\"\", 'Rutiner - Produktion'!P15)","v":""}]
[null,{"$f":"IF(ISBLANK('Proces - Oversigt'!B55),\"\",'Proces - Oversigt'!B55)","v":""}]
[null,{"$f":"IF(ISBLANK('Proces - Oversigt'!B56),\"\",'Proces - Oversigt'!B56)","v":"L - Lager- og logistikopgaver"}]
[null,{"$f":"IF(ISBLANK('Proces - Oversigt'!B57),\"\",'Proces - Oversigt'!B57)","v":"L01 - Varemodtagelse, kontrol, registrering"},{"$f":"IF(ISBLANK('Rutiner - Lager og logistik'!B6),\"\", 'Rutiner - Lager og logistik'!B6)","v":"G"},{"$f":"IF(ISBLANK('Rutiner - Lager og logistik'!C6),\"\", 'Rutiner - Lager og logistik'!C6)","v":""},{"$f":"IF(ISBLANK('Rutiner - Lager og logistik'!D6),\"\", 'Rutiner - Lager og logistik'!D6)","v":""},{"$f":"IF(ISBLANK('Rutiner - Lager og logistik'!E6),\"\", 'Rutiner - Lager og logistik'!E6)","v":""},{"$f":"IF(ISBLANK('Rutiner - Lager og logistik'!F6),\"\", 'Rutiner - Lager og logistik'!F6)","v":""},{"$f":"IF(ISBLANK('Rutiner - Lager og logistik'!G6),\"\", 'Rutiner - Lager og logistik'!G6)","v":""},{"$f":"IF(ISBLANK('Rutiner - Lager og logistik'!H6),\"\", 'Rutiner - Lager og logistik'!H6)","v":""},{"$f":"IF(ISBLANK('Rutiner - Lager og logistik'!I6),\"\", 'Rutiner - Lager og logistik'!I6)","v":""},{"$f":"IF(ISBLANK('Rutiner - Lager og logistik'!J6),\"\", 'Rutiner - Lager og logistik'!J6)","v":""},{"$f":"IF(ISBLANK('Rutiner - Lager og logistik'!K6),\"\", 'Rutiner - Lager og logistik'!K6)","v":""},{"$f":"IF(ISBLANK('Rutiner - Lager og logistik'!L6),\"\", 'Rutiner - Lager og logistik'!L6)","v":""},{"$f":"IF(ISBLANK('Rutiner - Lager og logistik'!M6),\"\", 'Rutiner - Lager og logistik'!M6)","v":""},{"$f":"IF(ISBLANK('Rutiner - Lager og logistik'!N6),\"\", 'Rutiner - Lager og logistik'!N6)","v":""},{"$f":"IF(ISBLANK('Rutiner - Lager og logistik'!O6),\"\", 'Rutiner - Lager og logistik'!O6)","v":""},{"$f":"IF(ISBLANK('Rutiner - Lager og logistik'!P6),\"\", 'Rutiner - Lager og logistik'!P6)","v":""}]
[null,{"$f":"IF(ISBLANK('Proces - Oversigt'!B58),\"\",'Proces - Oversigt'!B58)","v":"L02 - Lagerregnskab - Fysisk optælling af lagerbeholdning"},{"$f":"IF(ISBLANK('Rutiner - Lager og logistik'!B7),\"\", 'Rutiner - Lager og logistik'!B7)","v":""},{"$f":"IF(ISBLANK('Rutiner - Lager og logistik'!C7),\"\", 'Rutiner - Lager og logistik'!C7)","v":""},{"$f":"IF(ISBLANK('Rutiner - Lager og logistik'!D7),\"\", 'Rutiner - Lager og logistik'!D7)","v":""},{"$f":"IF(ISBLANK('Rutiner - Lager og logistik'!E7),\"\", 'Rutiner - Lager og logistik'!E7)","v":""},{"$f":"IF(ISBLANK('Rutiner - Lager og logistik'!F7),\"\", 'Rutiner - Lager og logistik'!F7)","v":""},{"$f":"IF(ISBLANK('Rutiner - Lager og logistik'!G7),\"\", 'Rutiner - Lager og logistik'!G7)","v":""},{"$f":"IF(ISBLANK('Rutiner - Lager og logistik'!H7),\"\", 'Rutiner - Lager og logistik'!H7)","v":""},{"$f":"IF(ISBLANK('Rutiner - Lager og logistik'!I7),\"\", 'Rutiner - Lager og logistik'!I7)","v":""},{"$f":"IF(ISBLANK('Rutiner - Lager og logistik'!J7),\"\", 'Rutiner - Lager og logistik'!J7)","v":""},{"$f":"IF(ISBLANK('Rutiner - Lager og logistik'!K7),\"\", 'Rutiner - Lager og logistik'!K7)","v":""},{"$f":"IF(ISBLANK('Rutiner - Lager og logistik'!L7),\"\", 'Rutiner - Lager og logistik'!L7)","v":""},{"$f":"IF(ISBLANK('Rutiner - Lager og logistik'!M7),\"\", 'Rutiner - Lager og logistik'!M7)","v":""},{"$f":"IF(ISBLANK('Rutiner - Lager og logistik'!N7),\"\", 'Rutiner - Lager og logistik'!N7)","v":""},{"$f":"IF(ISBLANK('Rutiner - Lager og logistik'!O7),\"\", 'Rutiner - Lager og logistik'!O7)","v":""},{"$f":"IF(ISBLANK('Rutiner - Lager og logistik'!P7),\"\", 'Rutiner - Lager og logistik'!P7)","v":""}]
[null,{"$f":"IF(ISBLANK('Proces - Oversigt'!B59),\"\",'Proces - Oversigt'!B59)","v":"L03 - Udlevering af varer til produktion"},{"$f":"IF(ISBLANK('Rutiner - Lager og logistik'!B8),\"\", 'Rutiner - Lager og logistik'!B8)","v":""},{"$f":"IF(ISBLANK('Rutiner - Lager og logistik'!C8),\"\", 'Rutiner - Lager og logistik'!C8)","v":""},{"$f":"IF(ISBLANK('Rutiner - Lager og logistik'!D8),\"\", 'Rutiner - Lager og logistik'!D8)","v":""},{"$f":"IF(ISBLANK('Rutiner - Lager og logistik'!E8),\"\", 'Rutiner - Lager og logistik'!E8)","v":""},{"$f":"IF(ISBLANK('Rutiner - Lager og logistik'!F8),\"\", 'Rutiner - Lager og logistik'!F8)","v":""},{"$f":"IF(ISBLANK('Rutiner - Lager og logistik'!G8),\"\", 'Rutiner - Lager og logistik'!G8)","v":""},{"$f":"IF(ISBLANK('Rutiner - Lager og logistik'!H8),\"\", 'Rutiner - Lager og logistik'!H8)","v":""},{"$f":"IF(ISBLANK('Rutiner - Lager og logistik'!I8),\"\", 'Rutiner - Lager og logistik'!I8)","v":""},{"$f":"IF(ISBLANK('Rutiner - Lager og logistik'!J8),\"\", 'Rutiner - Lager og logistik'!J8)","v":""},{"$f":"IF(ISBLANK('Rutiner - Lager og logistik'!K8),\"\", 'Rutiner - Lager og logistik'!K8)","v":""},{"$f":"IF(ISBLANK('Rutiner - Lager og logistik'!L8),\"\", 'Rutiner - Lager og logistik'!L8)","v":""},{"$f":"IF(ISBLANK('Rutiner - Lager og logistik'!M8),\"\", 'Rutiner - Lager og logistik'!M8)","v":""},{"$f":"IF(ISBLANK('Rutiner - Lager og logistik'!N8),\"\", 'Rutiner - Lager og logistik'!N8)","v":""},{"$f":"IF(ISBLANK('Rutiner - Lager og logistik'!O8),\"\", 'Rutiner - Lager og logistik'!O8)","v":""},{"$f":"IF(ISBLANK('Rutiner - Lager og logistik'!P8),\"\", 'Rutiner - Lager og logistik'!P8)","v":""}]
[null,{"$f":"IF(ISBLANK('Proces - Oversigt'!B60),\"\",'Proces - Oversigt'!B60)","v":"L04 - Klargøring af varer til forsendelse"},{"$f":"IF(ISBLANK('Rutiner - Lager og logistik'!B9),\"\", 'Rutiner - Lager og logistik'!B9)","v":""},{"$f":"IF(ISBLANK('Rutiner - Lager og logistik'!C9),\"\", 'Rutiner - Lager og logistik'!C9)","v":""},{"$f":"IF(ISBLANK('Rutiner - Lager og logistik'!D9),\"\", 'Rutiner - Lager og logistik'!D9)","v":""},{"$f":"IF(ISBLANK('Rutiner - Lager og logistik'!E9),\"\", 'Rutiner - Lager og logistik'!E9)","v":""},{"$f":"IF(ISBLANK('Rutiner - Lager og logistik'!F9),\"\", 'Rutiner - Lager og logistik'!F9)","v":""},{"$f":"IF(ISBLANK('Rutiner - Lager og logistik'!G9),\"\", 'Rutiner - Lager og logistik'!G9)","v":""},{"$f":"IF(ISBLANK('Rutiner - Lager og logistik'!H9),\"\", 'Rutiner - Lager og logistik'!H9)","v":""},{"$f":"IF(ISBLANK('Rutiner - Lager og logistik'!I9),\"\", 'Rutiner - Lager og logistik'!I9)","v":""},{"$f":"IF(ISBLANK('Rutiner - Lager og logistik'!J9),\"\", 'Rutiner - Lager og logistik'!J9)","v":""},{"$f":"IF(ISBLANK('Rutiner - Lager og logistik'!K9),\"\", 'Rutiner - Lager og logistik'!K9)","v":""},{"$f":"IF(ISBLANK('Rutiner - Lager og logistik'!L9),\"\", 'Rutiner - Lager og logistik'!L9)","v":""},{"$f":"IF(ISBLANK('Rutiner - Lager og logistik'!M9),\"\", 'Rutiner - Lager og logistik'!M9)","v":""},{"$f":"IF(ISBLANK('Rutiner - Lager og logistik'!N9),\"\", 'Rutiner - Lager og logistik'!N9)","v":""},{"$f":"IF(ISBLANK('Rutiner - Lager og logistik'!O9),\"\", 'Rutiner - Lager og logistik'!O9)","v":""},{"$f":"IF(ISBLANK('Rutiner - Lager og logistik'!P9),\"\", 'Rutiner - Lager og logistik'!P9)","v":""}]
[null,{"$f":"IF(ISBLANK('Proces - Oversigt'!B61),\"\",'Proces - Oversigt'!B61)","v":"L05 - Forsendelsespapirer - bookning af transportør"},{"$f":"IF(ISBLANK('Rutiner - Lager og logistik'!B10),\"\", 'Rutiner - Lager og logistik'!B10)","v":""},{"$f":"IF(ISBLANK('Rutiner - Lager og logistik'!C10),\"\", 'Rutiner - Lager og logistik'!C10)","v":""},{"$f":"IF(ISBLANK('Rutiner - Lager og logistik'!D10),\"\", 'Rutiner - Lager og logistik'!D10)","v":""},{"$f":"IF(ISBLANK('Rutiner - Lager og logistik'!E10),\"\", 'Rutiner - Lager og logistik'!E10)","v":""},{"$f":"IF(ISBLANK('Rutiner - Lager og logistik'!F10),\"\", 'Rutiner - Lager og logistik'!F10)","v":""},{"$f":"IF(ISBLANK('Rutiner - Lager og logistik'!G10),\"\", 'Rutiner - Lager og logistik'!G10)","v":""},{"$f":"IF(ISBLANK('Rutiner - Lager og logistik'!H10),\"\", 'Rutiner - Lager og logistik'!H10)","v":""},{"$f":"IF(ISBLANK('Rutiner - Lager og logistik'!I10),\"\", 'Rutiner - Lager og logistik'!I10)","v":""},{"$f":"IF(ISBLANK('Rutiner - Lager og logistik'!J10),\"\", 'Rutiner - Lager og logistik'!J10)","v":""},{"$f":"IF(ISBLANK('Rutiner - Lager og logistik'!K10),\"\", 'Rutiner - Lager og logistik'!K10)","v":""},{"$f":"IF(ISBLANK('Rutiner - Lager og logistik'!L10),\"\", 'Rutiner - Lager og logistik'!L10)","v":""},{"$f":"IF(ISBLANK('Rutiner - Lager og logistik'!M10),\"\", 'Rutiner - Lager og logistik'!M10)","v":""},{"$f":"IF(ISBLANK('Rutiner - Lager og logistik'!N10),\"\", 'Rutiner - Lager og logistik'!N10)","v":""},{"$f":"IF(ISBLANK('Rutiner - Lager og logistik'!O10),\"\", 'Rutiner - Lager og logistik'!O10)","v":""},{"$f":"IF(ISBLANK('Rutiner - Lager og logistik'!P10),\"\", 'Rutiner - Lager og logistik'!P10)","v":""}]
[null,{"$f":"IF(ISBLANK('Proces - Oversigt'!B62),\"\",'Proces - Oversigt'!B62)","v":"L06 - Pålæsning af varer - udgangskontrol"},{"$f":"IF(ISBLANK('Rutiner - Lager og logistik'!B11),\"\", 'Rutiner - Lager og logistik'!B11)","v":""},{"$f":"IF(ISBLANK('Rutiner - Lager og logistik'!C11),\"\", 'Rutiner - Lager og logistik'!C11)","v":""},{"$f":"IF(ISBLANK('Rutiner - Lager og logistik'!D11),\"\", 'Rutiner - Lager og logistik'!D11)","v":""},{"$f":"IF(ISBLANK('Rutiner - Lager og logistik'!E11),\"\", 'Rutiner - Lager og logistik'!E11)","v":""},{"$f":"IF(ISBLANK('Rutiner - Lager og logistik'!F11),\"\", 'Rutiner - Lager og logistik'!F11)","v":""},{"$f":"IF(ISBLANK('Rutiner - Lager og logistik'!G11),\"\", 'Rutiner - Lager og logistik'!G11)","v":""},{"$f":"IF(ISBLANK('Rutiner - Lager og logistik'!H11),\"\", 'Rutiner - Lager og logistik'!H11)","v":""},{"$f":"IF(ISBLANK('Rutiner - Lager og logistik'!I11),\"\", 'Rutiner - Lager og logistik'!I11)","v":""},{"$f":"IF(ISBLANK('Rutiner - Lager og logistik'!J11),\"\", 'Rutiner - Lager og logistik'!J11)","v":""},{"$f":"IF(ISBLANK('Rutiner - Lager og logistik'!K11),\"\", 'Rutiner - Lager og logistik'!K11)","v":""},{"$f":"IF(ISBLANK('Rutiner - Lager og logistik'!L11),\"\", 'Rutiner - Lager og logistik'!L11)","v":""},{"$f":"IF(ISBLANK('Rutiner - Lager og logistik'!M11),\"\", 'Rutiner - Lager og logistik'!M11)","v":""},{"$f":"IF(ISBLANK('Rutiner - Lager og logistik'!N11),\"\", 'Rutiner - Lager og logistik'!N11)","v":""},{"$f":"IF(ISBLANK('Rutiner - Lager og logistik'!O11),\"\", 'Rutiner - Lager og logistik'!O11)","v":""},{"$f":"IF(ISBLANK('Rutiner - Lager og logistik'!P11),\"\", 'Rutiner - Lager og logistik'!P11)","v":""}]
[null,{"$f":"IF(ISBLANK('Proces - Oversigt'!B63),\"\",'Proces - Oversigt'!B63)","v":"L07 - Logistikaftaler - transport, lagerhotel, etc."},{"$f":"IF(ISBLANK('Rutiner - Lager og logistik'!B12),\"\", 'Rutiner - Lager og logistik'!B12)","v":""},{"$f":"IF(ISBLANK('Rutiner - Lager og logistik'!C12),\"\", 'Rutiner - Lager og logistik'!C12)","v":""},{"$f":"IF(ISBLANK('Rutiner - Lager og logistik'!D12),\"\", 'Rutiner - Lager og logistik'!D12)","v":""},{"$f":"IF(ISBLANK('Rutiner - Lager og logistik'!E12),\"\", 'Rutiner - Lager og logistik'!E12)","v":""},{"$f":"IF(ISBLANK('Rutiner - Lager og logistik'!F12),\"\", 'Rutiner - Lager og logistik'!F12)","v":""},{"$f":"IF(ISBLANK('Rutiner - Lager og logistik'!G12),\"\", 'Rutiner - Lager og logistik'!G12)","v":""},{"$f":"IF(ISBLANK('Rutiner - Lager og logistik'!H12),\"\", 'Rutiner - Lager og logistik'!H12)","v":""},{"$f":"IF(ISBLANK('Rutiner - Lager og logistik'!I12),\"\", 'Rutiner - Lager og logistik'!I12)","v":""},{"$f":"IF(ISBLANK('Rutiner - Lager og logistik'!J12),\"\", 'Rutiner - Lager og logistik'!J12)","v":""},{"$f":"IF(ISBLANK('Rutiner - Lager og logistik'!K12),\"\", 'Rutiner - Lager og logistik'!K12)","v":""},{"$f":"IF(ISBLANK('Rutiner - Lager og logistik'!L12),\"\", 'Rutiner - Lager og logistik'!L12)","v":""},{"$f":"IF(ISBLANK('Rutiner - Lager og logistik'!M12),\"\", 'Rutiner - Lager og logistik'!M12)","v":""},{"$f":"IF(ISBLANK('Rutiner - Lager og logistik'!N12),\"\", 'Rutiner - Lager og logistik'!N12)","v":""},{"$f":"IF(ISBLANK('Rutiner - Lager og logistik'!O12),\"\", 'Rutiner - Lager og logistik'!O12)","v":""},{"$f":"IF(ISBLANK('Rutiner - Lager og logistik'!P12),\"\", 'Rutiner - Lager og logistik'!P12)","v":""}]
[null,{"$f":"IF(ISBLANK('Proces - Oversigt'!B64),\"\",'Proces - Oversigt'!B64)","v":"L08 - Håndtering af ændrings- og hasteordrer"},{"$f":"IF(ISBLANK('Rutiner - Lager og logistik'!B13),\"\", 'Rutiner - Lager og logistik'!B13)","v":""},{"$f":"IF(ISBLANK('Rutiner - Lager og logistik'!C13),\"\", 'Rutiner - Lager og logistik'!C13)","v":""},{"$f":"IF(ISBLANK('Rutiner - Lager og logistik'!D13),\"\", 'Rutiner - Lager og logistik'!D13)","v":""},{"$f":"IF(ISBLANK('Rutiner - Lager og logistik'!E13),\"\", 'Rutiner - Lager og logistik'!E13)","v":""},{"$f":"IF(ISBLANK('Rutiner - Lager og logistik'!F13),\"\", 'Rutiner - Lager og logistik'!F13)","v":""},{"$f":"IF(ISBLANK('Rutiner - Lager og logistik'!G13),\"\", 'Rutiner - Lager og logistik'!G13)","v":""},{"$f":"IF(ISBLANK('Rutiner - Lager og logistik'!H13),\"\", 'Rutiner - Lager og logistik'!H13)","v":""},{"$f":"IF(ISBLANK('Rutiner - Lager og logistik'!I13),\"\", 'Rutiner - Lager og logistik'!I13)","v":""},{"$f":"IF(ISBLANK('Rutiner - Lager og logistik'!J13),\"\", 'Rutiner - Lager og logistik'!J13)","v":""},{"$f":"IF(ISBLANK('Rutiner - Lager og logistik'!K13),\"\", 'Rutiner - Lager og logistik'!K13)","v":""},{"$f":"IF(ISBLANK('Rutiner - Lager og logistik'!L13),\"\", 'Rutiner - Lager og logistik'!L13)","v":""},{"$f":"IF(ISBLANK('Rutiner - Lager og logistik'!M13),\"\", 'Rutiner - Lager og logistik'!M13)","v":""},{"$f":"IF(ISBLANK('Rutiner - Lager og logistik'!N13),\"\", 'Rutiner - Lager og logistik'!N13)","v":""},{"$f":"IF(ISBLANK('Rutiner - Lager og logistik'!O13),\"\", 'Rutiner - Lager og logistik'!O13)","v":""},{"$f":"IF(ISBLANK('Rutiner - Lager og logistik'!P13),\"\", 'Rutiner - Lager og logistik'!P13)","v":""}]
[null,{"$f":"IF(ISBLANK('Proces - Oversigt'!B66),\"\",'Proces - Oversigt'!B66)","v":"L10"},{"$f":"IF(ISBLANK('Rutiner - Lager og logistik'!B14),\"\", 'Rutiner - Lager og logistik'!B14)","v":""},{"$f":"IF(ISBLANK('Rutiner - Lager og logistik'!C14),\"\", 'Rutiner - Lager og logistik'!C14)","v":""},{"$f":"IF(ISBLANK('Rutiner - Lager og logistik'!D14),\"\", 'Rutiner - Lager og logistik'!D14)","v":""},{"$f":"IF(ISBLANK('Rutiner - Lager og logistik'!E14),\"\", 'Rutiner - Lager og logistik'!E14)","v":""},{"$f":"IF(ISBLANK('Rutiner - Lager og logistik'!F14),\"\", 'Rutiner - Lager og logistik'!F14)","v":""},{"$f":"IF(ISBLANK('Rutiner - Lager og logistik'!G14),\"\", 'Rutiner - Lager og logistik'!G14)","v":""},{"$f":"IF(ISBLANK('Rutiner - Lager og logistik'!H14),\"\", 'Rutiner - Lager og logistik'!H14)","v":""},{"$f":"IF(ISBLANK('Rutiner - Lager og logistik'!I14),\"\", 'Rutiner - Lager og logistik'!I14)","v":""},{"$f":"IF(ISBLANK('Rutiner - Lager og logistik'!J14),\"\", 'Rutiner - Lager og logistik'!J14)","v":""},{"$f":"IF(ISBLANK('Rutiner - Lager og logistik'!K14),\"\", 'Rutiner - Lager og logistik'!K14)","v":""},{"$f":"IF(ISBLANK('Rutiner - Lager og logistik'!L14),\"\", 'Rutiner - Lager og logistik'!L14)","v":""},{"$f":"IF(ISBLANK('Rutiner - Lager og logistik'!M14),\"\", 'Rutiner - Lager og logistik'!M14)","v":""},{"$f":"IF(ISBLANK('Rutiner - Lager og logistik'!N14),\"\", 'Rutiner - Lager og logistik'!N14)","v":""},{"$f":"IF(ISBLANK('Rutiner - Lager og logistik'!O14),\"\", 'Rutiner - Lager og logistik'!O14)","v":""},{"$f":"IF(ISBLANK('Rutiner - Lager og logistik'!P14),\"\", 'Rutiner - Lager og logistik'!P14)","v":""}]
[null,{"$f":"IF(ISBLANK('Proces - Oversigt'!B67),\"\",'Proces - Oversigt'!B67)","v":"L11 - Kvalitetsstyring"},{"$f":"IF(ISBLANK('Rutiner - Lager og logistik'!B15),\"\", 'Rutiner - Lager og logistik'!B15)","v":""},{"$f":"IF(ISBLANK('Rutiner - Lager og logistik'!C15),\"\", 'Rutiner - Lager og logistik'!C15)","v":""},{"$f":"IF(ISBLANK('Rutiner - Lager og logistik'!D15),\"\", 'Rutiner - Lager og logistik'!D15)","v":""},{"$f":"IF(ISBLANK('Rutiner - Lager og logistik'!E15),\"\", 'Rutiner - Lager og logistik'!E15)","v":""},{"$f":"IF(ISBLANK('Rutiner - Lager og logistik'!F15),\"\", 'Rutiner - Lager og logistik'!F15)","v":""},{"$f":"IF(ISBLANK('Rutiner - Lager og logistik'!G15),\"\", 'Rutiner - Lager og logistik'!G15)","v":""},{"$f":"IF(ISBLANK('Rutiner - Lager og logistik'!H15),\"\", 'Rutiner - Lager og logistik'!H15)","v":""},{"$f":"IF(ISBLANK('Rutiner - Lager og logistik'!I15),\"\", 'Rutiner - Lager og logistik'!I15)","v":""},{"$f":"IF(ISBLANK('Rutiner - Lager og logistik'!J15),\"\", 'Rutiner - Lager og logistik'!J15)","v":""},{"$f":"IF(ISBLANK('Rutiner - Lager og logistik'!K15),\"\", 'Rutiner - Lager og logistik'!K15)","v":""},{"$f":"IF(ISBLANK('Rutiner - Lager og logistik'!L15),\"\", 'Rutiner - Lager og logistik'!L15)","v":""},{"$f":"IF(ISBLANK('Rutiner - Lager og logistik'!M15),\"\", 'Rutiner - Lager og logistik'!M15)","v":""},{"$f":"IF(ISBLANK('Rutiner - Lager og logistik'!N15),\"\", 'Rutiner - Lager og logistik'!N15)","v":""},{"$f":"IF(ISBLANK('Rutiner - Lager og logistik'!O15),\"\", 'Rutiner - Lager og logistik'!O15)","v":""},{"$f":"IF(ISBLANK('Rutiner - Lager og logistik'!P15),\"\", 'Rutiner - Lager og logistik'!P15)","v":""}]
[null,{"$f":"IF(ISBLANK('Proces - Oversigt'!B68),\"\",'Proces - Oversigt'!B68)","v":"L12 - Økonomi, rapportering, planlægning"},{"$f":"IF(ISBLANK('Rutiner - Lager og logistik'!B16),\"\", 'Rutiner - Lager og logistik'!B16)","v":""},{"$f":"IF(ISBLANK('Rutiner - Lager og logistik'!C16),\"\", 'Rutiner - Lager og logistik'!C16)","v":""},{"$f":"IF(ISBLANK('Rutiner - Lager og logistik'!D16),\"\", 'Rutiner - Lager og logistik'!D16)","v":""},{"$f":"IF(ISBLANK('Rutiner - Lager og logistik'!E16),\"\", 'Rutiner - Lager og logistik'!E16)","v":""},{"$f":"IF(ISBLANK('Rutiner - Lager og logistik'!F16),\"\", 'Rutiner - Lager og logistik'!F16)","v":""},{"$f":"IF(ISBLANK('Rutiner - Lager og logistik'!G16),\"\", 'Rutiner - Lager og logistik'!G16)","v":""},{"$f":"IF(ISBLANK('Rutiner - Lager og logistik'!H16),\"\", 'Rutiner - Lager og logistik'!H16)","v":""},{"$f":"IF(ISBLANK('Rutiner - Lager og logistik'!I16),\"\", 'Rutiner - Lager og logistik'!I16)","v":""},{"$f":"IF(ISBLANK('Rutiner - Lager og logistik'!J16),\"\", 'Rutiner - Lager og logistik'!J16)","v":""},{"$f":"IF(ISBLANK('Rutiner - Lager og logistik'!K16),\"\", 'Rutiner - Lager og logistik'!K16)","v":""},{"$f":"IF(ISBLANK('Rutiner - Lager og logistik'!L16),\"\", 'Rutiner - Lager og logistik'!L16)","v":""},{"$f":"IF(ISBLANK('Rutiner - Lager og logistik'!M16),\"\", 'Rutiner - Lager og logistik'!M16)","v":""},{"$f":"IF(ISBLANK('Rutiner - Lager og logistik'!N16),\"\", 'Rutiner - Lager og logistik'!N16)","v":""},{"$f":"IF(ISBLANK('Rutiner - Lager og logistik'!O16),\"\", 'Rutiner - Lager og logistik'!O16)","v":""},{"$f":"IF(ISBLANK('Rutiner - Lager og logistik'!P16),\"\", 'Rutiner - Lager og logistik'!P16)","v":""}]
[null,{"$f":"IF(ISBLANK('Proces - Oversigt'!B69),\"\",'Proces - Oversigt'!B69)","v":"L13 - HR opgaver"},{"$f":"IF(ISBLANK('Rutiner - Lager og logistik'!B17),\"\", 'Rutiner - Lager og logistik'!B17)","v":""},{"$f":"IF(ISBLANK('Rutiner - Lager og logistik'!C17),\"\", 'Rutiner - Lager og logistik'!C17)","v":""},{"$f":"IF(ISBLANK('Rutiner - Lager og logistik'!D17),\"\", 'Rutiner - Lager og logistik'!D17)","v":""},{"$f":"IF(ISBLANK('Rutiner - Lager og logistik'!E17),\"\", 'Rutiner - Lager og logistik'!E17)","v":""},{"$f":"IF(ISBLANK('Rutiner - Lager og logistik'!F17),\"\", 'Rutiner - Lager og logistik'!F17)","v":""},{"$f":"IF(ISBLANK('Rutiner - Lager og logistik'!G17),\"\", 'Rutiner - Lager og logistik'!G17)","v":""},{"$f":"IF(ISBLANK('Rutiner - Lager og logistik'!H17),\"\", 'Rutiner - Lager og logistik'!H17)","v":""},{"$f":"IF(ISBLANK('Rutiner - Lager og logistik'!I17),\"\", 'Rutiner - Lager og logistik'!I17)","v":""},{"$f":"IF(ISBLANK('Rutiner - Lager og logistik'!J17),\"\", 'Rutiner - Lager og logistik'!J17)","v":""},{"$f":"IF(ISBLANK('Rutiner - Lager og logistik'!K17),\"\", 'Rutiner - Lager og logistik'!K17)","v":""},{"$f":"IF(ISBLANK('Rutiner - Lager og logistik'!L17),\"\", 'Rutiner - Lager og logistik'!L17)","v":""},{"$f":"IF(ISBLANK('Rutiner - Lager og logistik'!M17),\"\", 'Rutiner - Lager og logistik'!M17)","v":""},{"$f":"IF(ISBLANK('Rutiner - Lager og logistik'!N17),\"\", 'Rutiner - Lager og logistik'!N17)","v":""},{"$f":"IF(ISBLANK('Rutiner - Lager og logistik'!O17),\"\", 'Rutiner - Lager og logistik'!O17)","v":""},{"$f":"IF(ISBLANK('Rutiner - Lager og logistik'!P17),\"\", 'Rutiner - Lager og logistik'!P17)","v":""}]
[null,{"$f":"IF(ISBLANK('Proces - Oversigt'!B70),\"\",'Proces - Oversigt'!B70)","v":""}]
[null,{"$f":"IF(ISBLANK('Proces - Oversigt'!B71),\"\",'Proces - Oversigt'!B71)","v":"I - Indkøbsopgaver"}]
[null,{"$f":"IF(ISBLANK('Proces - Oversigt'!B72),\"\",'Proces - Oversigt'!B72)","v":"I01 - Leverandørevaluering"},{"$f":"IF(ISBLANK('Rutiner - Indkøb'!B6),\"\", 'Rutiner - Indkøb'!B6)","v":"G"},{"$f":"IF(ISBLANK('Rutiner - Indkøb'!C6),\"\", 'Rutiner - Indkøb'!C6)","v":""},{"$f":"IF(ISBLANK('Rutiner - Indkøb'!D6),\"\", 'Rutiner - Indkøb'!D6)","v":""},{"$f":"IF(ISBLANK('Rutiner - Indkøb'!E6),\"\", 'Rutiner - Indkøb'!E6)","v":""},{"$f":"IF(ISBLANK('Rutiner - Indkøb'!F6),\"\", 'Rutiner - Indkøb'!F6)","v":""},{"$f":"IF(ISBLANK('Rutiner - Indkøb'!G6),\"\", 'Rutiner - Indkøb'!G6)","v":""},{"$f":"IF(ISBLANK('Rutiner - Indkøb'!H6),\"\", 'Rutiner - Indkøb'!H6)","v":""},{"$f":"IF(ISBLANK('Rutiner - Indkøb'!I6),\"\", 'Rutiner - Indkøb'!I6)","v":""},{"$f":"IF(ISBLANK('Rutiner - Indkøb'!J6),\"\", 'Rutiner - Indkøb'!J6)","v":""},{"$f":"IF(ISBLANK('Rutiner - Indkøb'!K6),\"\", 'Rutiner - Indkøb'!K6)","v":""},{"$f":"IF(ISBLANK('Rutiner - Indkøb'!L6),\"\", 'Rutiner - Indkøb'!L6)","v":""},{"$f":"IF(ISBLANK('Rutiner - Indkøb'!M6),\"\", 'Rutiner - Indkøb'!M6)","v":""},{"$f":"IF(ISBLANK('Rutiner - Indkøb'!N6),\"\", 'Rutiner - Indkøb'!N6)","v":""},{"$f":"IF(ISBLANK('Rutiner - Indkøb'!O6),\"\", 'Rutiner - Indkøb'!O6)","v":""},{"$f":"IF(ISBLANK('Rutiner - Indkøb'!P6),\"\", 'Rutiner - Indkøb'!P6)","v":""}]
[null,{"$f":"IF(ISBLANK('Proces - Oversigt'!B73),\"\",'Proces - Oversigt'!B73)","v":"I02 - Leverandøraftaler"},{"$f":"IF(ISBLANK('Rutiner - Indkøb'!B7),\"\", 'Rutiner - Indkøb'!B7)","v":""},{"$f":"IF(ISBLANK('Rutiner - Indkøb'!C7),\"\", 'Rutiner - Indkøb'!C7)","v":""},{"$f":"IF(ISBLANK('Rutiner - Indkøb'!D7),\"\", 'Rutiner - Indkøb'!D7)","v":""},{"$f":"IF(ISBLANK('Rutiner - Indkøb'!E7),\"\", 'Rutiner - Indkøb'!E7)","v":""},{"$f":"IF(ISBLANK('Rutiner - Indkøb'!F7),\"\", 'Rutiner - Indkøb'!F7)","v":""},{"$f":"IF(ISBLANK('Rutiner - Indkøb'!G7),\"\", 'Rutiner - Indkøb'!G7)","v":""},{"$f":"IF(ISBLANK('Rutiner - Indkøb'!H7),\"\", 'Rutiner - Indkøb'!H7)","v":""},{"$f":"IF(ISBLANK('Rutiner - Indkøb'!I7),\"\", 'Rutiner - Indkøb'!I7)","v":""},{"$f":"IF(ISBLANK('Rutiner - Indkøb'!J7),\"\", 'Rutiner - Indkøb'!J7)","v":""},{"$f":"IF(ISBLANK('Rutiner - Indkøb'!K7),\"\", 'Rutiner - Indkøb'!K7)","v":""},{"$f":"IF(ISBLANK('Rutiner - Indkøb'!L7),\"\", 'Rutiner - Indkøb'!L7)","v":""},{"$f":"IF(ISBLANK('Rutiner - Indkøb'!M7),\"\", 'Rutiner - Indkøb'!M7)","v":""},{"$f":"IF(ISBLANK('Rutiner - Indkøb'!N7),\"\", 'Rutiner - Indkøb'!N7)","v":""},{"$f":"IF(ISBLANK('Rutiner - Indkøb'!O7),\"\", 'Rutiner - Indkøb'!O7)","v":""},{"$f":"IF(ISBLANK('Rutiner - Indkøb'!P7),\"\", 'Rutiner - Indkøb'!P7)","v":""}]
[null,{"$f":"IF(ISBLANK('Proces - Oversigt'!B74),\"\",'Proces - Oversigt'!B74)","v":"I03 - Behovsberegning og disponering"},{"$f":"IF(ISBLANK('Rutiner - Indkøb'!B8),\"\", 'Rutiner - Indkøb'!B8)","v":""},{"$f":"IF(ISBLANK('Rutiner - Indkøb'!C8),\"\", 'Rutiner - Indkøb'!C8)","v":""},{"$f":"IF(ISBLANK('Rutiner - Indkøb'!D8),\"\", 'Rutiner - Indkøb'!D8)","v":""},{"$f":"IF(ISBLANK('Rutiner - Indkøb'!E8),\"\", 'Rutiner - Indkøb'!E8)","v":""},{"$f":"IF(ISBLANK('Rutiner - Indkøb'!F8),\"\", 'Rutiner - Indkøb'!F8)","v":""},{"$f":"IF(ISBLANK('Rutiner - Indkøb'!G8),\"\", 'Rutiner - Indkøb'!G8)","v":""},{"$f":"IF(ISBLANK('Rutiner - Indkøb'!H8),\"\", 'Rutiner - Indkøb'!H8)","v":""},{"$f":"IF(ISBLANK('Rutiner - Indkøb'!I8),\"\", 'Rutiner - Indkøb'!I8)","v":""},{"$f":"IF(ISBLANK('Rutiner - Indkøb'!J8),\"\", 'Rutiner - Indkøb'!J8)","v":""},{"$f":"IF(ISBLANK('Rutiner - Indkøb'!K8),\"\", 'Rutiner - Indkøb'!K8)","v":""},{"$f":"IF(ISBLANK('Rutiner - Indkøb'!L8),\"\", 'Rutiner - Indkøb'!L8)","v":""},{"$f":"IF(ISBLANK('Rutiner - Indkøb'!M8),\"\", 'Rutiner - Indkøb'!M8)","v":""},{"$f":"IF(ISBLANK('Rutiner - Indkøb'!N8),\"\", 'Rutiner - Indkøb'!N8)","v":""},{"$f":"IF(ISBLANK('Rutiner - Indkøb'!O8),\"\", 'Rutiner - Indkøb'!O8)","v":""},{"$f":"IF(ISBLANK('Rutiner - Indkøb'!P8),\"\", 'Rutiner - Indkøb'!P8)","v":""}]
[null,{"$f":"IF(ISBLANK('Proces - Oversigt'!B75),\"\",'Proces - Oversigt'!B75)","v":"I04 - Indkøbsordrer"},{"$f":"IF(ISBLANK('Rutiner - Indkøb'!B9),\"\", 'Rutiner - Indkøb'!B9)","v":""},{"$f":"IF(ISBLANK('Rutiner - Indkøb'!C9),\"\", 'Rutiner - Indkøb'!C9)","v":""},{"$f":"IF(ISBLANK('Rutiner - Indkøb'!D9),\"\", 'Rutiner - Indkøb'!D9)","v":""},{"$f":"IF(ISBLANK('Rutiner - Indkøb'!E9),\"\", 'Rutiner - Indkøb'!E9)","v":""},{"$f":"IF(ISBLANK('Rutiner - Indkøb'!F9),\"\", 'Rutiner - Indkøb'!F9)","v":""},{"$f":"IF(ISBLANK('Rutiner - Indkøb'!G9),\"\", 'Rutiner - Indkøb'!G9)","v":""},{"$f":"IF(ISBLANK('Rutiner - Indkøb'!H9),\"\", 'Rutiner - Indkøb'!H9)","v":""},{"$f":"IF(ISBLANK('Rutiner - Indkøb'!I9),\"\", 'Rutiner - Indkøb'!I9)","v":""},{"$f":"IF(ISBLANK('Rutiner - Indkøb'!J9),\"\", 'Rutiner - Indkøb'!J9)","v":""},{"$f":"IF(ISBLANK('Rutiner - Indkøb'!K9),\"\", 'Rutiner - Indkøb'!K9)","v":""},{"$f":"IF(ISBLANK('Rutiner - Indkøb'!L9),\"\", 'Rutiner - Indkøb'!L9)","v":""},{"$f":"IF(ISBLANK('Rutiner - Indkøb'!M9),\"\", 'Rutiner - Indkøb'!M9)","v":""},{"$f":"IF(ISBLANK('Rutiner - Indkøb'!N9),\"\", 'Rutiner - Indkøb'!N9)","v":""},{"$f":"IF(ISBLANK('Rutiner - Indkøb'!O9),\"\", 'Rutiner - Indkøb'!O9)","v":""},{"$f":"IF(ISBLANK('Rutiner - Indkøb'!P9),\"\", 'Rutiner - Indkøb'!P9)","v":""}]
[null,{"$f":"IF(ISBLANK('Proces - Oversigt'!B76),\"\",'Proces - Oversigt'!B76)","v":"I05 - Reklamationsbehandling"},{"$f":"IF(ISBLANK('Rutiner - Indkøb'!B10),\"\", 'Rutiner - Indkøb'!B10)","v":""},{"$f":"IF(ISBLANK('Rutiner - Indkøb'!C10),\"\", 'Rutiner - Indkøb'!C10)","v":""},{"$f":"IF(ISBLANK('Rutiner - Indkøb'!D10),\"\", 'Rutiner - Indkøb'!D10)","v":""},{"$f":"IF(ISBLANK('Rutiner - Indkøb'!E10),\"\", 'Rutiner - Indkøb'!E10)","v":""},{"$f":"IF(ISBLANK('Rutiner - Indkøb'!F10),\"\", 'Rutiner - Indkøb'!F10)","v":""},{"$f":"IF(ISBLANK('Rutiner - Indkøb'!G10),\"\", 'Rutiner - Indkøb'!G10)","v":""},{"$f":"IF(ISBLANK('Rutiner - Indkøb'!H10),\"\", 'Rutiner - Indkøb'!H10)","v":""},{"$f":"IF(ISBLANK('Rutiner - Indkøb'!I10),\"\", 'Rutiner - Indkøb'!I10)","v":""},{"$f":"IF(ISBLANK('Rutiner - Indkøb'!J10),\"\", 'Rutiner - Indkøb'!J10)","v":""},{"$f":"IF(ISBLANK('Rutiner - Indkøb'!K10),\"\", 'Rutiner - Indkøb'!K10)","v":""},{"$f":"IF(ISBLANK('Rutiner - Indkøb'!L10),\"\", 'Rutiner - Indkøb'!L10)","v":""},{"$f":"IF(ISBLANK('Rutiner - Indkøb'!M10),\"\", 'Rutiner - Indkøb'!M10)","v":""},{"$f":"IF(ISBLANK('Rutiner - Indkøb'!N10),\"\", 'Rutiner - Indkøb'!N10)","v":""},{"$f":"IF(ISBLANK('Rutiner - Indkøb'!O10),\"\", 'Rutiner - Indkøb'!O10)","v":""},{"$f":"IF(ISBLANK('Rutiner - Indkøb'!P10),\"\", 'Rutiner - Indkøb'!P10)","v":""}]
[null,{"$f":"IF(ISBLANK('Proces - Oversigt'!B77),\"\",'Proces - Oversigt'!B77)","v":"I06 - Vedligehold af indkøbte varers kostpriser - kostprisafv."},{"$f":"IF(ISBLANK('Rutiner - Indkøb'!B11),\"\", 'Rutiner - Indkøb'!B11)","v":""},{"$f":"IF(ISBLANK('Rutiner - Indkøb'!C11),\"\", 'Rutiner - Indkøb'!C11)","v":""},{"$f":"IF(ISBLANK('Rutiner - Indkøb'!D11),\"\", 'Rutiner - Indkøb'!D11)","v":""},{"$f":"IF(ISBLANK('Rutiner - Indkøb'!E11),\"\", 'Rutiner - Indkøb'!E11)","v":""},{"$f":"IF(ISBLANK('Rutiner - Indkøb'!F11),\"\", 'Rutiner - Indkøb'!F11)","v":""},{"$f":"IF(ISBLANK('Rutiner - Indkøb'!G11),\"\", 'Rutiner - Indkøb'!G11)","v":""},{"$f":"IF(ISBLANK('Rutiner - Indkøb'!H11),\"\", 'Rutiner - Indkøb'!H11)","v":""},{"$f":"IF(ISBLANK('Rutiner - Indkøb'!I11),\"\", 'Rutiner - Indkøb'!I11)","v":""},{"$f":"IF(ISBLANK('Rutiner - Indkøb'!J11),\"\", 'Rutiner - Indkøb'!J11)","v":""},{"$f":"IF(ISBLANK('Rutiner - Indkøb'!K11),\"\", 'Rutiner - Indkøb'!K11)","v":""},{"$f":"IF(ISBLANK('Rutiner - Indkøb'!L11),\"\", 'Rutiner - Indkøb'!L11)","v":""},{"$f":"IF(ISBLANK('Rutiner - Indkøb'!M11),\"\", 'Rutiner - Indkøb'!M11)","v":""},{"$f":"IF(ISBLANK('Rutiner - Indkøb'!N11),\"\", 'Rutiner - Indkøb'!N11)","v":""},{"$f":"IF(ISBLANK('Rutiner - Indkøb'!O11),\"\", 'Rutiner - Indkøb'!O11)","v":""},{"$f":"IF(ISBLANK('Rutiner - Indkøb'!P11),\"\", 'Rutiner - Indkøb'!P11)","v":""}]
[null,{"$f":"IF(ISBLANK('Proces - Oversigt'!B79),\"\",'Proces - Oversigt'!B79)","v":"I08"},{"$f":"IF(ISBLANK('Rutiner - Indkøb'!B12),\"\", 'Rutiner - Indkøb'!B12)","v":""},{"$f":"IF(ISBLANK('Rutiner - Indkøb'!C12),\"\", 'Rutiner - Indkøb'!C12)","v":""},{"$f":"IF(ISBLANK('Rutiner - Indkøb'!D12),\"\", 'Rutiner - Indkøb'!D12)","v":""},{"$f":"IF(ISBLANK('Rutiner - Indkøb'!E12),\"\", 'Rutiner - Indkøb'!E12)","v":""},{"$f":"IF(ISBLANK('Rutiner - Indkøb'!F12),\"\", 'Rutiner - Indkøb'!F12)","v":""},{"$f":"IF(ISBLANK('Rutiner - Indkøb'!G12),\"\", 'Rutiner - Indkøb'!G12)","v":""},{"$f":"IF(ISBLANK('Rutiner - Indkøb'!H12),\"\", 'Rutiner - Indkøb'!H12)","v":""},{"$f":"IF(ISBLANK('Rutiner - Indkøb'!I12),\"\", 'Rutiner - Indkøb'!I12)","v":""},{"$f":"IF(ISBLANK('Rutiner - Indkøb'!J12),\"\", 'Rutiner - Indkøb'!J12)","v":""},{"$f":"IF(ISBLANK('Rutiner - Indkøb'!K12),\"\", 'Rutiner - Indkøb'!K12)","v":""},{"$f":"IF(ISBLANK('Rutiner - Indkøb'!L12),\"\", 'Rutiner - Indkøb'!L12)","v":""},{"$f":"IF(ISBLANK('Rutiner - Indkøb'!M12),\"\", 'Rutiner - Indkøb'!M12)","v":""},{"$f":"IF(ISBLANK('Rutiner - Indkøb'!N12),\"\", 'Rutiner - Indkøb'!N12)","v":""},{"$f":"IF(ISBLANK('Rutiner - Indkøb'!O12),\"\", 'Rutiner - Indkøb'!O12)","v":""},{"$f":"IF(ISBLANK('Rutiner - Indkøb'!P12),\"\", 'Rutiner - Indkøb'!P12)","v":""}]
[null,{"$f":"IF(ISBLANK('Proces - Oversigt'!B80),\"\",'Proces - Oversigt'!B80)","v":"I11 - Kvalitetsstyring"},{"$f":"IF(ISBLANK('Rutiner - Indkøb'!B13),\"\", 'Rutiner - Indkøb'!B13)","v":""},{"$f":"IF(ISBLANK('Rutiner - Indkøb'!C13),\"\", 'Rutiner - Indkøb'!C13)","v":""},{"$f":"IF(ISBLANK('Rutiner - Indkøb'!D13),\"\", 'Rutiner - Indkøb'!D13)","v":""},{"$f":"IF(ISBLANK('Rutiner - Indkøb'!E13),\"\", 'Rutiner - Indkøb'!E13)","v":""},{"$f":"IF(ISBLANK('Rutiner - Indkøb'!F13),\"\", 'Rutiner - Indkøb'!F13)","v":""},{"$f":"IF(ISBLANK('Rutiner - Indkøb'!G13),\"\", 'Rutiner - Indkøb'!G13)","v":""},{"$f":"IF(ISBLANK('Rutiner - Indkøb'!H13),\"\", 'Rutiner - Indkøb'!H13)","v":""},{"$f":"IF(ISBLANK('Rutiner - Indkøb'!I13),\"\", 'Rutiner - Indkøb'!I13)","v":""},{"$f":"IF(ISBLANK('Rutiner - Indkøb'!J13),\"\", 'Rutiner - Indkøb'!J13)","v":""},{"$f":"IF(ISBLANK('Rutiner - Indkøb'!K13),\"\", 'Rutiner - Indkøb'!K13)","v":""},{"$f":"IF(ISBLANK('Rutiner - Indkøb'!L13),\"\", 'Rutiner - Indkøb'!L13)","v":""},{"$f":"IF(ISBLANK('Rutiner - Indkøb'!M13),\"\", 'Rutiner - Indkøb'!M13)","v":""},{"$f":"IF(ISBLANK('Rutiner - Indkøb'!N13),\"\", 'Rutiner - Indkøb'!N13)","v":""},{"$f":"IF(ISBLANK('Rutiner - Indkøb'!O13),\"\", 'Rutiner - Indkøb'!O13)","v":""},{"$f":"IF(ISBLANK('Rutiner - Indkøb'!P13),\"\", 'Rutiner - Indkøb'!P13)","v":""}]
[null,{"$f":"IF(ISBLANK('Proces - Oversigt'!B81),\"\",'Proces - Oversigt'!B81)","v":"I12 - Økonomi, rapportering, planlægning"},{"$f":"IF(ISBLANK('Rutiner - Indkøb'!B14),\"\", 'Rutiner - Indkøb'!B14)","v":""},{"$f":"IF(ISBLANK('Rutiner - Indkøb'!C14),\"\", 'Rutiner - Indkøb'!C14)","v":""},{"$f":"IF(ISBLANK('Rutiner - Indkøb'!D14),\"\", 'Rutiner - Indkøb'!D14)","v":""},{"$f":"IF(ISBLANK('Rutiner - Indkøb'!E14),\"\", 'Rutiner - Indkøb'!E14)","v":""},{"$f":"IF(ISBLANK('Rutiner - Indkøb'!F14),\"\", 'Rutiner - Indkøb'!F14)","v":""},{"$f":"IF(ISBLANK('Rutiner - Indkøb'!G14),\"\", 'Rutiner - Indkøb'!G14)","v":""},{"$f":"IF(ISBLANK('Rutiner - Indkøb'!H14),\"\", 'Rutiner - Indkøb'!H14)","v":""},{"$f":"IF(ISBLANK('Rutiner - Indkøb'!I14),\"\", 'Rutiner - Indkøb'!I14)","v":""},{"$f":"IF(ISBLANK('Rutiner - Indkøb'!J14),\"\", 'Rutiner - Indkøb'!J14)","v":""},{"$f":"IF(ISBLANK('Rutiner - Indkøb'!K14),\"\", 'Rutiner - Indkøb'!K14)","v":""},{"$f":"IF(ISBLANK('Rutiner - Indkøb'!L14),\"\", 'Rutiner - Indkøb'!L14)","v":""},{"$f":"IF(ISBLANK('Rutiner - Indkøb'!M14),\"\", 'Rutiner - Indkøb'!M14)","v":""},{"$f":"IF(ISBLANK('Rutiner - Indkøb'!N14),\"\", 'Rutiner - Indkøb'!N14)","v":""},{"$f":"IF(ISBLANK('Rutiner - Indkøb'!O14),\"\", 'Rutiner - Indkøb'!O14)","v":""},{"$f":"IF(ISBLANK('Rutiner - Indkøb'!P14),\"\", 'Rutiner - Indkøb'!P14)","v":""}]
[null,{"$f":"IF(ISBLANK('Proces - Oversigt'!B82),\"\",'Proces - Oversigt'!B82)","v":"I13 - HR opgaver"},{"$f":"IF(ISBLANK('Rutiner - Indkøb'!B15),\"\", 'Rutiner - Indkøb'!B15)","v":""},{"$f":"IF(ISBLANK('Rutiner - Indkøb'!C15),\"\", 'Rutiner - Indkøb'!C15)","v":""},{"$f":"IF(ISBLANK('Rutiner - Indkøb'!D15),\"\", 'Rutiner - Indkøb'!D15)","v":""},{"$f":"IF(ISBLANK('Rutiner - Indkøb'!E15),\"\", 'Rutiner - Indkøb'!E15)","v":""},{"$f":"IF(ISBLANK('Rutiner - Indkøb'!F15),\"\", 'Rutiner - Indkøb'!F15)","v":""},{"$f":"IF(ISBLANK('Rutiner - Indkøb'!G15),\"\", 'Rutiner - Indkøb'!G15)","v":""},{"$f":"IF(ISBLANK('Rutiner - Indkøb'!H15),\"\", 'Rutiner - Indkøb'!H15)","v":""},{"$f":"IF(ISBLANK('Rutiner - Indkøb'!I15),\"\", 'Rutiner - Indkøb'!I15)","v":""},{"$f":"IF(ISBLANK('Rutiner - Indkøb'!J15),\"\", 'Rutiner - Indkøb'!J15)","v":""},{"$f":"IF(ISBLANK('Rutiner - Indkøb'!K15),\"\", 'Rutiner - Indkøb'!K15)","v":""},{"$f":"IF(ISBLANK('Rutiner - Indkøb'!L15),\"\", 'Rutiner - Indkøb'!L15)","v":""},{"$f":"IF(ISBLANK('Rutiner - Indkøb'!M15),\"\", 'Rutiner - Indkøb'!M15)","v":""},{"$f":"IF(ISBLANK('Rutiner - Indkøb'!N15),\"\", 'Rutiner - Indkøb'!N15)","v":""},{"$f":"IF(ISBLANK('Rutiner - Indkøb'!O15),\"\", 'Rutiner - Indkøb'!O15)","v":""},{"$f":"IF(ISBLANK('Rutiner - Indkøb'!P15),\"\", 'Rutiner - Indkøb'!P15)","v":""}]
[null,{"$f":"IF(ISBLANK('Proces - Oversigt'!B83),\"\",'Proces - Oversigt'!B83)","v":""}]
[null,{"$f":"IF(ISBLANK('Proces - Oversigt'!B84),\"\",'Proces - Oversigt'!B84)","v":"B - Økonomiopgaver"}]
[null,{"$f":"IF(ISBLANK('Proces - Oversigt'!B85),\"\",'Proces - Oversigt'!B85)","v":"B01 - Finans, debitor og kreditor"},{"$f":"IF(ISBLANK('Rutiner - Økonomi'!B6),\"\", 'Rutiner - Økonomi'!B6)","v":"G"},{"$f":"IF(ISBLANK('Rutiner - Økonomi'!C6),\"\", 'Rutiner - Økonomi'!C6)","v":""},{"$f":"IF(ISBLANK('Rutiner - Økonomi'!D6),\"\", 'Rutiner - Økonomi'!D6)","v":""},{"$f":"IF(ISBLANK('Rutiner - Økonomi'!E6),\"\", 'Rutiner - Økonomi'!E6)","v":""},{"$f":"IF(ISBLANK('Rutiner - Økonomi'!F6),\"\", 'Rutiner - Økonomi'!F6)","v":""},{"$f":"IF(ISBLANK('Rutiner - Økonomi'!G6),\"\", 'Rutiner - Økonomi'!G6)","v":""},{"$f":"IF(ISBLANK('Rutiner - Økonomi'!H6),\"\", 'Rutiner - Økonomi'!H6)","v":""},{"$f":"IF(ISBLANK('Rutiner - Økonomi'!I6),\"\", 'Rutiner - Økonomi'!I6)","v":""},{"$f":"IF(ISBLANK('Rutiner - Økonomi'!J6),\"\", 'Rutiner - Økonomi'!J6)","v":""},{"$f":"IF(ISBLANK('Rutiner - Økonomi'!K6),\"\", 'Rutiner - Økonomi'!K6)","v":""},{"$f":"IF(ISBLANK('Rutiner - Økonomi'!L6),\"\", 'Rutiner - Økonomi'!L6)","v":""},{"$f":"IF(ISBLANK('Rutiner - Økonomi'!M6),\"\", 'Rutiner - Økonomi'!M6)","v":""},{"$f":"IF(ISBLANK('Rutiner - Økonomi'!N6),\"\", 'Rutiner - Økonomi'!N6)","v":""},{"$f":"IF(ISBLANK('Rutiner - Økonomi'!O6),\"\", 'Rutiner - Økonomi'!O6)","v":""},{"$f":"IF(ISBLANK('Rutiner - Økonomi'!P6),\"\", 'Rutiner - Økonomi'!P6)","v":""}]
[null,{"$f":"IF(ISBLANK('Proces - Oversigt'!B86),\"\",'Proces - Oversigt'!B86)","v":"B02 - Gage og lønninger"},{"$f":"IF(ISBLANK('Rutiner - Økonomi'!B7),\"\", 'Rutiner - Økonomi'!B7)","v":""},{"$f":"IF(ISBLANK('Rutiner - Økonomi'!C7),\"\", 'Rutiner - Økonomi'!C7)","v":""},{"$f":"IF(ISBLANK('Rutiner - Økonomi'!D7),\"\", 'Rutiner - Økonomi'!D7)","v":""},{"$f":"IF(ISBLANK('Rutiner - Økonomi'!E7),\"\", 'Rutiner - Økonomi'!E7)","v":""},{"$f":"IF(ISBLANK('Rutiner - Økonomi'!F7),\"\", 'Rutiner - Økonomi'!F7)","v":""},{"$f":"IF(ISBLANK('Rutiner - Økonomi'!G7),\"\", 'Rutiner - Økonomi'!G7)","v":""},{"$f":"IF(ISBLANK('Rutiner - Økonomi'!H7),\"\", 'Rutiner - Økonomi'!H7)","v":""},{"$f":"IF(ISBLANK('Rutiner - Økonomi'!I7),\"\", 'Rutiner - Økonomi'!I7)","v":""},{"$f":"IF(ISBLANK('Rutiner - Økonomi'!J7),\"\", 'Rutiner - Økonomi'!J7)","v":""},{"$f":"IF(ISBLANK('Rutiner - Økonomi'!K7),\"\", 'Rutiner - Økonomi'!K7)","v":""},{"$f":"IF(ISBLANK('Rutiner - Økonomi'!L7),\"\", 'Rutiner - Økonomi'!L7)","v":""},{"$f":"IF(ISBLANK('Rutiner - Økonomi'!M7),\"\", 'Rutiner - Økonomi'!M7)","v":""},{"$f":"IF(ISBLANK('Rutiner - Økonomi'!N7),\"\", 'Rutiner - Økonomi'!N7)","v":""},{"$f":"IF(ISBLANK('Rutiner - Økonomi'!O7),\"\", 'Rutiner - Økonomi'!O7)","v":""},{"$f":"IF(ISBLANK('Rutiner - Økonomi'!P7),\"\", 'Rutiner - Økonomi'!P7)","v":""}]
[null,{"$f":"IF(ISBLANK('Proces - Oversigt'!B87),\"\",'Proces - Oversigt'!B87)","v":"B03 - Budgetlægning"},{"$f":"IF(ISBLANK('Rutiner - Økonomi'!B8),\"\", 'Rutiner - Økonomi'!B8)","v":""},{"$f":"IF(ISBLANK('Rutiner - Økonomi'!C8),\"\", 'Rutiner - Økonomi'!C8)","v":""},{"$f":"IF(ISBLANK('Rutiner - Økonomi'!D8),\"\", 'Rutiner - Økonomi'!D8)","v":""},{"$f":"IF(ISBLANK('Rutiner - Økonomi'!E8),\"\", 'Rutiner - Økonomi'!E8)","v":""},{"$f":"IF(ISBLANK('Rutiner - Økonomi'!F8),\"\", 'Rutiner - Økonomi'!F8)","v":""},{"$f":"IF(ISBLANK('Rutiner - Økonomi'!G8),\"\", 'Rutiner - Økonomi'!G8)","v":""},{"$f":"IF(ISBLANK('Rutiner - Økonomi'!H8),\"\", 'Rutiner - Økonomi'!H8)","v":""},{"$f":"IF(ISBLANK('Rutiner - Økonomi'!I8),\"\", 'Rutiner - Økonomi'!I8)","v":""},{"$f":"IF(ISBLANK('Rutiner - Økonomi'!J8),\"\", 'Rutiner - Økonomi'!J8)","v":""},{"$f":"IF(ISBLANK('Rutiner - Økonomi'!K8),\"\", 'Rutiner - Økonomi'!K8)","v":""},{"$f":"IF(ISBLANK('Rutiner - Økonomi'!L8),\"\", 'Rutiner - Økonomi'!L8)","v":""},{"$f":"IF(ISBLANK('Rutiner - Økonomi'!M8),\"\", 'Rutiner - Økonomi'!M8)","v":""},{"$f":"IF(ISBLANK('Rutiner - Økonomi'!N8),\"\", 'Rutiner - Økonomi'!N8)","v":""},{"$f":"IF(ISBLANK('Rutiner - Økonomi'!O8),\"\", 'Rutiner - Økonomi'!O8)","v":""},{"$f":"IF(ISBLANK('Rutiner - Økonomi'!P8),\"\", 'Rutiner - Økonomi'!P8)","v":""}]
[null,{"$f":"IF(ISBLANK('Proces - Oversigt'!B88),\"\",'Proces - Oversigt'!B88)","v":"B04 - Likviditetsstyring"},{"$f":"IF(ISBLANK('Rutiner - Økonomi'!B9),\"\", 'Rutiner - Økonomi'!B9)","v":""},{"$f":"IF(ISBLANK('Rutiner - Økonomi'!C9),\"\", 'Rutiner - Økonomi'!C9)","v":""},{"$f":"IF(ISBLANK('Rutiner - Økonomi'!D9),\"\", 'Rutiner - Økonomi'!D9)","v":""},{"$f":"IF(ISBLANK('Rutiner - Økonomi'!E9),\"\", 'Rutiner - Økonomi'!E9)","v":""},{"$f":"IF(ISBLANK('Rutiner - Økonomi'!F9),\"\", 'Rutiner - Økonomi'!F9)","v":""},{"$f":"IF(ISBLANK('Rutiner - Økonomi'!G9),\"\", 'Rutiner - Økonomi'!G9)","v":""},{"$f":"IF(ISBLANK('Rutiner - Økonomi'!H9),\"\", 'Rutiner - Økonomi'!H9)","v":""},{"$f":"IF(ISBLANK('Rutiner - Økonomi'!I9),\"\", 'Rutiner - Økonomi'!I9)","v":""},{"$f":"IF(ISBLANK('Rutiner - Økonomi'!J9),\"\", 'Rutiner - Økonomi'!J9)","v":""},{"$f":"IF(ISBLANK('Rutiner - Økonomi'!K9),\"\", 'Rutiner - Økonomi'!K9)","v":""},{"$f":"IF(ISBLANK('Rutiner - Økonomi'!L9),\"\", 'Rutiner - Økonomi'!L9)","v":""},{"$f":"IF(ISBLANK('Rutiner - Økonomi'!M9),\"\", 'Rutiner - Økonomi'!M9)","v":""},{"$f":"IF(ISBLANK('Rutiner - Økonomi'!N9),\"\", 'Rutiner - Økonomi'!N9)","v":""},{"$f":"IF(ISBLANK('Rutiner - Økonomi'!O9),\"\", 'Rutiner - Økonomi'!O9)","v":""},{"$f":"IF(ISBLANK('Rutiner - Økonomi'!P9),\"\", 'Rutiner - Økonomi'!P9)","v":""}]
[null,{"$f":"IF(ISBLANK('Proces - Oversigt'!B90),\"\",'Proces - Oversigt'!B90)","v":"B06"},{"$f":"IF(ISBLANK('Rutiner - Økonomi'!B10),\"\", 'Rutiner - Økonomi'!B10)","v":""},{"$f":"IF(ISBLANK('Rutiner - Økonomi'!C10),\"\", 'Rutiner - Økonomi'!C10)","v":""},{"$f":"IF(ISBLANK('Rutiner - Økonomi'!D10),\"\", 'Rutiner - Økonomi'!D10)","v":""},{"$f":"IF(ISBLANK('Rutiner - Økonomi'!E10),\"\", 'Rutiner - Økonomi'!E10)","v":""},{"$f":"IF(ISBLANK('Rutiner - Økonomi'!F10),\"\", 'Rutiner - Økonomi'!F10)","v":""},{"$f":"IF(ISBLANK('Rutiner - Økonomi'!G10),\"\", 'Rutiner - Økonomi'!G10)","v":""},{"$f":"IF(ISBLANK('Rutiner - Økonomi'!H10),\"\", 'Rutiner - Økonomi'!H10)","v":""},{"$f":"IF(ISBLANK('Rutiner - Økonomi'!I10),\"\", 'Rutiner - Økonomi'!I10)","v":""},{"$f":"IF(ISBLANK('Rutiner - Økonomi'!J10),\"\", 'Rutiner - Økonomi'!J10)","v":""},{"$f":"IF(ISBLANK('Rutiner - Økonomi'!K10),\"\", 'Rutiner - Økonomi'!K10)","v":""},{"$f":"IF(ISBLANK('Rutiner - Økonomi'!L10),\"\", 'Rutiner - Økonomi'!L10)","v":""},{"$f":"IF(ISBLANK('Rutiner - Økonomi'!M10),\"\", 'Rutiner - Økonomi'!M10)","v":""},{"$f":"IF(ISBLANK('Rutiner - Økonomi'!N10),\"\", 'Rutiner - Økonomi'!N10)","v":""},{"$f":"IF(ISBLANK('Rutiner - Økonomi'!O10),\"\", 'Rutiner - Økonomi'!O10)","v":""},{"$f":"IF(ISBLANK('Rutiner - Økonomi'!P10),\"\", 'Rutiner - Økonomi'!P10)","v":""}]
[null,{"$f":"IF(ISBLANK('Proces - Oversigt'!B91),\"\",'Proces - Oversigt'!B91)","v":"B11 - Reklamationsbehandling"},{"$f":"IF(ISBLANK('Rutiner - Økonomi'!B11),\"\", 'Rutiner - Økonomi'!B11)","v":""},{"$f":"IF(ISBLANK('Rutiner - Økonomi'!C11),\"\", 'Rutiner - Økonomi'!C11)","v":""},{"$f":"IF(ISBLANK('Rutiner - Økonomi'!D11),\"\", 'Rutiner - Økonomi'!D11)","v":""},{"$f":"IF(ISBLANK('Rutiner - Økonomi'!E11),\"\", 'Rutiner - Økonomi'!E11)","v":""},{"$f":"IF(ISBLANK('Rutiner - Økonomi'!F11),\"\", 'Rutiner - Økonomi'!F11)","v":""},{"$f":"IF(ISBLANK('Rutiner - Økonomi'!G11),\"\", 'Rutiner - Økonomi'!G11)","v":""},{"$f":"IF(ISBLANK('Rutiner - Økonomi'!H11),\"\", 'Rutiner - Økonomi'!H11)","v":""},{"$f":"IF(ISBLANK('Rutiner - Økonomi'!I11),\"\", 'Rutiner - Økonomi'!I11)","v":""},{"$f":"IF(ISBLANK('Rutiner - Økonomi'!J11),\"\", 'Rutiner - Økonomi'!J11)","v":""},{"$f":"IF(ISBLANK('Rutiner - Økonomi'!K11),\"\", 'Rutiner - Økonomi'!K11)","v":""},{"$f":"IF(ISBLANK('Rutiner - Økonomi'!L11),\"\", 'Rutiner - Økonomi'!L11)","v":""},{"$f":"IF(ISBLANK('Rutiner - Økonomi'!M11),\"\", 'Rutiner - Økonomi'!M11)","v":""},{"$f":"IF(ISBLANK('Rutiner - Økonomi'!N11),\"\", 'Rutiner - Økonomi'!N11)","v":""},{"$f":"IF(ISBLANK('Rutiner - Økonomi'!O11),\"\", 'Rutiner - Økonomi'!O11)","v":""},{"$f":"IF(ISBLANK('Rutiner - Økonomi'!P11),\"\", 'Rutiner - Økonomi'!P11)","v":""}]
[null,{"$f":"IF(ISBLANK('Proces - Oversigt'!B92),\"\",'Proces - Oversigt'!B92)","v":"B12 - Økonomi, rapportering, planlægning"},{"$f":"IF(ISBLANK('Rutiner - Økonomi'!B12),\"\", 'Rutiner - Økonomi'!B12)","v":""},{"$f":"IF(ISBLANK('Rutiner - Økonomi'!C12),\"\", 'Rutiner - Økonomi'!C12)","v":""},{"$f":"IF(ISBLANK('Rutiner - Økonomi'!D12),\"\", 'Rutiner - Økonomi'!D12)","v":""},{"$f":"IF(ISBLANK('Rutiner - Økonomi'!E12),\"\", 'Rutiner - Økonomi'!E12)","v":""},{"$f":"IF(ISBLANK('Rutiner - Økonomi'!F12),\"\", 'Rutiner - Økonomi'!F12)","v":""},{"$f":"IF(ISBLANK('Rutiner - Økonomi'!G12),\"\", 'Rutiner - Økonomi'!G12)","v":""},{"$f":"IF(ISBLANK('Rutiner - Økonomi'!H12),\"\", 'Rutiner - Økonomi'!H12)","v":""},{"$f":"IF(ISBLANK('Rutiner - Økonomi'!I12),\"\", 'Rutiner - Økonomi'!I12)","v":""},{"$f":"IF(ISBLANK('Rutiner - Økonomi'!J12),\"\", 'Rutiner - Økonomi'!J12)","v":""},{"$f":"IF(ISBLANK('Rutiner - Økonomi'!K12),\"\", 'Rutiner - Økonomi'!K12)","v":""},{"$f":"IF(ISBLANK('Rutiner - Økonomi'!L12),\"\", 'Rutiner - Økonomi'!L12)","v":""},{"$f":"IF(ISBLANK('Rutiner - Økonomi'!M12),\"\", 'Rutiner - Økonomi'!M12)","v":""},{"$f":"IF(ISBLANK('Rutiner - Økonomi'!N12),\"\", 'Rutiner - Økonomi'!N12)","v":""},{"$f":"IF(ISBLANK('Rutiner - Økonomi'!O12),\"\", 'Rutiner - Økonomi'!O12)","v":""},{"$f":"IF(ISBLANK('Rutiner - Økonomi'!P12),\"\", 'Rutiner - Økonomi'!P12)","v":""}]
[null,{"$f":"IF(ISBLANK('Proces - Oversigt'!B93),\"\",'Proces - Oversigt'!B93)","v":"B13 - HR opgaver"},{"$f":"IF(ISBLANK('Rutiner - Økonomi'!B13),\"\", 'Rutiner - Økonomi'!B13)","v":""},{"$f":"IF(ISBLANK('Rutiner - Økonomi'!C13),\"\", 'Rutiner - Økonomi'!C13)","v":""},{"$f":"IF(ISBLANK('Rutiner - Økonomi'!D13),\"\", 'Rutiner - Økonomi'!D13)","v":""},{"$f":"IF(ISBLANK('Rutiner - Økonomi'!E13),\"\", 'Rutiner - Økonomi'!E13)","v":""},{"$f":"IF(ISBLANK('Rutiner - Økonomi'!F13),\"\", 'Rutiner - Økonomi'!F13)","v":""},{"$f":"IF(ISBLANK('Rutiner - Økonomi'!G13),\"\", 'Rutiner - Økonomi'!G13)","v":""},{"$f":"IF(ISBLANK('Rutiner - Økonomi'!H13),\"\", 'Rutiner - Økonomi'!H13)","v":""},{"$f":"IF(ISBLANK('Rutiner - Økonomi'!I13),\"\", 'Rutiner - Økonomi'!I13)","v":""},{"$f":"IF(ISBLANK('Rutiner - Økonomi'!J13),\"\", 'Rutiner - Økonomi'!J13)","v":""},{"$f":"IF(ISBLANK('Rutiner - Økonomi'!K13),\"\", 'Rutiner - Økonomi'!K13)","v":""},{"$f":"IF(ISBLANK('Rutiner - Økonomi'!L13),\"\", 'Rutiner - Økonomi'!L13)","v":""},{"$f":"IF(ISBLANK('Rutiner - Økonomi'!M13),\"\", 'Rutiner - Økonomi'!M13)","v":""},{"$f":"IF(ISBLANK('Rutiner - Økonomi'!N13),\"\", 'Rutiner - Økonomi'!N13)","v":""},{"$f":"IF(ISBLANK('Rutiner - Økonomi'!O13),\"\", 'Rutiner - Økonomi'!O13)","v":""},{"$f":"IF(ISBLANK('Rutiner - Økonomi'!P13),\"\", 'Rutiner - Økonomi'!P13)","v":""}]

{"sheet":"Rutine - overblik","index":18,"n_rows":89,"n_cols":14,"rows_kept":89,"cut":false,"hidden":false,"merged":[[2,2,2,12],[3,2,3,12],[2,13,4,13]]}
[]
[]
[null,"Arbejdsrutiner","                           Organisation                   ",null,null,null,null,null,null,null,null,null,null,"Faktuelle problemstillinger"]
[null,null,"Interne medarbejdere"]
[null,"Anvendt koder:\nGodkendelse og kontrol: G\nUdfører aktivitet: X\nBackup: B\nOrienteres: O\n"]
[null,{"$f":"IF(ISBLANK('Proces - Oversigt'!B10),\"\", 'Proces - Oversigt'!B10)","v":"L - Ledelsesopgaver"}]
[null,{"$f":"IF(ISBLANK('Proces - Oversigt'!B11),\"\", 'Proces - Oversigt'!B11)","v":"L01 - Koordinering af ledergruppe"}]
[null,{"$f":"IF(ISBLANK('Proces - Oversigt'!B12),\"\", 'Proces - Oversigt'!B12)","v":"L02 - Kvalitetsstyring - reklamationer"}]
[null,{"$f":"IF(ISBLANK('Proces - Oversigt'!B13),\"\", 'Proces - Oversigt'!B13)","v":"L03 - Projektstyring"}]
[null,{"$f":"IF(ISBLANK('Proces - Oversigt'!B14),\"\", 'Proces - Oversigt'!B14)","v":"L04 - Kontraktforhandlinger"}]
[null,{"$f":"IF(ISBLANK('Proces - Oversigt'!B15),\"\", 'Proces - Oversigt'!B15)","v":"L05 - Økonomi, rapportering, planlægning"}]
[null,{"$f":"IF(ISBLANK('Proces - Oversigt'!B16),\"\", 'Proces - Oversigt'!B16)","v":""}]
[null,{"$f":"IF(ISBLANK('Proces - Oversigt'!B17),\"\", 'Proces - Oversigt'!B17)","v":"S - Salgsopgaver"}]
[null,{"$f":"IF(ISBLANK('Proces - Oversigt'!B18),\"\", 'Proces - Oversigt'!B18)","v":"S01 - Salgsordre - almindelige ordre"}]
[null,{"$f":"IF(ISBLANK('Proces - Oversigt'!B19),\"\", 'Proces - Oversigt'!B19)","v":"S02 - Salgsordre - projekter, 1. gangsleverancer/prototyper"}]
[null,{"$f":"IF(ISBLANK('Proces - Oversigt'!B20),\"\", 'Proces - Oversigt'!B20)","v":"S03 - Tilbud , forespørgelser"}]
[null,{"$f":"IF(ISBLANK('Proces - Oversigt'!B21),\"\", 'Proces - Oversigt'!B21)","v":"S04 - Ændrings- og hasteordre"}]
[null,{"$f":"IF(ISBLANK('Proces - Oversigt'!B22),\"\", 'Proces - Oversigt'!B22)","v":"S05 - Kundebesøg, messer"}]
[null,{"$f":"IF(ISBLANK('Proces - Oversigt'!B23),\"\", 'Proces - Oversigt'!B23)","v":"S06"}]
[null,{"$f":"IF(ISBLANK('Proces - Oversigt'!B24),\"\", 'Proces - Oversigt'!B24)","v":"S07"}]
[null,{"$f":"IF(ISBLANK('Proces - Oversigt'!B25),\"\", 'Proces - Oversigt'!B25)","v":"S11 - Kvalitetsstyring"}]
[null,{"$f":"IF(ISBLANK('Proces - Oversigt'!B26),\"\", 'Proces - Oversigt'!B26)","v":"S12 - Økonomi, rapportering, planlægning"}]
[null,{"$f":"IF(ISBLANK('Proces - Oversigt'!B27),\"\", 'Proces - Oversigt'!B27)","v":"S13 - HR opgaver"}]
[null,{"$f":"IF(ISBLANK('Proces - Oversigt'!B28),\"\", 'Proces - Oversigt'!B28)","v":""}]
[null,{"$f":"IF(ISBLANK('Proces - Oversigt'!B29),\"\", 'Proces - Oversigt'!B29)","v":"T - Opgaver vedr. Produktionsteknik - PTF"}]
[null,{"$f":"IF(ISBLANK('Proces - Oversigt'!B30),\"\", 'Proces - Oversigt'!B30)","v":"T01 - Produktionsgrundlag"}]
[null,{"$f":"IF(ISBLANK('Proces - Oversigt'!B31),\"\", 'Proces - Oversigt'!B31)","v":"T02 - Hjælpeværktøjer"}]
[null,{"$f":"IF(ISBLANK('Proces - Oversigt'!B32),\"\", 'Proces - Oversigt'!B32)","v":"T03 - Prototyper, nulserier og vareprøver"}]
[null,{"$f":"IF(ISBLANK('Proces - Oversigt'!B33),\"\", 'Proces - Oversigt'!B33)","v":"T04 - Produktkalkulation"}]
[null,{"$f":"IF(ISBLANK('Proces - Oversigt'!B34),\"\", 'Proces - Oversigt'!B34)","v":"T05 - Procesoptimering"}]
[null,{"$f":"IF(ISBLANK('Proces - Oversigt'!B35),\"\", 'Proces - Oversigt'!B35)","v":"T06 - Produktudvikling"}]
[null,{"$f":"IF(ISBLANK('Proces - Oversigt'!B36),\"\", 'Proces - Oversigt'!B36)","v":"T07 - Teknisk salgssupport"}]
[null,{"$f":"IF(ISBLANK('Proces - Oversigt'!B37),\"\", 'Proces - Oversigt'!B37)","v":"T08"}]
[null,{"$f":"IF(ISBLANK('Proces - Oversigt'!B38),\"\", 'Proces - Oversigt'!B38)","v":"T09"}]
[null,{"$f":"IF(ISBLANK('Proces - Oversigt'!B39),\"\", 'Proces - Oversigt'!B39)","v":"T11 - Kvalitetsstyring"}]
[null,{"$f":"IF(ISBLANK('Proces - Oversigt'!B40),\"\", 'Proces - Oversigt'!B40)","v":"T12 - Økonomi, rapportering, planlægning"}]
[null,{"$f":"IF(ISBLANK('Proces - Oversigt'!B41),\"\", 'Proces - Oversigt'!B41)","v":"T13 - HR opgaver"}]
[]
[null,{"$f":"IF(ISBLANK('Proces - Oversigt'!B43),\"\",'Proces - Oversigt'!B43)","v":"P - Produktionsopgaver"}]
[null,{"$f":"IF(ISBLANK('Proces - Oversigt'!B44),\"\",'Proces - Oversigt'!B44)","v":"P01 - Planlægning, hoved-finplan., "}]
[null,{"$f":"IF(ISBLANK('Proces - Oversigt'!B45),\"\",'Proces - Oversigt'!B45)","v":"P02 - Klargøring og opstart af produktion"}]
[null,{"$f":"IF(ISBLANK('Proces - Oversigt'!B46),\"\",'Proces - Oversigt'!B46)","v":"P03 - Værkstedsstyring og overvågning af leveringsterm."}]
[null,{"$f":"IF(ISBLANK('Proces - Oversigt'!B47),\"\",'Proces - Oversigt'!B47)","v":"P04 - Optimering af processer"}]
[null,{"$f":"IF(ISBLANK('Proces - Oversigt'!B48),\"\",'Proces - Oversigt'!B48)","v":"P05 - Instruktion og kompetenceudvikling af medarb."}]
[null,{"$f":"IF(ISBLANK('Proces - Oversigt'!B49),\"\",'Proces - Oversigt'!B49)","v":"P06 - Håndtering af ændrings- og hasteordre."}]
[null,{"$f":"IF(ISBLANK('Proces - Oversigt'!B50),\"\",'Proces - Oversigt'!B50)","v":"P07"}]
[null,{"$f":"IF(ISBLANK('Proces - Oversigt'!B51),\"\",'Proces - Oversigt'!B51)","v":"P08"}]
[null,{"$f":"IF(ISBLANK('Proces - Oversigt'!B52),\"\",'Proces - Oversigt'!B52)","v":"P11 - Kvalitetsstyring"}]
[null,{"$f":"IF(ISBLANK('Proces - Oversigt'!B53),\"\",'Proces - Oversigt'!B53)","v":"P12 - Økonomi, rapportering, planlægning"}]
[null,{"$f":"IF(ISBLANK('Proces - Oversigt'!B54),\"\",'Proces - Oversigt'!B54)","v":"P13 - HR opgaver"}]
[null,{"$f":"IF(ISBLANK('Proces - Oversigt'!B55),\"\",'Proces - Oversigt'!B55)","v":""}]
[null,{"$f":"IF(ISBLANK('Proces - Oversigt'!B56),\"\",'Proces - Oversigt'!B56)","v":"L - Lager- og logistikopgaver"}]
[null,{"$f":"IF(ISBLANK('Proces - Oversigt'!B57),\"\",'Proces - Oversigt'!B57)","v":"L01 - Varemodtagelse, kontrol, registrering"}]
[null,{"$f":"IF(ISBLANK('Proces - Oversigt'!B58),\"\",'Proces - Oversigt'!B58)","v":"L02 - Lagerregnskab - Fysisk optælling af lagerbeholdning"}]
[null,{"$f":"IF(ISBLANK('Proces - Oversigt'!B59),\"\",'Proces - Oversigt'!B59)","v":"L03 - Udlevering af varer til produktion"}]
[null,{"$f":"IF(ISBLANK('Proces - Oversigt'!B60),\"\",'Proces - Oversigt'!B60)","v":"L04 - Klargøring af varer til forsendelse"}]
[null,{"$f":"IF(ISBLANK('Proces - Oversigt'!B61),\"\",'Proces - Oversigt'!B61)","v":"L05 - Forsendelsespapirer - bookning af transportør"}]
[null,{"$f":"IF(ISBLANK('Proces - Oversigt'!B62),\"\",'Proces - Oversigt'!B62)","v":"L06 - Pålæsning af varer - udgangskontrol"}]
[null,{"$f":"IF(ISBLANK('Proces - Oversigt'!B63),\"\",'Proces - Oversigt'!B63)","v":"L07 - Logistikaftaler - transport, lagerhotel, etc."}]
[null,{"$f":"IF(ISBLANK('Proces - Oversigt'!B64),\"\",'Proces - Oversigt'!B64)","v":"L08 - Håndtering af ændrings- og hasteordrer"}]
[null,{"$f":"IF(ISBLANK('Proces - Oversigt'!B65),\"\",'Proces - Oversigt'!B65)","v":"L09"}]
[null,{"$f":"IF(ISBLANK('Proces - Oversigt'!B66),\"\",'Proces - Oversigt'!B66)","v":"L10"}]
[null,{"$f":"IF(ISBLANK('Proces - Oversigt'!B67),\"\",'Proces - Oversigt'!B67)","v":"L11 - Kvalitetsstyring"}]
[null,{"$f":"IF(ISBLANK('Proces - Oversigt'!B68),\"\",'Proces - Oversigt'!B68)","v":"L12 - Økonomi, rapportering, planlægning"}]
[null,{"$f":"IF(ISBLANK('Proces - Oversigt'!B69),\"\",'Proces - Oversigt'!B69)","v":"L13 - HR opgaver"}]
[null,{"$f":"IF(ISBLANK('Proces - Oversigt'!B70),\"\",'Proces - Oversigt'!B70)","v":""}]
[null,{"$f":"IF(ISBLANK('Proces - Oversigt'!B71),\"\",'Proces - Oversigt'!B71)","v":"I - Indkøbsopgaver"}]
[null,{"$f":"IF(ISBLANK('Proces - Oversigt'!B72),\"\",'Proces - Oversigt'!B72)","v":"I01 - Leverandørevaluering"}]
[null,{"$f":"IF(ISBLANK('Proces - Oversigt'!B73),\"\",'Proces - Oversigt'!B73)","v":"I02 - Leverandøraftaler"}]
[null,{"$f":"IF(ISBLANK('Proces - Oversigt'!B74),\"\",'Proces - Oversigt'!B74)","v":"I03 - Behovsberegning og disponering"}]
[null,{"$f":"IF(ISBLANK('Proces - Oversigt'!B75),\"\",'Proces - Oversigt'!B75)","v":"I04 - Indkøbsordrer"}]
[null,{"$f":"IF(ISBLANK('Proces - Oversigt'!B76),\"\",'Proces - Oversigt'!B76)","v":"I05 - Reklamationsbehandling"}]
[null,{"$f":"IF(ISBLANK('Proces - Oversigt'!B77),\"\",'Proces - Oversigt'!B77)","v":"I06 - Vedligehold af indkøbte varers kostpriser - kostprisafv."}]
[null,{"$f":"IF(ISBLANK('Proces - Oversigt'!B78),\"\",'Proces - Oversigt'!B78)","v":"I07"}]
[null,{"$f":"IF(ISBLANK('Proces - Oversigt'!B79),\"\",'Proces - Oversigt'!B79)","v":"I08"}]
[null,{"$f":"IF(ISBLANK('Proces - Oversigt'!B80),\"\",'Proces - Oversigt'!B80)","v":"I11 - Kvalitetsstyring"}]
[null,{"$f":"IF(ISBLANK('Proces - Oversigt'!B81),\"\",'Proces - Oversigt'!B81)","v":"I12 - Økonomi, rapportering, planlægning"}]
[null,{"$f":"IF(ISBLANK('Proces - Oversigt'!B82),\"\",'Proces - Oversigt'!B82)","v":"I13 - HR opgaver"}]
[null,{"$f":"IF(ISBLANK('Proces - Oversigt'!B83),\"\",'Proces - Oversigt'!B83)","v":""}]
[null,{"$f":"IF(ISBLANK('Proces - Oversigt'!B84),\"\",'Proces - Oversigt'!B84)","v":"B - Økonomiopgaver"}]
[null,{"$f":"IF(ISBLANK('Proces - Oversigt'!B85),\"\",'Proces - Oversigt'!B85)","v":"B01 - Finans, debitor og kreditor"}]
[null,{"$f":"IF(ISBLANK('Proces - Oversigt'!B86),\"\",'Proces - Oversigt'!B86)","v":"B02 - Gage og lønninger"}]
[null,{"$f":"IF(ISBLANK('Proces - Oversigt'!B87),\"\",'Proces - Oversigt'!B87)","v":"B03 - Budgetlægning"}]
[null,{"$f":"IF(ISBLANK('Proces - Oversigt'!B88),\"\",'Proces - Oversigt'!B88)","v":"B04 - Likviditetsstyring"}]
[null,{"$f":"IF(ISBLANK('Proces - Oversigt'!B89),\"\",'Proces - Oversigt'!B89)","v":"B05"}]
[null,{"$f":"IF(ISBLANK('Proces - Oversigt'!B90),\"\",'Proces - Oversigt'!B90)","v":"B06"}]
[null,{"$f":"IF(ISBLANK('Proces - Oversigt'!B91),\"\",'Proces - Oversigt'!B91)","v":"B11 - Reklamationsbehandling"}]
[null,{"$f":"IF(ISBLANK('Proces - Oversigt'!B92),\"\",'Proces - Oversigt'!B92)","v":"B12 - Økonomi, rapportering, planlægning"}]
[null,{"$f":"IF(ISBLANK('Proces - Oversigt'!B93),\"\",'Proces - Oversigt'!B93)","v":"B13 - HR opgaver"}]

{"sheet":"Problem - Årsagssammenhænge","index":19,"n_rows":104,"n_cols":8,"rows_kept":104,"cut":false,"hidden":false,"merged":[[24,7,25,7],[133,7,134,7],[103,7,104,7],[195,7,196,7],[164,7,165,7]]}
["Projekt: ViaNord - "]
[]
[{"$f":"IF(ISBLANK('Proces - Oversigt'!B8),\"\", 'Proces - Oversigt'!B8)","v":"Procesoversigt"},null,"Påtrykte","Interne - videresendte","Interne","Problem","Årsagssammenhænge","Løsningsforslag"]
[{"$f":"IF(ISBLANK('Proces - Oversigt'!B10),\"\", 'Proces - Oversigt'!B10)","v":"L - Ledelsesopgaver"}]
[{"$f":"IF(ISBLANK('Proces - Oversigt'!B11),\"\", 'Proces - Oversigt'!B11)","v":"L01 - Koordinering af ledergruppe"},null,null,null,null,{"$f":"IF(ISBLANK('Rutine - overblik'!N7),\"\", 'Rutine - overblik'!N7)","v":""}]
[{"$f":"IF(ISBLANK('Proces - Oversigt'!B12),\"\", 'Proces - Oversigt'!B12)","v":"L02 - Kvalitetsstyring - reklamationer"},null,null,null,null,{"$f":"IF(ISBLANK('Rutine - overblik'!N8),\"\", 'Rutine - overblik'!N8)","v":""}]
[{"$f":"IF(ISBLANK('Proces - Oversigt'!B13),\"\", 'Proces - Oversigt'!B13)","v":"L03 - Projektstyring"},null,null,null,null,{"$f":"IF(ISBLANK('Rutine - overblik'!N9),\"\", 'Rutine - overblik'!N9)","v":""}]
[{"$f":"IF(ISBLANK('Proces - Oversigt'!B14),\"\", 'Proces - Oversigt'!B14)","v":"L04 - Kontraktforhandlinger"},null,null,null,null,{"$f":"IF(ISBLANK('Rutine - overblik'!N10),\"\", 'Rutine - overblik'!N10)","v":""}]
[{"$f":"IF(ISBLANK('Proces - Oversigt'!B15),\"\", 'Proces - Oversigt'!B15)","v":"L05 - Økonomi, rapportering, planlægning"},null,null,null,null,{"$f":"IF(ISBLANK('Rutine - overblik'!N11),\"\", 'Rutine - overblik'!N11)","v":""}]
[{"$f":"IF(ISBLANK('Proces - Oversigt'!B16),\"\", 'Proces - Oversigt'!B16)","v":""},null,null,null,null,{"$f":"IF(ISBLANK('Rutine - overblik'!N12),\"\", 'Rutine - overblik'!N12)","v":""}]
[{"$f":"IF(ISBLANK('Proces - Oversigt'!B17),\"\", 'Proces - Oversigt'!B17)","v":"S - Salgsopgaver"},null,null,null,null,{"$f":"IF(ISBLANK('Rutine - overblik'!N13),\"\", 'Rutine - overblik'!N13)","v":""}]
[{"$f":"IF(ISBLANK('Proces - Oversigt'!B18),\"\", 'Proces - Oversigt'!B18)","v":"S01 - Salgsordre - almindelige ordre"},null,null,null,null,{"$f":"IF(ISBLANK('Rutine - overblik'!N14),\"\", 'Rutine - overblik'!N14)","v":""}]
[{"$f":"IF(ISBLANK('Proces - Oversigt'!B19),\"\", 'Proces - Oversigt'!B19)","v":"S02 - Salgsordre - projekter, 1. gangsleverancer/prototyper"},null,null,null,null,{"$f":"IF(ISBLANK('Rutine - overblik'!N15),\"\", 'Rutine - overblik'!N15)","v":""}]
[{"$f":"IF(ISBLANK('Proces - Oversigt'!B20),\"\", 'Proces - Oversigt'!B20)","v":"S03 - Tilbud , forespørgelser"},null,null,null,null,{"$f":"IF(ISBLANK('Rutine - overblik'!N16),\"\", 'Rutine - overblik'!N16)","v":""}]
[{"$f":"IF(ISBLANK('Proces - Oversigt'!B21),\"\", 'Proces - Oversigt'!B21)","v":"S04 - Ændrings- og hasteordre"},null,null,null,null,{"$f":"IF(ISBLANK('Rutine - overblik'!N17),\"\", 'Rutine - overblik'!N17)","v":""}]
[{"$f":"IF(ISBLANK('Proces - Oversigt'!B22),\"\", 'Proces - Oversigt'!B22)","v":"S05 - Kundebesøg, messer"},null,null,null,null,{"$f":"IF(ISBLANK('Rutine - overblik'!N18),\"\", 'Rutine - overblik'!N18)","v":""}]
[{"$f":"IF(ISBLANK('Proces - Oversigt'!B23),\"\", 'Proces - Oversigt'!B23)","v":"S06"}]
[{"$f":"IF(ISBLANK('Proces - Oversigt'!B24),\"\", 'Proces - Oversigt'!B24)","v":"S07"},null,null,null,null,{"$f":"IF(ISBLANK('Rutine - overblik'!N20),\"\", 'Rutine - overblik'!N20)","v":""}]
[{"$f":"IF(ISBLANK('Proces - Oversigt'!B25),\"\", 'Proces - Oversigt'!B25)","v":"S11 - Kvalitetsstyring"},null,null,null,null,{"$f":"IF(ISBLANK('Rutine - overblik'!N21),\"\", 'Rutine - overblik'!N21)","v":""}]
[{"$f":"IF(ISBLANK('Proces - Oversigt'!B26),\"\", 'Proces - Oversigt'!B26)","v":"S12 - Økonomi, rapportering, planlægning"},null,null,null,null,{"$f":"IF(ISBLANK('Rutine - overblik'!N22),\"\", 'Rutine - overblik'!N22)","v":""}]
[{"$f":"IF(ISBLANK('Proces - Oversigt'!B27),\"\", 'Proces - Oversigt'!B27)","v":"S13 - HR opgaver"},null,null,null,null,{"$f":"IF(ISBLANK('Rutine - overblik'!N23),\"\", 'Rutine - overblik'!N23)","v":""}]
[{"$f":"IF(ISBLANK('Proces - Oversigt'!B28),\"\", 'Proces - Oversigt'!B28)","v":""},null,null,null,null,{"$f":"IF(ISBLANK('Rutine - overblik'!N24),\"\", 'Rutine - overblik'!N24)","v":""}]
[{"$f":"IF(ISBLANK('Proces - Oversigt'!B29),\"\", 'Proces - Oversigt'!B29)","v":"T - Opgaver vedr. Produktionsteknik - PTF"},null,null,null,null,{"$f":"IF(ISBLANK('Rutine - overblik'!N25),\"\", 'Rutine - overblik'!N25)","v":""}]
[{"$f":"IF(ISBLANK('Proces - Oversigt'!B30),\"\", 'Proces - Oversigt'!B30)","v":"T01 - Produktionsgrundlag"},null,null,null,null,{"$f":"IF(ISBLANK('Rutine - overblik'!N26),\"\", 'Rutine - overblik'!N26)","v":""}]
[{"$f":"IF(ISBLANK('Proces - Oversigt'!B31),\"\", 'Proces - Oversigt'!B31)","v":"T02 - Hjælpeværktøjer"},null,null,null,null,{"$f":"IF(ISBLANK('Rutine - overblik'!N27),\"\", 'Rutine - overblik'!N27)","v":""}]
[{"$f":"IF(ISBLANK('Proces - Oversigt'!B32),\"\", 'Proces - Oversigt'!B32)","v":"T03 - Prototyper, nulserier og vareprøver"},null,null,null,null,{"$f":"IF(ISBLANK('Rutine - overblik'!N28),\"\", 'Rutine - overblik'!N28)","v":""}]
[{"$f":"IF(ISBLANK('Proces - Oversigt'!B33),\"\", 'Proces - Oversigt'!B33)","v":"T04 - Produktkalkulation"},null,null,null,null,{"$f":"IF(ISBLANK('Rutine - overblik'!N29),\"\", 'Rutine - overblik'!N29)","v":""}]
[{"$f":"IF(ISBLANK('Proces - Oversigt'!B34),\"\", 'Proces - Oversigt'!B34)","v":"T05 - Procesoptimering"},null,null,null,null,{"$f":"IF(ISBLANK('Rutine - overblik'!N30),\"\", 'Rutine - overblik'!N30)","v":""}]
[{"$f":"IF(ISBLANK('Proces - Oversigt'!B35),\"\", 'Proces - Oversigt'!B35)","v":"T06 - Produktudvikling"},null,null,null,null,{"$f":"IF(ISBLANK('Rutine - overblik'!N31),\"\", 'Rutine - overblik'!N31)","v":""}]
[{"$f":"IF(ISBLANK('Proces - Oversigt'!B36),\"\", 'Proces - Oversigt'!B36)","v":"T07 - Teknisk salgssupport"},null,null,null,null,{"$f":"IF(ISBLANK('Rutine - overblik'!N32),\"\", 'Rutine - overblik'!N32)","v":""}]
[{"$f":"IF(ISBLANK('Proces - Oversigt'!B37),\"\", 'Proces - Oversigt'!B37)","v":"T08"}]
[{"$f":"IF(ISBLANK('Proces - Oversigt'!B38),\"\", 'Proces - Oversigt'!B38)","v":"T09"},null,null,null,null,{"$f":"IF(ISBLANK('Rutine - overblik'!N34),\"\", 'Rutine - overblik'!N34)","v":""}]
[{"$f":"IF(ISBLANK('Proces - Oversigt'!B39),\"\", 'Proces - Oversigt'!B39)","v":"T11 - Kvalitetsstyring"},null,null,null,null,{"$f":"IF(ISBLANK('Rutine - overblik'!N35),\"\", 'Rutine - overblik'!N35)","v":""}]
[{"$f":"IF(ISBLANK('Proces - Oversigt'!B40),\"\", 'Proces - Oversigt'!B40)","v":"T12 - Økonomi, rapportering, planlægning"},null,null,null,null,{"$f":"IF(ISBLANK('Rutine - overblik'!N36),\"\", 'Rutine - overblik'!N36)","v":""}]
[{"$f":"IF(ISBLANK('Proces - Oversigt'!B41),\"\", 'Proces - Oversigt'!B41)","v":"T13 - HR opgaver"},null,null,null,null,{"$f":"IF(ISBLANK('Rutine - overblik'!N37),\"\", 'Rutine - overblik'!N37)","v":""}]
[{"$f":"IF(ISBLANK('Proces - Oversigt'!B42),\"\", 'Proces - Oversigt'!B42)","v":""},null,null,null,null,{"$f":"IF(ISBLANK('Rutine - overblik'!N38),\"\", 'Rutine - overblik'!N38)","v":""}]
[{"$f":"IF(ISBLANK('Proces - Oversigt'!B43),\"\", 'Proces - Oversigt'!B43)","v":"P - Produktionsopgaver"},null,null,null,null,{"$f":"IF(ISBLANK('Rutine - overblik'!N39),\"\", 'Rutine - overblik'!N39)","v":""}]
[{"$f":"IF(ISBLANK('Proces - Oversigt'!B44),\"\", 'Proces - Oversigt'!B44)","v":"P01 - Planlægning, hoved-finplan., "},null,null,null,null,{"$f":"IF(ISBLANK('Rutine - overblik'!N40),\"\", 'Rutine - overblik'!N40)","v":""}]
[{"$f":"IF(ISBLANK('Proces - Oversigt'!B45),\"\", 'Proces - Oversigt'!B45)","v":"P02 - Klargøring og opstart af produktion"},null,null,null,null,{"$f":"IF(ISBLANK('Rutine - overblik'!N41),\"\", 'Rutine - overblik'!N41)","v":""}]
[{"$f":"IF(ISBLANK('Proces - Oversigt'!B46),\"\", 'Proces - Oversigt'!B46)","v":"P03 - Værkstedsstyring og overvågning af leveringsterm."},null,null,null,null,{"$f":"IF(ISBLANK('Rutine - overblik'!N42),\"\", 'Rutine - overblik'!N42)","v":""}]
[{"$f":"IF(ISBLANK('Proces - Oversigt'!B47),\"\", 'Proces - Oversigt'!B47)","v":"P04 - Optimering af processer"},null,null,null,null,{"$f":"IF(ISBLANK('Rutine - overblik'!N43),\"\", 'Rutine - overblik'!N43)","v":""}]
[{"$f":"IF(ISBLANK('Proces - Oversigt'!B48),\"\", 'Proces - Oversigt'!B48)","v":"P05 - Instruktion og kompetenceudvikling af medarb."},null,null,null,null,{"$f":"IF(ISBLANK('Rutine - overblik'!N44),\"\", 'Rutine - overblik'!N44)","v":""}]
[{"$f":"IF(ISBLANK('Proces - Oversigt'!B49),\"\", 'Proces - Oversigt'!B49)","v":"P06 - Håndtering af ændrings- og hasteordre."},null,null,null,null,{"$f":"IF(ISBLANK('Rutine - overblik'!N45),\"\", 'Rutine - overblik'!N45)","v":""}]
[{"$f":"IF(ISBLANK('Proces - Oversigt'!B50),\"\", 'Proces - Oversigt'!B50)","v":"P07"}]
[{"$f":"IF(ISBLANK('Proces - Oversigt'!B51),\"\", 'Proces - Oversigt'!B51)","v":"P08"},null,null,null,null,{"$f":"IF(ISBLANK('Rutine - overblik'!N47),\"\", 'Rutine - overblik'!N47)","v":""}]
[{"$f":"IF(ISBLANK('Proces - Oversigt'!B52),\"\", 'Proces - Oversigt'!B52)","v":"P11 - Kvalitetsstyring"},null,null,null,null,{"$f":"IF(ISBLANK('Rutine - overblik'!N48),\"\", 'Rutine - overblik'!N48)","v":""}]
[{"$f":"IF(ISBLANK('Proces - Oversigt'!B53),\"\", 'Proces - Oversigt'!B53)","v":"P12 - Økonomi, rapportering, planlægning"},null,null,null,null,{"$f":"IF(ISBLANK('Rutine - overblik'!N49),\"\", 'Rutine - overblik'!N49)","v":""}]
[{"$f":"IF(ISBLANK('Proces - Oversigt'!B54),\"\", 'Proces - Oversigt'!B54)","v":"P13 - HR opgaver"},null,null,null,null,{"$f":"IF(ISBLANK('Rutine - overblik'!N50),\"\", 'Rutine - overblik'!N50)","v":""}]
[{"$f":"IF(ISBLANK('Proces - Oversigt'!B55),\"\", 'Proces - Oversigt'!B55)","v":""},null,null,null,null,{"$f":"IF(ISBLANK('Rutine - overblik'!N51),\"\", 'Rutine - overblik'!N51)","v":""}]
[{"$f":"IF(ISBLANK('Proces - Oversigt'!B56),\"\", 'Proces - Oversigt'!B56)","v":"L - Lager- og logistikopgaver"},null,null,null,null,{"$f":"IF(ISBLANK('Rutine - overblik'!N52),\"\", 'Rutine - overblik'!N52)","v":""}]
[{"$f":"IF(ISBLANK('Proces - Oversigt'!B57),\"\", 'Proces - Oversigt'!B57)","v":"L01 - Varemodtagelse, kontrol, registrering"},null,null,null,null,{"$f":"IF(ISBLANK('Rutine - overblik'!N53),\"\", 'Rutine - overblik'!N53)","v":""}]
[{"$f":"IF(ISBLANK('Proces - Oversigt'!B58),\"\", 'Proces - Oversigt'!B58)","v":"L02 - Lagerregnskab - Fysisk optælling af lagerbeholdning"},null,null,null,null,{"$f":"IF(ISBLANK('Rutine - overblik'!N54),\"\", 'Rutine - overblik'!N54)","v":""}]
[{"$f":"IF(ISBLANK('Proces - Oversigt'!B59),\"\", 'Proces - Oversigt'!B59)","v":"L03 - Udlevering af varer til produktion"},null,null,null,null,{"$f":"IF(ISBLANK('Rutine - overblik'!N55),\"\", 'Rutine - overblik'!N55)","v":""}]
[{"$f":"IF(ISBLANK('Proces - Oversigt'!B60),\"\", 'Proces - Oversigt'!B60)","v":"L04 - Klargøring af varer til forsendelse"},null,null,null,null,{"$f":"IF(ISBLANK('Rutine - overblik'!N56),\"\", 'Rutine - overblik'!N56)","v":""}]
[{"$f":"IF(ISBLANK('Proces - Oversigt'!B61),\"\", 'Proces - Oversigt'!B61)","v":"L05 - Forsendelsespapirer - bookning af transportør"},null,null,null,null,{"$f":"IF(ISBLANK('Rutine - overblik'!N57),\"\", 'Rutine - overblik'!N57)","v":""}]
[{"$f":"IF(ISBLANK('Proces - Oversigt'!B62),\"\", 'Proces - Oversigt'!B62)","v":"L06 - Pålæsning af varer - udgangskontrol"},null,null,null,null,{"$f":"IF(ISBLANK('Rutine - overblik'!N58),\"\", 'Rutine - overblik'!N58)","v":""}]
[{"$f":"IF(ISBLANK('Proces - Oversigt'!B63),\"\", 'Proces - Oversigt'!B63)","v":"L07 - Logistikaftaler - transport, lagerhotel, etc."},null,null,null,null,{"$f":"IF(ISBLANK('Rutine - overblik'!N59),\"\", 'Rutine - overblik'!N59)","v":""}]
[{"$f":"IF(ISBLANK('Proces - Oversigt'!B64),\"\", 'Proces - Oversigt'!B64)","v":"L08 - Håndtering af ændrings- og hasteordrer"},null,null,null,null,{"$f":"IF(ISBLANK('Rutine - overblik'!N60),\"\", 'Rutine - overblik'!N60)","v":""}]
[{"$f":"IF(ISBLANK('Proces - Oversigt'!B65),\"\", 'Proces - Oversigt'!B65)","v":"L09"}]
[{"$f":"IF(ISBLANK('Proces - Oversigt'!B66),\"\", 'Proces - Oversigt'!B66)","v":"L10"},null,null,null,null,{"$f":"IF(ISBLANK('Rutine - overblik'!N62),\"\", 'Rutine - overblik'!N62)","v":""}]
[{"$f":"IF(ISBLANK('Proces - Oversigt'!B67),\"\", 'Proces - Oversigt'!B67)","v":"L11 - Kvalitetsstyring"},null,null,null,null,{"$f":"IF(ISBLANK('Rutine - overblik'!N63),\"\", 'Rutine - overblik'!N63)","v":""}]
[{"$f":"IF(ISBLANK('Proces - Oversigt'!B68),\"\", 'Proces - Oversigt'!B68)","v":"L12 - Økonomi, rapportering, planlægning"},null,null,null,null,{"$f":"IF(ISBLANK('Rutine - overblik'!N64),\"\", 'Rutine - overblik'!N64)","v":""}]
[{"$f":"IF(ISBLANK('Proces - Oversigt'!B69),\"\", 'Proces - Oversigt'!B69)","v":"L13 - HR opgaver"},null,null,null,null,{"$f":"IF(ISBLANK('Rutine - overblik'!N65),\"\", 'Rutine - overblik'!N65)","v":""}]
[{"$f":"IF(ISBLANK('Proces - Oversigt'!B70),\"\", 'Proces - Oversigt'!B70)","v":""},null,null,null,null,{"$f":"IF(ISBLANK('Rutine - overblik'!N66),\"\", 'Rutine - overblik'!N66)","v":""}]
[{"$f":"IF(ISBLANK('Proces - Oversigt'!B71),\"\", 'Proces - Oversigt'!B71)","v":"I - Indkøbsopgaver"},null,null,null,null,{"$f":"IF(ISBLANK('Rutine - overblik'!N67),\"\", 'Rutine - overblik'!N67)","v":""}]
[{"$f":"IF(ISBLANK('Proces - Oversigt'!B72),\"\", 'Proces - Oversigt'!B72)","v":"I01 - Leverandørevaluering"},null,null,null,null,{"$f":"IF(ISBLANK('Rutine - overblik'!N68),\"\", 'Rutine - overblik'!N68)","v":""}]
[{"$f":"IF(ISBLANK('Proces - Oversigt'!B73),\"\", 'Proces - Oversigt'!B73)","v":"I02 - Leverandøraftaler"},null,null,null,null,{"$f":"IF(ISBLANK('Rutine - overblik'!N69),\"\", 'Rutine - overblik'!N69)","v":""}]
[{"$f":"IF(ISBLANK('Proces - Oversigt'!B74),\"\", 'Proces - Oversigt'!B74)","v":"I03 - Behovsberegning og disponering"},null,null,null,null,{"$f":"IF(ISBLANK('Rutine - overblik'!N70),\"\", 'Rutine - overblik'!N70)","v":""}]
[{"$f":"IF(ISBLANK('Proces - Oversigt'!B75),\"\", 'Proces - Oversigt'!B75)","v":"I04 - Indkøbsordrer"},null,null,null,null,{"$f":"IF(ISBLANK('Rutine - overblik'!N71),\"\", 'Rutine - overblik'!N71)","v":""}]
[{"$f":"IF(ISBLANK('Proces - Oversigt'!B76),\"\", 'Proces - Oversigt'!B76)","v":"I05 - Reklamationsbehandling"},null,null,null,null,{"$f":"IF(ISBLANK('Rutine - overblik'!N72),\"\", 'Rutine - overblik'!N72)","v":""}]
[{"$f":"IF(ISBLANK('Proces - Oversigt'!B77),\"\", 'Proces - Oversigt'!B77)","v":"I06 - Vedligehold af indkøbte varers kostpriser - kostprisafv."},null,null,null,null,{"$f":"IF(ISBLANK('Rutine - overblik'!N73),\"\", 'Rutine - overblik'!N73)","v":""}]
[{"$f":"IF(ISBLANK('Proces - Oversigt'!B78),\"\", 'Proces - Oversigt'!B78)","v":"I07"}]
[{"$f":"IF(ISBLANK('Proces - Oversigt'!B79),\"\", 'Proces - Oversigt'!B79)","v":"I08"},null,null,null,null,{"$f":"IF(ISBLANK('Rutine - overblik'!N75),\"\", 'Rutine - overblik'!N75)","v":""}]
[{"$f":"IF(ISBLANK('Proces - Oversigt'!B80),\"\", 'Proces - Oversigt'!B80)","v":"I11 - Kvalitetsstyring"},null,null,null,null,{"$f":"IF(ISBLANK('Rutine - overblik'!N76),\"\", 'Rutine - overblik'!N76)","v":""}]
[{"$f":"IF(ISBLANK('Proces - Oversigt'!B81),\"\", 'Proces - Oversigt'!B81)","v":"I12 - Økonomi, rapportering, planlægning"},null,null,null,null,{"$f":"IF(ISBLANK('Rutine - overblik'!N77),\"\", 'Rutine - overblik'!N77)","v":""}]
[{"$f":"IF(ISBLANK('Proces - Oversigt'!B82),\"\", 'Proces - Oversigt'!B82)","v":"I13 - HR opgaver"},null,null,null,null,{"$f":"IF(ISBLANK('Rutine - overblik'!N78),\"\", 'Rutine - overblik'!N78)","v":""}]
[{"$f":"IF(ISBLANK('Proces - Oversigt'!B83),\"\", 'Proces - Oversigt'!B83)","v":""},null,null,null,null,{"$f":"IF(ISBLANK('Rutine - overblik'!N79),\"\", 'Rutine - overblik'!N79)","v":""}]
[{"$f":"IF(ISBLANK('Proces - Oversigt'!B84),\"\", 'Proces - Oversigt'!B84)","v":"B - Økonomiopgaver"},null,null,null,null,{"$f":"IF(ISBLANK('Rutine - overblik'!N80),\"\", 'Rutine - overblik'!N80)","v":""}]
[{"$f":"IF(ISBLANK('Proces - Oversigt'!B85),\"\", 'Proces - Oversigt'!B85)","v":"B01 - Finans, debitor og kreditor"},null,null,null,null,{"$f":"IF(ISBLANK('Rutine - overblik'!N81),\"\", 'Rutine - overblik'!N81)","v":""}]
[{"$f":"IF(ISBLANK('Proces - Oversigt'!B86),\"\", 'Proces - Oversigt'!B86)","v":"B02 - Gage og lønninger"},null,null,null,null,{"$f":"IF(ISBLANK('Rutine - overblik'!N82),\"\", 'Rutine - overblik'!N82)","v":""}]
[{"$f":"IF(ISBLANK('Proces - Oversigt'!B87),\"\", 'Proces - Oversigt'!B87)","v":"B03 - Budgetlægning"},null,null,null,null,{"$f":"IF(ISBLANK('Rutine - overblik'!N83),\"\", 'Rutine - overblik'!N83)","v":""}]
[{"$f":"IF(ISBLANK('Proces - Oversigt'!B88),\"\", 'Proces - Oversigt'!B88)","v":"B04 - Likviditetsstyring"},null,null,null,null,{"$f":"IF(ISBLANK('Rutine - overblik'!N84),\"\", 'Rutine - overblik'!N84)","v":""}]
[{"$f":"IF(ISBLANK('Proces - Oversigt'!B89),\"\", 'Proces - Oversigt'!B89)","v":"B05"}]
[{"$f":"IF(ISBLANK('Proces - Oversigt'!B90),\"\", 'Proces - Oversigt'!B90)","v":"B06"},null,null,null,null,{"$f":"IF(ISBLANK('Rutine - overblik'!N86),\"\", 'Rutine - overblik'!N86)","v":""}]
[{"$f":"IF(ISBLANK('Proces - Oversigt'!B91),\"\", 'Proces - Oversigt'!B91)","v":"B11 - Reklamationsbehandling"},null,null,null,null,{"$f":"IF(ISBLANK('Rutine - overblik'!N87),\"\", 'Rutine - overblik'!N87)","v":""}]
[{"$f":"IF(ISBLANK('Proces - Oversigt'!B92),\"\", 'Proces - Oversigt'!B92)","v":"B12 - Økonomi, rapportering, planlægning"},null,null,null,null,{"$f":"IF(ISBLANK('Rutine - overblik'!N88),\"\", 'Rutine - overblik'!N88)","v":""}]
[{"$f":"IF(ISBLANK('Proces - Oversigt'!B93),\"\", 'Proces - Oversigt'!B93)","v":"B13 - HR opgaver"},null,null,null,null,{"$f":"IF(ISBLANK('Rutine - overblik'!N89),\"\", 'Rutine - overblik'!N89)","v":""}]
[{"$f":"IF(ISBLANK('Proces - Oversigt'!B94),\"\", 'Proces - Oversigt'!B94)","v":""}]
[{"$f":"IF(ISBLANK('Proces - Oversigt'!B95),\"\", 'Proces - Oversigt'!B95)","v":"Hovedaktivtet 8 - opgaver"}]
[{"$f":"IF(ISBLANK('Proces - Oversigt'!B96),\"\", 'Proces - Oversigt'!B96)","v":"aktivitet 1"}]
[{"$f":"IF(ISBLANK('Proces - Oversigt'!B97),\"\", 'Proces - Oversigt'!B97)","v":"aktivitet 2"}]
[]
[]
[]
[" "]
[" "]
[]
[]
[]
[]
[]
[]
[]
[null,null,null,null,null,null," "]